{"text_format":"3","workbook":"xlsx","n_sheets":3,"sheets":["Sheet1","Sheet2","Sheet3"],"not_rendered":{"external_links":1,"defined_names":1},"read":"whole","date_system":"1900"}

{"sheet":"Sheet1","index":0,"n_rows":495,"n_cols":18,"rows_kept":495,"merged":[[0,0,0,1],[0,2,0,5],[1,0,1,17],[2,0,2,5],[3,0,4,0],[3,1,4,1],[3,2,4,2],[3,3,4,3],[3,4,4,4],[3,5,4,5],[3,6,4,6],[3,7,4,7],[3,8,4,8],[3,9,4,9],[3,10,4,10],[3,11,4,11],[3,12,4,12],[3,13,3,15],[3,16,4,16],[3,17,4,17]]}
["附件1："]
["毕节市七星关区2024年公开招聘事业单位工作人员岗位表"]
["编制部门意见：",{"$nulls":13},"人社部门意见："]
["序号","招聘单位名称","招聘单位代码","单位咨询电话","经费来源","岗位名称","岗位代码","岗位类别","招聘人数 ","考试类别","考试类别代码","学历\n要求","学位\n要求","专业",null,null,"其他资格条件","备注"]
[{"$nulls":13},"大专","本科","研究生"]
["1","毕节市七星关区重大项目推进服务中心","0001","0857-8221409","全额事业","工作人员","01","专业技术岗位",1,"综合管理类(A类）",11,"大学本科及以上",null,null,"经济学、经济统计学、工商管理","国民经济学、区域经济学、财政学、数量经济学、工商管理","定向招聘2024年度高校毕业生"]
["2","毕节市七星关区粮食和物资储备服务中心","0002","0857-8221409","全额事业","工作人员","01","管理岗位",6,"综合管理类(A类）",11,"大学本科及以上",null,null,"食品科学与工程类","食品科学与工程（一级学科）","定向招聘2024年度高校毕业生"]
["3","毕节市七星关区粮食和物资储备服务中心","0002","0857-8221409","全额事业","工作人员","02","专业技术岗位",1,"综合管理类(A类）",11,"大学专科及以上",null,"食品加工技术、食品贮运与营销、粮食工程、食品科学与工程","食品科学与工程、食品质量与安全、粮食工程","食品科学、粮食、油脂及植物蛋白工程、农产品加工及贮藏工程","定向招聘2024年度高校毕业生"]
["4","毕节市七星关区人工影响天气办公室","0003","0857-8308093","全额事业","工作人员","01","专业技术岗位",1,"综合管理类(A类）",11,"大学本科及以上",null,null,"电子信息工程、电子信息技术、电子科学与技术、通信工程、电子信息科学与技术","通信与信息系统、信号与信息处理",""]
["5","毕节市七星关区群众信访接待服务中心","0004","0857-8316811","全额事业","工作人员","01","管理岗位",1,"综合管理类(A类）",11,"大学本科及以上",null,null,"工商管理类","工商管理（一级学科）",""]
["6","毕节市七星关区群众信访接待服务中心","0004","0857-8316811","全额事业","工作人员","02","管理岗位",1,"综合管理类(A类）",11,"大学本科及以上",null,null,"法学类","法学类（一级学科）","定向招聘2024年度高校毕业生"]
["7","毕节市七星关区大屯土司庄园文物管理所","0005","0857-8222373","全额事业","工作人员","01","专业技术岗位",1,"综合管理类(A类）",11,"大学本科及以上","学士及以上学位",null,"历史学、文物保护技术、文物与博物馆学","历史学","定向招聘2024年度高校毕业生"]
["8","毕节市七星关区图书馆","0006","0857-8222373","全额事业","工作人员","01","专业技术岗位",1,"综合管理类(A类）",11,"大学本科及以上","学士及以上学位",null,"图书馆学、档案学","图书馆学、档案学","定向招聘2024年度高校毕业生"]
["9","毕节市七星关区旅游发展服务中心","0007","0857-8222373","全额事业","工作人员","01","管理岗位",1,"综合管理类(A类）",11,"大学本科及以上","学士及以上学位",null,"旅游管理类","工商管理（一级学科）","定向招聘2024年度高校毕业生"]
["10","毕节市七星关区工业和信息化局机关服务中心","0008","0857-8223418","全额事业","工作人员","01","专业技术岗位",1,"综合管理类(A类）",11,"大学本科及以上","学士及以上学位",null,"经济学、经济统计学、会计学、审计学、财务管理、资产评估、工商管理","工商管理、经济学、财务管理、财政学、金融学","定向招聘2024年度高校毕业生"]
["11","毕节市七星关区工业和信息化局机关服务中心","0008","0857-8223418","全额事业","工作人员","02","管理岗位",1,"综合管理类(A类）",11,"大学本科及以上","学士及以上学位",null,"中国语言文学类","中国语言文学（一级学科）",""]
["12","毕节市七星关区工业能源信息技术服务中心","0009","0857-8223418","全额事业","工作人员","01","专业技术岗位",1,"综合管理类(A类）",11,"大学本科及以上","学士及以上学位",null,"标准化工程、工业设计、信息工程、电子信息工程、工程管理、工业工程、能源与环境系统工程","电子科学与技术","定向招聘2024年度高校毕业生"]
["13","毕节市七星关区工业资源综合利用发展中心","0010","0857-8223418","全额事业","工作人员","01","专业技术岗位",1,"综合管理类(A类）",11,"大学本科及以上","学士及以上学位",null,"白酒酿造工程、酿酒工程、药学、制药工程、应用化学、化学","药学、应用化学、化学工程","定向招聘七星关区户籍（含大方县托管的乡镇街道）考生"]
["14","毕节市七星关区地质灾害防治中心","0011","0857-8278878","全额事业","工作人员","01","专业技术岗位",1,"综合管理类(A类）",11,"大学本科及以上","学士及以上学位",null,"地质工程、地下水科学与工程、勘查技术与工程、资源勘查工程","矿产普查与勘探、地球探测与信息技术、地质工程","定向招聘七星关区户籍（含大方县托管的乡镇街道）考生"]
["15","毕节市七星关区自然资源交易中心","0012","0857-8278878","全额事业","工作人员","01","专业技术岗位",1,"综合管理类(A类）",11,"大学本科及以上","学士及以上学位",null,"地理信息科学、地理信息系统","自然地理学、人文地理学、地图学与地理信息系统",""]
["16","毕节市七星关区自然资源局土地储备开发中心","0013","0857-8278878","全额事业","工作人员","01","管理岗位",1,"综合管理类(A类）",11,"大学本科及以上","学士及以上学位",null,"不限专业","不限专业","定向招聘七星关区户籍（含大方县托管的乡镇街道）考生"]
["17","毕节市七星关区国土空间生态修复站","0014","0857-8278878","全额事业","工作人员","01","专业技术岗位",1,"综合管理类(A类）",11,"大学本科及以上","学士及以上学位",null,"应用化学、化学、化学工程与工艺","化学工程、化学工艺、应用化学、化学","定向招聘七星关区户籍（含大方县托管的乡镇街道）考生"]
["18","毕节市七星关区生机镇自然资源所","0015","0857-8278878","全额事业","工作人员","01","专业技术岗位",1,"综合管理类(A类）",11,"大学本科及以上","学士及以上学位",null,"地理科学、自然地理与资源环境、人文地理与城乡规划、地理信息科学","自然地理学、人文地理学、地图学与地理信息系统","定向招聘七星关区户籍（含大方县托管的乡镇街道）考生"]
["19","毕节市七星关区甘河街道自然资源所","0016","0857-8278878","全额事业","工作人员","01","管理岗位",1,"综合管理类(A类）",11,"大学本科及以上","学士及以上学位",null,"法学类","法学类（一级学科）","定向招聘七星关区户籍（含大方县托管的乡镇街道）考生"]
["20","毕节市七星关区甘河街道自然资源所","0016","0857-8278878","全额事业","工作人员","02","管理岗位",1,"综合管理类(A类）",11,"大学本科及以上","学士及以上学位",null,"计算机类、电子信息类"," 计算机科学与技术（一级学科）、 信息与通信工程（一级学科）","定向招聘七星关区户籍（含大方县托管的乡镇街道）考生"]
["21","毕节市七星关区青龙街道自然资源所","0017","0857-8278878","全额事业","工作人员","01","管理岗位",1,"综合管理类(A类）",11,"大学本科及以上","学士及以上学位",null,"中国语言文学类","中国语言文学（一级学科）","定向招聘七星关区户籍（含大方县托管的乡镇街道）考生"]
["22","毕节市七星关区青龙街道自然资源所","0017","0857-8278878","全额事业","工作人员","02","管理岗位",1,"综合管理类(A类）",11,"大学本科及以上","学士及以上学位",null,"地质类、地质学类","地质资源与地质工程（一级学科）、地质学（一级学科）","定向招聘七星关区户籍（含大方县托管的乡镇街道）考生"]
["23","大方县归化街道自然资源所","0018","0857-8278878","全额事业","工作人员","01","管理岗位",1,"综合管理类(A类）",11,"大学本科及以上","学士及以上学位",null,"地理科学类","地理科学类（一级学科）","定向招聘七星关区户籍（含大方县托管的乡镇街道）考生"]
["24","大方县归化街道自然资源所","0018","0857-8278878","全额事业","工作人员","02","管理岗位",1,"综合管理类(A类）",11,"大学本科及以上","学士及以上学位",null,"公共管理类","公共管理（一级学科）","定向招聘七星关区户籍（含大方县托管的乡镇街道）考生"]
["25","毕节市七星关区德溪街道自然资源所","0019","0857-8278878","全额事业","工作人员","01","专业技术岗位",1,"综合管理类(A类）",11,"大学本科及以上","学士及以上学位",null,"应用化学、化学、化学工程与工艺","化学工程、化学工艺、应用化学、化学","定向招聘七星关区户籍（含大方县托管的乡镇街道）考生"]
["26","毕节市七星关区碧海街道自然资源所","0020","0857-8278878","全额事业","工作人员","01","管理岗位",1,"综合管理类(A类）",11,"大学本科及以上","学士及以上学位",null,"测绘类","测绘科学与技术（一级学科）","定向招聘七星关区户籍（含大方县托管的乡镇街道）考生"]
["27","毕节市七星关区小坝镇自然资源所","0021","0857-8278878","全额事业","工作人员","01","管理岗位",1,"综合管理类(A类）",11,"大学专科及以上",null,"财务会计类、工商管理类","工商管理类","工商管理（一级学科）","定向招聘七星关区户籍（含大方县托管的乡镇街道）考生"]
["28","毕节市七星关区岔河镇自然资源所","0022","0857-8278878","全额事业","工作人员","01","专业技术岗位",1,"综合管理类(A类）",11,"大学本科及以上","学士及以上学位",null,"法学类","法学类（一级学科）","定向招聘七星关区户籍（含大方县托管的乡镇街道）考生"]
["29","毕节市七星关区市西街道自然资源所","0023","0857-8278878","全额事业","工作人员","01","专业技术岗位",1,"综合管理类(A类）",11,"大学本科及以上","学士及以上学位",null,"城乡规划、资源环境与城乡规划管理、 人文地理与城乡规划、城镇规划与建设、环境工程、环境科学、环境科学与工程","城市规划与设计、人文地理与城乡规划、环境科学、环境工程","定向招聘七星关区户籍（含大方县托管的乡镇街道）考生"]
["30","毕节市七星关区生态移民信息服务中心","0024","0857-8345309","全额事业","工作人员","01","管理岗位",1,"综合管理类(A类）",11,"大学本科及以上","学士及以上学位",null,"不限专业","不限专业","定向招聘2024年度高校毕业生"]
["31","毕节市七星关区防灾减灾服务中心","0025","0857-8289396","全额事业","工作人员","01","管理岗位",1,"综合管理类(A类）",11,"大学本科及以上",null,null,"不限专业","不限专业","定向招聘2024年度高校毕业生"]
["32","毕节市七星关区应急救援服务中心","0026","0857-8289396","全额事业","工作人员","01","专业技术岗位",1,"综合管理类(A类）",11,"大学本科及以上","学士及以上学位",null,"工商管理类","工商管理（一级学科）","定向招聘2024年度高校毕业生"]
["33","毕节市七星关区乡镇统计服务中心（派驻长春堡镇工作人员）","0027","0857-8345111","全额事业","工作人员","01","管理岗位",1,"综合管理类(A类）",11,"大学本科及以上","学士及以上学位",null,"统计学类","统计学（二级学科）、数量经济学（二级学科）","定向招聘七星关区户籍（含大方县托管的乡镇街道）考生"]
["34","毕节市七星关区乡镇统计服务中心（派驻何官屯镇工作人员）","0028","0857-8345111","全额事业","工作人员","01","管理岗位",1,"综合管理类(A类）",11,"大学本科及以上","学士及以上学位",null,"统计学类","统计学（二级学科）、数量经济学（二级学科）","定向招聘七星关区户籍（含大方县托管的乡镇街道）考生"]
["35","毕节市七星关区乡镇统计服务中心（派驻田坝镇工作人员）","0029","0857-8345111","全额事业","工作人员","01","管理岗位",1,"综合管理类(A类）",11,"大学本科及以上","学士及以上学位",null,"统计学类","统计学（二级学科）、数量经济学（二级学科）","定向招聘七星关区户籍（含大方县托管的乡镇街道）考生"]
["36","毕节市七星关区乡镇统计服务中心（派驻野角乡工作人员）","0030","0857-8345111","全额事业","工作人员","01","管理岗位",1,"综合管理类(A类）",11,"大学本科及以上","学士及以上学位",null,"统计学类","统计学（二级学科）、数量经济学（二级学科）","定向招聘七星关区户籍（含大方县托管的乡镇街道）考生"]
["37","毕节市七星关区乡镇统计服务中心（派驻大银镇工作人员）","0031","0857-8345111","全额事业","工作人员","01","管理岗位",1,"综合管理类(A类）",11,"大学本科及以上","学士及以上学位",null,"统计学类","统计学（二级学科）、数量经济学（二级学科）","定向招聘七星关区户籍（含大方县托管的乡镇街道）考生"]
["38","毕节市七星关区农村饮水安全服务中心","0032","0857-8285521","全额事业","工作人员","01","管理岗位",1,"综合管理类(A类）",11,"大学本科及以上","学士及以上学位",null,"水利类","水利工程（一级学科）","定向招聘七星关区户籍（含大方县托管的乡镇街道）考生"]
["39","大方县毛栗水库管理所","0033","0857-8285521","全额事业","工作人员","01","专业技术岗位",3,"综合管理类(A类）",11,"大学本科及以上","学士及以上学位",null,"水利类","水利工程（一级学科）",""]
["40","毕节市七星关区河道管理服务中心","0034","0857-8285521","全额事业","工作人员","01","专业技术岗位",1,"综合管理类(A类）",11,"大学本科及以上","学士及以上学位",null,"水利类","水利工程（一级学科）","定向招聘七星关区户籍（含大方县托管的乡镇街道）考生"]
["41","毕节市七星关区水资源服务中心","0035","0857-8285521","全额事业","工作人员","01","专业技术岗位",1,"综合管理类(A类）",11,"大学本科及以上","学士及以上学位",null,"水利类","水利工程（一级学科）","定向招聘七星关区户籍（含大方县托管的乡镇街道）考生"]
["42","毕节市七星关区水土保持监测中心","0036","0857-8285521","全额事业","工作人员","01","专业技术岗位",1,"综合管理类(A类）",11,"大学本科及以上","学士及以上学位",null,"水利类","水利工程（一级学科）","定向招聘七星关区户籍（含大方县托管的乡镇街道）考生"]
["43","毕节市七星关区宋官水库服务中心","0037","0857-8285521","全额事业","工作人员","01","专业技术岗位",1,"综合管理类(A类）",11,"大学本科及以上","学士及以上学位",null,"中国语言文学类","中国语言文学（一级学科）","定向招聘七星关区户籍（含大方县托管的乡镇街道）考生"]
["44","毕节市七星关区流浪乞讨人员救助站","0038","0857-8303180","全额事业","工作人员","01","管理岗位",4,"综合管理类(A类）",11,"大学本科及以上","学士及以上学位",null,"中国语言文学类","中国语言文学（一级学科）",""]
["45","毕节市七星关区未成年人救助保护中心","0039","0857-8303180","全额事业","工作人员","01","管理岗位",1,"综合管理类(A类）",11,"大学本科及以上","学士及以上学位",null,"中国语言文学类","中国语言文学（一级学科）",""]
["46","毕节市七星关区殡葬事务服务中心","0040","0857-8303180","全额事业","工作人员","01","管理岗位",1,"综合管理类(A类）",11,"大学本科及以上","学士及以上学位",null,"中国语言文学类","中国语言文学（一级学科）",""]
["47","毕节市七星关区社会工作服务中心派驻田坝桥镇","0041","0857-8303180","全额事业","工作人员","01","管理岗位",1,"综合管理类(A类）",11,"大学本科及以上","学士及以上学位",null,"不限专业","不限专业","定向招聘七星关区户籍（含大方县托管的乡镇街道）考生"]
["48","毕节市七星关区社会工作服务中心派驻水箐镇","0042","0857-8303180","全额事业","工作人员","01","管理岗位",1,"综合管理类(A类）",11,"大学本科及以上","学士及以上学位",null,"不限专业","不限专业","定向招聘七星关区户籍（含大方县托管的乡镇街道）考生"]
["49","毕节市七星关区社会工作服务中心派驻撒拉溪镇","0043","0857-8303180","全额事业","工作人员","01","管理岗位",1,"综合管理类(A类）",11,"大学本科及以上","学士及以上学位",null,"不限专业","不限专业","定向招聘七星关区户籍（含大方县托管的乡镇街道）考生"]
["50","毕节市七星关区社会工作服务中心派驻清水铺镇","0044","0857-8303180","全额事业","工作人员","01","管理岗位",1,"综合管理类(A类）",11,"大学本科及以上","学士及以上学位",null,"不限专业","不限专业","定向招聘七星关区户籍（含大方县托管的乡镇街道）考生"]
["51","毕节市七星关区社会工作服务中心派驻普宜镇","0045","0857-8303180","全额事业","工作人员","01","管理岗位",1,"综合管理类(A类）",11,"大学本科及以上","学士及以上学位",null,"不限专业","不限专业","定向招聘七星关区户籍（含大方县托管的乡镇街道）考生"]
["52","毕节市七星关区社会工作服务中心派驻龙场营镇","0046","0857-8303180","全额事业","工作人员","01","管理岗位",1,"综合管理类(A类）",11,"大学本科及以上","学士及以上学位",null,"不限专业","不限专业","定向招聘七星关区户籍（含大方县托管的乡镇街道）考生"]
["53","毕节市七星关区社会工作服务中心派驻亮岩镇","0047","0857-8303180","全额事业","工作人员","01","管理岗位",1,"综合管理类(A类）",11,"大学本科及以上","学士及以上学位",null,"不限专业","不限专业","定向招聘七星关区户籍（含大方县托管的乡镇街道）考生"]
["54","毕节市七星关区社会工作服务中心派驻海子街镇","0048","0857-8303180","全额事业","工作人员","01","专业技术岗位",1,"综合管理类(A类）",11,"大学本科及以上","学士及以上学位",null,"社会工作、社会学、劳动与社会保障、劳动和社会保障","社会学、社会工作、人口学、人力学、社会保障",""]
["55","毕节市七星关区社会工作服务中心派驻大河乡","0049","0857-8303180","全额事业","工作人员","01","专业技术岗位",1,"综合管理类(A类）",11,"大学本科及以上","学士及以上学位",null,"社会工作、社会学、劳动与社会保障、劳动和社会保障","社会学、社会工作、人口学、人力学、社会保障",""]
["56","毕节市七星关区房屋征收补偿服务中心","0050","0857-8306705","全额事业","工作人员","01","管理岗位",3,"综合管理类(A类）",11,"大学本科及以上","学士及以上学位",null,"不限专业","不限专业","定向招聘七星关区户籍（含大方县托管的乡镇街道）考生"]
["57","毕节市七星关区医保基金运行服务中心","0051","0857-8286613","全额事业","工作人员","01","管理岗位",1,"综合管理类(A类）",11,"大学本科及以上","学士及以上学位",null,"统计学类","统计学（二级学科）、数量经济学（二级学科）",""]
["58","毕节市七星关区医保基金运行服务中心","0051","0857-8286613","全额事业","工作人员","02","管理岗位",1,"综合管理类(A类）",11,"大学本科及以上","学士及以上学位",null,"中国语言文学类","中国语言文学（一级学科）",""]
["59","毕节市七星关区医保基金运行服务中心","0051","0857-8286613","全额事业","工作人员","03","管理岗位",1,"综合管理类(A类）",11,"大学本科及以上","学士及以上学位",null,"医学（学科门类）","医学（学科门类）",""]
["60","毕节市七星关区医疗保障中心","0052","0857-8286613","全额事业","工作人员","01","专业技术岗位",1,"综合管理类(A类）",11,"大学本科及以上","学士及以上学位",null,"医学（学科门类）","医学（学科门类）","定向招聘2024年度高校毕业生"]
["61","毕节市七星关区医疗保障中心","0052","0857-8286613","全额事业","工作人员","02","专业技术岗位",1,"综合管理类(A类）",11,"大学本科及以上","学士及以上学位",null,"医学（学科门类）","医学（学科门类）","定向招聘2024年度高校毕业生"]
["62","毕节市七星关区医疗保障中心","0052","0857-8286613","全额事业","工作人员","03","专业技术岗位",1,"综合管理类(A类）",11,"大学本科及以上","学士及以上学位",null,"医学（学科门类）","医学（学科门类）","定向招聘2024年度高校毕业生"]
["63","毕节市七星关区医疗保障中心","0052","0857-8286613","全额事业","工作人员","04","专业技术岗位",1,"综合管理类(A类）",11,"大学本科及以上","学士及以上学位",null,"医学（学科门类）","医学（学科门类）",""]
["64","毕节市七星关区森林资源保护中心","0053","0857-8345280","全额事业","工作人员","01","管理岗位",1,"综合管理类(A类）",11,"大学本科及以上","学士及以上学位",null,"不限专业","不限专业","定向招聘2024年度高校毕业生"]
["65","毕节市七星关区森林资源保护中心","0053","0857-8345280","全额事业","工作人员","02","管理岗位",1,"综合管理类(A类）",11,"大学本科及以上","学士及以上学位",null,"林学类、 植物生产类、自然保护与环境生态类","林学（一级学科）",""]
["66","长江上游珍稀特有鱼类毕节市七星关区自然保护区湾潭服务中心","0054","0857-8345280","全额事业","工作人员","01","专业技术岗位",1,"综合管理类(A类）",11,"大学本科及以上","学士及以上学位",null,"自然保护区建设与管理、野生动物与自然保护区管理、","野生动植物保护与利用",""]
["67","毕节市七星关区天然林保护中心","0055","0857-8345280","全额事业","工作人员","01","专业技术岗位",1,"综合管理类(A类）",11,"大学本科及以上","学士及以上学位",null,"测绘工程、地图与地理信息系统、工程测量、地理信息科学","地图制图学与地理信息工程",""]
["68","毕节市七星关区林草资源服务站","0056","0857-8345280","全额事业","工作人员","01","专业技术岗位",1,"综合管理类(A类）",11,"大学本科及以上","学士及以上学位",null,"林学、 森林保护、植物科学与技术、森林消防、森林资源保护、水土保持与荒漠化防治","植物病理学、森林培育、森林保护学、森林经理学、野生动植物保护与利用、水土保持与荒漠化防治",""]
["69","毕节市七星关区林业产业发展服务中心","0057","0857-8345280","全额事业","工作人员","01","管理岗位",1,"综合管理类(A类）",11,"大学本科及以上","学士及以上学位",null,"林学类、 植物生产类、自然保护与环境生态类","林学（一级学科）",""]
["70","毕节市七星关区森林病虫检疫防治站","0058","0857-8345280","全额事业","工作人员","01","专业技术岗位",1,"综合管理类(A类）",11,"大学本科及以上","学士及以上学位",null,"林学、 森林保护、植物科学与技术、森林消防、森林资源保护、水土保持与荒漠化防治","植物病理学、森林培育、森林保护学、森林经理学、野生动植物保护与利用、水土保持与荒漠化防治",""]
["71","毕节市七星关区造林绿化中心","0059","0857-8345280","全额事业","工作人员","01","专业技术岗位",1,"综合管理类(A类）",11,"大学本科及以上","学士及以上学位",null,"林学、 森林保护、植物科学与技术、森林消防、森林资源保护、水土保持与荒漠化防治","植物病理学、森林培育、森林保护学、森林经理学、野生动植物保护与利用、水土保持与荒漠化防治",""]
["72","毕节市七星关区白马山国有林场","0060","0857-8345280","全额事业","工作人员","01","管理岗位",1,"综合管理类(A类）",11,"大学本科及以上","学士及以上学位",null,"林学类、 植物生产类、自然保护与环境生态类","林学（一级学科）","定向招聘2024年度高校毕业生"]
["73","毕节市七星关区白马山国有林场","0060","0857-8345280","全额事业","工作人员","02","专业技术岗位",1,"综合管理类(A类）",11,"大学本科及以上","学士及以上学位",null,"工商管理类","工商管理（一级学科）",""]
["74","毕节市七星关区白马山国有林场","0060","0857-8345280","全额事业","工作人员","03","专业技术岗位",3,"综合管理类(A类）",11,"大学本科及以上","学士及以上学位",null,"林学、 森林保护、植物科学与技术、森林消防、森林资源保护、水土保持与荒漠化防治","植物病理学、森林培育、森林保护学、森林经理学、野生动植物保护与利用、水土保持与荒漠化防治",""]
["75","毕节市七星关区拱拢坪国有林场","0061","0857-8345280","全额事业","工作人员","01","专业技术岗位",1,"综合管理类(A类）",11,"大学本科及以上","学士及以上学位",null,"林学、 森林保护、植物科学与技术、森林消防、森林资源保护、水土保持与荒漠化防治","植物病理学、森林培育、森林保护学、森林经理学、野生动植物保护与利用、水土保持与荒漠化防治","定向招聘2024年度高校毕业生"]
["76","毕节市七星关区拱拢坪国有林场","0061","0857-8345281","全额事业","工作人员","02","专业技术岗位",1,"综合管理类(A类）",11,"大学本科及以上","学士及以上学位",null,"工商管理类","工商管理（一级学科）",""]
["77","毕节市七星关区拱拢坪国有林场","0061","0857-8345282","全额事业","工作人员","03","专业技术岗位",1,"综合管理类(A类）",11,"大学本科及以上","学士及以上学位",null,"林学、 森林保护、植物科学与技术、森林消防、森林资源保护、水土保持与荒漠化防治","植物病理学、森林培育、森林保护学、森林经理学、野生动植物保护与利用、水土保持与荒漠化防治",""]
["78","毕节市七星关区拱拢坪国有林场","0061","0857-8345283","全额事业","工作人员","04","管理岗位",1,"综合管理类(A类）",11,"大学专科及以上",null,"不限专业","不限专业","不限专业","定向招聘2024年度高校毕业生"]
["79","毕节市七星关区监所医院","0062","0857-8229816","全额事业","工作人员","01","管理岗位",2,"综合管理类(A类）",11,"大学本科及以上","学士及以上学位",null,"中国语言文学类","中国语言文学（一级学科）",""]
["80","毕节市七星关区监所医院","0062","0857-8229816","全额事业","工作人员","02","专业技术岗位",1,"医疗卫生类（E类）西医临床岗位",52,"大学专科及以上",null,"临床医学","临床医学","临床医学","须取得执业医师资格证及以上"]
["81","毕节市七星关区禁毒服务中心","0063","0857-8229816","全额事业","工作人员","01","管理岗位",1,"综合管理类(A类）",11,"大学本科及以上","学士及以上学位",null,"中国语言文学类","中国语言文学（一级学科）",""]
["82","毕节市七星关区千溪乡人力资源和社会保障服务中心","0064","0857-8946678","全额事业","工作人员","01","管理岗位",1,"综合管理类(A类）",11,"大学本科及以上","学士及以上学位",null,"不限专业","不限专业","定向招聘七星关区户籍（含大方县托管的乡镇街道）考生"]
["83","毕节市七星关区团结乡人力资源和社会保障服务中心","0065","0857-8946678","全额事业","工作人员","01","管理岗位",1,"综合管理类(A类）",11,"大学本科及以上","学士及以上学位",null,"不限专业","不限专业","定向招聘七星关区户籍（含大方县托管的乡镇街道）考生"]
["84","毕节市七星关区大屯乡人力资源和社会保障服务中心","0066","0857-8946678","全额事业","工作人员","01","管理岗位",1,"综合管理类(A类）",11,"大学专科及以上",null,"不限专业","不限专业","不限专业","定向招聘七星关区户籍（含大方县托管的乡镇街道）考生"]
["85","毕节市七星关区龙场营镇人力资源和社会保障服务中心","0067","0857-8946678","全额事业","工作人员","01","管理岗位",2,"综合管理类(A类）",11,"大学专科及以上",null,"不限专业","不限专业","不限专业","定向招聘七星关区户籍（含大方县托管的乡镇街道）考生"]
["86","毕节市七星关区普宜镇人力资源和社会保障服务中心","0068","0857-8946678","全额事业","工作人员","01","管理岗位",1,"综合管理类(A类）",11,"大学本科及以上","学士及以上学位",null,"不限专业","不限专业","定向招聘七星关区户籍（含大方县托管的乡镇街道）考生"]
["87","毕节市七星关区田坝桥镇人力资源和社会保障服务中心","0069","0857-8946678","全额事业","工作人员","01","管理岗位",1,"综合管理类(A类）",11,"大学本科及以上","学士及以上学位",null,"不限专业","不限专业","定向招聘七星关区户籍（含大方县托管的乡镇街道）考生"]
["88","毕节市七星关区清水铺镇人力资源和社会保障服务中心","0070","0857-8946678","全额事业","工作人员","01","管理岗位",1,"综合管理类(A类）",11,"大学本科及以上","学士及以上学位",null,"不限专业","不限专业","定向招聘七星关区户籍（含大方县托管的乡镇街道）考生"]
["89","毕节市七星关区长春堡镇人力资源和社会保障服务中心","0071","0857-8946678","全额事业","工作人员","01","管理岗位",1,"综合管理类(A类）",11,"大学本科及以上","学士及以上学位",null,"不限专业","不限专业","定向招聘七星关区户籍（含大方县托管的乡镇街道）考生"]
["90","毕节市七星关区杨家湾人力资源和社会保障服务中心","0072","0857-8946678","全额事业","工作人员","01","管理岗位",1,"综合管理类(A类）",11,"大学本科及以上","学士及以上学位",null,"不限专业","不限专业","定向招聘七星关区户籍（含大方县托管的乡镇街道）考生"]
["91","毕节市七星关区燕子口人力资源和社会保障服务中心","0073","0857-8946678","全额事业","工作人员","01","管理岗位",2,"综合管理类(A类）",11,"大学本科及以上","学士及以上学位",null,"不限专业","不限专业","定向招聘七星关区户籍（含大方县托管的乡镇街道）考生"]
["92","毕节市七星关区放珠镇人力资源和社会保障服务中心","0074","0857-8946678","全额事业","工作人员","01","管理岗位",1,"综合管理类(A类）",11,"大学本科及以上","学士及以上学位",null,"不限专业","不限专业","定向招聘七星关区户籍（含大方县托管的乡镇街道）考生"]
["93","毕节市七星关区生机镇人力资源和社会保障服务中心","0075","0857-8946678","全额事业","工作人员","01","管理岗位",1,"综合管理类(A类）",11,"大学本科及以上","学士及以上学位",null,"不限专业","不限专业","定向招聘七星关区户籍（含大方县托管的乡镇街道）考生"]
["94","毕节市七星关区阿市乡人力资源和社会保障服务中心","0076","0857-8946678","全额事业","工作人员","01","管理岗位",1,"综合管理类(A类）",11,"大学本科及以上","学士及以上学位",null,"不限专业","不限专业","定向招聘七星关区户籍（含大方县托管的乡镇街道）考生"]
["95","毕节市七星关区田坎乡卫生院","0077","0857-8231959","全额事业","工作人员","01","专业技术岗位",1,"医疗卫生类（E类）药剂岗位",53,"大学专科及以上",null,"药学、中药、药物制剂技术","药学、中药学、药物制剂","药学、药剂学、药理学、中药学、药物分析学","须取得药士资格证及以上"]
["96","毕节市七星关区田坎乡卫生院","0077","0857-8231959","全额事业","工作人员","02","专业技术岗位",1,"医疗卫生类（E类）护理岗位",54,"大学专科及以上",null,"护理","护理学、护理","护理学、护理","须取得护士资格证及以上"]
["97","毕节市七星关区大新桥街道社区卫生服务中心","0078","0857-8231959","全额事业","工作人员","01","专业技术岗位",1,"医疗卫生类（E类）西医临床岗位",52,"大学本科及以上","学士及以上学位",null,"临床医学","内科学专业、外科学专业、妇产科学专业、儿科学专业、神经病学专业","须取得执业医师资格证"]
["98","大方县归化街道社区卫生服务中心","0079","0857-8231959","全额事业","工作人员","01","专业技术岗位",1,"医疗卫生类（E类）医学技术岗位",55,"大学本科及以上","学士及以上学位",null,"医学影像学、医学影像技术","影像医学与核医学","具有放射医学技术师资格证及以上可放宽到大专学历，不限学位，大专专业要求为医学影像技术"]
["99","大方县归化街道社区卫生服务中心","0079","0857-8231959","全额事业","工作人员","02","专业技术岗位",1,"医疗卫生类（E类）医学技术岗位",55,"大学本科及以上","学士及以上学位",null,"医学检验技术、医学检验","临床检验诊断学","具有临床医学检验技术师及以上可放宽至大专学历，不限学位，大专专业要求是医学检验技术"]
["100","大方县归化街道社区卫生服务中心","0079","0857-8231959","全额事业","工作人员","03","专业技术岗位",1,"医疗卫生类（E类）中医临床岗位",51,"大学本科及以上","学士及以上学位",null,"中医、中医学、中西医临床医学、针灸推拿学","中医、中医学、针灸推拿学、中西医结合基础、中西医结合临床、中医诊断学、中医内科学、中医外科学、中医骨伤科学、中医妇科学、中医儿科学","具有执业医师资格证及以上放宽到大专学历，大专专业要求是中西医结合、中医学、针灸推拿"]
["101","大方县归化街道社区卫生服务中心","0079","0857-8231959","全额事业","工作人员","04","专业技术岗位",1,"综合管理类(A类）",11,"大学本科及以上","学士及以上学位",null,"药学、药物制剂","药学、药剂学、药理学、药物分析学",""]
["102","大方县归化街道社区卫生服务中心","0079","0857-8231959","全额事业","工作人员","05","专业技术岗位",1,"医疗卫生类（E类）西医临床岗位",52,"大学本科及以上","学士及以上学位",null,"临床医学","临床医学、内科学、儿科学、老年医学、神经病学、精神病与精神卫生学、外科学、妇产科学、眼科学、耳鼻咽喉科学、肿瘤学、麻醉学、急诊医学","具有执业医师资格证及以上可放宽至大专，不限学位,大专专业要求为临床医学"]
["103","毕节市七星关区观音桥街道党群服务中心","0080","0857-8337554","全额事业","工作人员","01","管理岗位",1,"综合管理类(A类）",11,"大学本科及以上","学士及以上学位",null,"中国语言文学类","中国语言文学（一级学科）",""]
["104","毕节市七星关区观音桥街道公共事务服务中心","0081","0857-8337554","全额事业","工作人员","01","专业技术岗位",1,"综合管理类(A类）",11,"大学本科及以上","学士及以上学位",null,"社会保障、民政管理、劳动与社会保障、人力资源管理","社会保障、民政管理、劳动与社会保障、人力资源管理",""]
["105","毕节市七星关区观音桥街道网格化管理服务中心","0082","0857-8337554","全额事业","工作人员","01","管理岗位",1,"综合管理类(A类）",11,"大学专科及以上",null,"不限专业","不限专业","不限专业","定向招聘2024年度高校毕业生"]
["106","毕节市七星关区碧阳街道公共事务服务中心","0083","0857-8330585","全额事业","工作人员","01","专业技术岗位",1,"综合管理类(A类）",11,"大学本科及以上","学士及以上学位",null,"不限专业","不限专业","定向招聘七星关区户籍（含大方县托管的乡镇街道）考生"]
["107","毕节市七星关区碧阳街道网格化管理服务中心","0084","0857-8330585","全额事业","工作人员","01","管理岗位",1,"综合管理类(A类）",11,"大学专科及以上",null,"不限专业","不限专业","不限专业","定向招聘2024年度高校毕业生"]
["108","毕节市七星关区甘河街道就业创业服务中心","0085","0857-8306186","全额事业","工作人员","01","管理岗位",2,"综合管理类(A类）",11,"大学本科及以上","学士及以上学位",null,"不限专业","不限专业","定向招聘2024年度高校毕业生"]
["109","毕节市七星关区甘河街道公共事业服务中心","0086","0857-8306186","全额事业","工作人员","01","专业技术岗位",1,"综合管理类(A类）",11,"大学本科及以上","学士及以上学位",null,"不限专业","不限专业","定向招聘七星关区户籍（含大方县托管的乡镇街道）考生"]
["110","毕节市七星关区甘河街道农业综合服务中心","0087","0857-8306186","全额事业","工作人员","01","专业技术岗位",1,"综合管理类(A类）",11,"大学本科及以上","学士及以上学位",null,"动物科学、动物医学、动植物检疫、畜牧兽医","动物遗传育种与繁殖、动物营养与饲料科学、基础兽医学、预防兽医学、临床兽医学",""]
["111","毕节市七星关区柏杨林街道财政所","0088","0857-8279676","全额事业","工作人员","01","管理岗位",1,"综合管理类(A类）",11,"大学本科及以上","学士及以上学位",null,"工商管理类","工商管理（一级学科）",""]
["112","毕节市七星关区柏杨林街道就业创业服务中心","0089","0857-8279676","全额事业","工作人员","01","管理岗位",2,"综合管理类(A类）",11,"大学本科及以上","学士及以上学位",null,"不限专业","不限专业","定向招聘七星关区户籍（含大方县托管的乡镇街道）考生"]
["113","毕节市七星关区大新桥街道党群服务中心","0090","0857-8334662","全额事业","工作人员","01","管理岗位",1,"综合管理类(A类）",11,"大学专科及以上",null,"不限专业","不限专业","不限专业","定向招聘七星关区户籍（含大方县托管的乡镇街道）考生"]
["114","毕节市七星关区大新桥街道财政所","0091","0857-8334662","全额事业","工作人员","01","管理岗位",1,"综合管理类(A类）",11,"大学本科及以上","学士及以上学位",null,"工商管理类","工商管理（一级学科）",""]
["115","毕节市七星关区大新桥街道公共事务服务中心","0092","0857-8334662","全额事业","工作人员","01","专业技术岗位",3,"综合管理类(A类）",11,"大学本科及以上",null,null,"不限专业","不限专业","定向招聘七星关区户籍（含大方县托管的乡镇街道）考生"]
["116","毕节市七星关区碧海街道公共事务服务中心","0093","0857-8016090","全额事业","工作人员","01","专业技术岗位",1,"综合管理类(A类）",11,"大学本科及以上","学士及以上学位",null,"不限专业","不限专业","定向招聘七星关区户籍（含大方县托管的乡镇街道）考生"]
["117","毕节市七星关区碧海街道网格化管理服务中心","0094","0857-8016090","全额事业","工作人员","01","管理岗位",1,"综合管理类(A类）",11,"大学本科及以上","学士及以上学位",null,"不限专业","不限专业","定向招聘七星关区户籍（含大方县托管的乡镇街道）考生"]
["118","毕节市七星关区碧海街道党群服务中心","0095","0857-8016090","全额事业","工作人员","01","管理岗位",1,"综合管理类(A类）",11,"大学本科及以上","学士及以上学位",null,"不限专业","不限专业","定向招聘七星关区户籍（含大方县托管的乡镇街道）考生"]
["119","毕节市七星关区市东街道党群服务中心","0096","0857—8287659","全额事业","工作人员","01","管理岗位",1,"综合管理类(A类）",11,"大学本科及以上","学士及以上学位",null,"不限专业","不限专业","定向招聘七星关区户籍（含大方县托管的乡镇街道）考生"]
["120","毕节市七星关区洪山街道党群服务中心","0097","0857-8339694","全额事业","工作人员","01","管理岗位",1,"综合管理类(A类）",11,"大学本科及以上","学士及以上学位",null,"不限专业","不限专业","定向招聘七星关区户籍（含大方县托管的乡镇街道）考生"]
["121","大方县归化街道党群服务中心","0098","0857-5768168","全额事业","工作人员","01","管理岗位",1,"综合管理类(A类）",11,"大学专科及以上",null,"不限专业","不限专业","不限专业","定向招聘七星关区户籍（含大方县托管的乡镇街道）考生"]
["122","大方县归化街道农业综合服务中心","0099","0857-5768168","全额事业","工作人员","01","专业技术岗位",1,"综合管理类(A类）",11,"大学本科及以上",null,null,"农学、园艺、 种子科学与工程、  植物保护、植物科学与技术、设施农业科学与工程","植物营养学、果树学、蔬菜学、茶学、土壤学、农药学","定向招聘2024年度高校毕业生"]
["123","大方县归化街道农业综合服务中心","0099","0857-5768168","全额事业","工作人员","02","专业技术岗位",1,"综合管理类(A类）",11,"大学本科及以上",null,null,"农学、园艺、 种子科学与工程、  植物保护、植物科学与技术、设施农业科学与工程","植物营养学、果树学、蔬菜学、茶学、土壤学、农药学",""]
["124","大方县归化街道财政所","0100","0857-5768168","全额事业","工作人员","01","专业技术岗位",1,"综合管理类(A类）",11,"大学本科及以上",null,null,"工商管理类","工商管理（一级学科）","定向招聘2024年度高校毕业生"]
["125","大方县归化街道网格化服务管理中心","0101","0857-5768168","全额事业","工作人员","01","管理岗位",2,"综合管理类(A类）",11,"大学本科及以上",null,null,"不限专业","不限专业","定向招聘七星关区户籍（含大方县托管的乡镇街道）考生"]
["126","大方县归化街道公共事务服务中心","0102","0857-5768168","全额事业","工作人员","01","管理岗位",1,"综合管理类(A类）",11,"大学本科及以上",null,null,"不限专业","不限专业","定向招聘七星关区户籍（含大方县托管的乡镇街道）考生"]
["127","大方县归化街道公共事务服务中心","0102","0857-8462003","全额事业","工作人员","02","管理岗位",1,"综合管理类(A类）",11,"大学专科及以上",null,"不限专业","不限专业","不限专业","定向招聘七星关区在任村（社区）党支部书记、副书记、村委会主任、副主任"]
["128","毕节市七星关区朱昌镇财政所","0103","0857-5463377","全额事业","工作人员","01","专业技术岗位",1,"综合管理类(A类）",11,"大学本科及以上","学士及以上学位",null,"工商管理类","工商管理（一级学科）","定向招聘2024年度高校毕业生"]
["129","大方县双山镇财政所","0104","0857-8616378","全额事业","工作人员","01","专业技术岗位",1,"综合管理类(A类）",11,"大学本科及以上",null,null,"工商管理类","工商管理（一级学科）","定向招聘2024年度高校毕业生"]
["130","毕节市七星关区八寨镇财政所","0105","0857-8616378","全额事业","工作人员","01","管理岗位",1,"综合管理类(A类）",11,"大学本科及以上","学士及以上学位",null,"工商管理类","工商管理（一级学科）"]
["131","毕节市七星关区八寨镇规划建设环保站","0106","0857-8912006","全额事业","工作人员","01","管理岗位",1,"综合管理类(A类）",11,"大学专科及以上",null,"不限专业","不限专业","不限专业","定向招聘服务于七星关区（含大方县托管乡镇街道）“三支一扶”、“选聘高校毕业生到村任职计划”（一村一名大学生工程）、“西部计划”人员，生源地或兵源地为七星关区（含大方县托管的乡镇街道）大学生退役士兵，驻毕部队随军家属"]
["132","毕节市七星关区杨家湾镇安全生产监督管理站","0107","0857-8912006","全额事业","工作人员","01","专业技术岗位",1,"综合管理类(A类）",11,"大学本科及以上","学士及以上学位",null,"不限专业","不限专业","定向招聘2024年度高校毕业生"]
["133","毕节市七星关区杨家湾镇财政所","0108","0857-8703001","全额事业","工作人员","01","专业技术岗位",1,"综合管理类(A类）",11,"大学本科及以上","学士及以上学位",null,"工商管理类","工商管理（一级学科）","定向招聘2024年度高校毕业生"]
["134","毕节市七星关区生机镇安全生产监督管理站","0109","0857-8703001","全额事业","工作人员","01","专业技术岗位",1,"综合管理类(A类）",11,"大学专科及以上",null,"不限专业","不限专业","不限专业","定向招聘服务于七星关区（含大方县托管乡镇街道）“三支一扶”、“选聘高校毕业生到村任职计划”（一村一名大学生工程）、“西部计划”人员，生源地或兵源地为七星关区（含大方县托管的乡镇街道）大学生退役士兵，限七星关区户籍（含大方县托管的乡镇街道）考生"]
["135","毕节市七星关区生机镇水务站","0110","0857-8703002","全额事业","工作人员","01","管理岗位",1,"综合管理类(A类）",11,"大学本科及以上","学士及以上学位",null,"水利类","水利工程（一级学科）","定向招聘七星关区户籍（含大方县托管的乡镇街道）考生"]
["136","毕节市七星关区生机镇乡村振兴服务中心","0111","0857-8703002","全额事业","工作人员","01","专业技术岗位",1,"综合管理类(A类）",11,"大学本科及以上","学士及以上学位",null,"不限专业","不限专业","定向招聘2024年度高校毕业生"]
["137","毕节市七星关区生机镇综治中心","0112","0857-8702029","全额事业","工作人员","01","管理岗位",1,"综合管理类(A类）",11,"大学专科及以上",null,"不限专业","不限专业","不限专业","定向招聘服务于七星关区（含大方县托管乡镇街道）“三支一扶”、“选聘高校毕业生到村任职计划”（一村一名大学生工程）、“西部计划”人员，生源地或兵源地为七星关区（含大方县托管的乡镇街道）大学生退役士兵，限七星关区户籍（含大方县托管的乡镇街道）考生"]
["138","毕节市七星关区清水铺镇乡村振兴服务中心","0113","0857-8702029","全额事业","工作人员","01","管理岗位",3,"综合管理类(A类）",11,"大学专科及以上",null,"不限专业","不限专业","不限专业","定向招聘服务于七星关区（含大方县托管乡镇街道）“三支一扶”、“选聘高校毕业生到村任职计划”（一村一名大学生工程）、“西部计划”人员，生源地或兵源地为七星关区（含大方县托管的乡镇街道）大学生退役士兵，限七星关区户籍（含大方县托管的乡镇街道）考生"]
["139","毕节市七星关区清水铺镇财政所","0114","0857-8702029","全额事业","工作人员","01","专业技术岗位",1,"综合管理类(A类）",11,"大学本科及以上","学士及以上学位",null,"工商管理类","工商管理（一级学科）","定向招聘2024年度高校毕业生"]
["140","毕节市七星关区清水铺镇村镇建设规划站","0115","0857-8913008","全额事业","工作人员","01","专业技术岗位",1,"综合管理类(A类）",11,"大学本科及以上","学士及以上学位",null,"城乡规划、资源环境与城乡规划管理、 人文地理与城乡规划、城镇规划与建设","城乡规划、资源环境与城乡规划管理、人文地理与城乡规划","定向招聘2024年度高校毕业生"]
["141","毕节市七星关区放珠镇乡村振兴服务中心","0116","0857-8913008","全额事业","工作人员","01","管理岗位",1,"综合管理类(A类）",11,"大学本科及以上","学士及以上学位",null,"不限专业","不限专业","定向招聘七星关区户籍（含大方县托管的乡镇街道）考生"]
["142","毕节市七星关区放珠镇乡村振兴服务中心","0116","0857-8413001","全额事业","工作人员","02","管理岗位",1,"综合管理类(A类）",11,"大学专科及以上",null,"不限专业","不限专业","不限专业","定向招聘服务于七星关区（含大方县托管乡镇街道）“三支一扶”、“选聘高校毕业生到村任职计划”（一村一名大学生工程）、“西部计划”人员，生源地或兵源地为七星关区（含大方县托管的乡镇街道）大学生退役士兵，驻毕部队随军家属"]
["143","毕节市七星关区对坡镇乡村振兴服务中心","0117","0857-8413001","全额事业","工作人员","01","专业技术岗位",1,"综合管理类(A类）",11,"大学专科及以上",null,"不限专业","不限专业","不限专业","定向招聘服务于七星关区（含大方县托管乡镇街道）“三支一扶”、“选聘高校毕业生到村任职计划”（一村一名大学生工程）、“西部计划”人员，生源地或兵源地为七星关区（含大方县托管的乡镇街道）大学生退役士兵，限七星关区户籍（含大方县托管的乡镇街道）考生"]
["144","毕节市七星关区对坡镇乡村振兴服务中心","0117","0857-8413001","全额事业","工作人员","02","管理岗位",1,"综合管理类(A类）",11,"大学本科及以上","学士及以上学位",null,"中国语言文学类","中国语言文学（一级学科）",""]
["145","毕节市七星关区对坡镇财政所","0118","0857-8773044","全额事业","工作人员","01","专业技术岗位",1,"综合管理类(A类）",11,"大学本科及以上","学士及以上学位",null,"工商管理类","工商管理（一级学科）","定向招聘2024年度高校毕业生"]
["146","毕节市七星关区亮岩镇财政所","0119","0857-8773044","全额事业","工作人员","01","专业技术岗位",1,"综合管理类(A类）",11,"大学本科及以上",null,null,"工商管理类","工商管理（一级学科）","定向招聘2024年度高校毕业生"]
["147","毕节市七星关区亮岩镇林业站","0120","0857-8733304","全额事业","工作人员","01","管理岗位",1,"综合管理类(A类）",11,"大学专科及以上",null,"林业技术类","林学类、 植物生产类、自然保护与环境生态类","林学（一级学科）","定向招聘七星关区户籍（含大方县托管的乡镇街道）考生"]
["148","毕节市七星关区大银镇财政所","0121","0857-8733304","全额事业","工作人员","01","管理岗位",1,"综合管理类(A类）",11,"大学本科及以上","学士及以上学位",null,"工商管理类","工商管理（一级学科）",""]
["149","毕节市七星关区大银镇农业服务中心","0122","0857-8733304","全额事业","工作人员","01","专业技术岗位",1,"综合管理类(A类）",11,"大学本科及以上","学士及以上学位",null,"农学、园艺、 种子科学与工程、  植物保护、植物科学与技术、设施农业科学与工程","植物营养学、果树学、蔬菜学、茶学、土壤学、农药学","定向招聘2024年度高校毕业生"]
["150","毕节市七星关区大银镇农业服务中心","0122","0857-8412017","全额事业","工作人员","02","专业技术岗位",1,"综合管理类(A类）",11,"大学本科及以上",null,null,"农学、园艺、 种子科学与工程、  植物保护、植物科学与技术、设施农业科学与工程","植物营养学、果树学、蔬菜学、茶学、土壤学、农药学","定向招聘七星关区户籍（含大方县托管的乡镇街道）考生"]
["151","毕节市七星关区大银镇综治中心","0123","0587-8463068","全额事业","工作人员","01","管理岗位",1,"综合管理类(A类）",11,"大学专科及以上",null,"不限专业","不限专业","不限专业","定向招聘服务于七星关区（含大方县托管乡镇街道）“三支一扶”、“选聘高校毕业生到村任职计划”（一村一名大学生工程）、“西部计划”人员，生源地或兵源地为七星关区（含大方县托管的乡镇街道）大学生退役士兵，限七星关区户籍（含大方县托管的乡镇街道）考生"]
["152","毕节市七星关区何官屯镇安全生产监督管理站","0124","0857-8463068","全额事业","工作人员","01","管理岗位",1,"综合管理类(A类）",11,"大学本科及以上","学士及以上学位",null,"中国语言文学类","中国语言文学（一级学科）",""]
["153","毕节市七星关区岔河镇水利站","0125","0587-8463069","全额事业","工作人员","01","专业技术岗位",1,"综合管理类(A类）",11,"大学本科及以上",null,null,"水利类","水利工程（一级学科）","定向招聘2024年度高校毕业生"]
["154","毕节市七星关区岔河镇林业环保站","0126","0857-8942051","全额事业","工作人员","01","管理岗位",1,"综合管理类(A类）",11,"大学本科及以上",null,null,"林学类、 植物生产类、自然保护与环境生态类","林学（一级学科）",""]
["155","毕节市七星关区岔河镇农业服务中心","0127","0857-8942051","全额事业","工作人员","01","专业技术岗位",1,"综合管理类(A类）",11,"大学本科及以上",null,null,"动物科学、动物医学、动植物检疫、畜牧兽医","动物遗传育种与繁殖、动物营养与饲料科学、基础兽医学、预防兽医学、临床兽医学","定向招聘2024年度高校毕业生"]
["156","毕节市七星关区普宜镇乡村振兴服务中心","0128","0857-8982015","全额事业","工作人员","01","管理岗位",1,"综合管理类(A类）",11,"大学本科及以上","学士及以上学位",null,"不限专业","不限专业","定向招聘七星关区户籍（含大方县托管的乡镇街道）考生"]
["157","毕节市七星关区普宜镇财政所","0129","0857-8982015","全额事业","工作人员","01","专业技术岗位",1,"综合管理类(A类）",11,"大学本科及以上","学士及以上学位",null,"工商管理类","工商管理（一级学科）","定向招聘2024年度高校毕业生"]
["158","毕节市七星关区龙场营镇财政所","0130","0857-8982015","全额事业","工作人员","01","专业技术岗位",1,"综合管理类(A类）",11,"大学本科及以上","学士及以上学位",null,"工商管理类","工商管理（一级学科）","定向招聘2024年度高校毕业生"]
["159","毕节市七星关区龙场营镇水务站","0131","0857-8982015","全额事业","工作人员","01","专业技术岗位",1,"综合管理类(A类）",11,"大学本科及以上","学士及以上学位",null,"水利类","水利工程（一级学科）","定向招聘2024年度高校毕业生"]
["160","毕节市七星关区龙场营镇综治中心","0132","0857-8982015","全额事业","工作人员","01","管理岗位",1,"综合管理类(A类）",11,"大学本科及以上","学士及以上学位",null,"不限专业","不限专业","定向招聘2024年度高校毕业生"]
["161","毕节市七星关区龙场营镇安全生产监督管理站","0133","0857-8982015","全额事业","工作人员","01","专业技术岗位",1,"综合管理类(A类）",11,"大学本科及以上","学士及以上学位",null,"不限专业","不限专业","定向招聘2024年度高校毕业生"]
["162","毕节市七星关区龙场营镇乡村振兴服务中心","0134","0857-8982015","全额事业","工作人员","01","专业技术岗位",1,"综合管理类(A类）",11,"大学本科及以上","学士及以上学位",null,"不限专业","不限专业","定向招聘2024年度高校毕业生"]
["163","毕节市七星关区龙场营镇乡村振兴服务中心","0134","0857-8983006","全额事业","工作人员","02","管理岗位",1,"综合管理类(A类）",11,"大学本科及以上","学士及以上学位",null,"不限专业","不限专业","定向招聘2024年度高校毕业生"]
["164","毕节市七星关区龙场营镇科技宣教文化信息服务中心","0135","0857-8983006","全额事业","工作人员","01","专业技术岗位",1,"综合管理类(A类）",11,"大学本科及以上","学士及以上学位",null,"不限专业","不限专业","定向招聘2024年度高校毕业生"]
["165","毕节市七星关区田坎彝族乡规划建设环保站","0136","0857-8983006","全额事业","工作人员","01","管理岗位",1,"综合管理类(A类）",11,"大学本科及以上",null,null,"不限专业","不限专业","定向招聘七星关区户籍（含大方县托管的乡镇街道）考生"]
["166","毕节市七星关区田坎彝族乡财政所","0137","0857-8983006","全额事业","工作人员","01","专业技术岗位",1,"综合管理类(A类）",11,"大学本科及以上",null,null,"工商管理类","工商管理（一级学科）","定向招聘2024年度高校毕业生"]
["167","毕节市七星关区田坎彝族乡农业服务中心","0138","0857-8982049","全额事业","工作人员","01","管理岗位",1,"综合管理类(A类）",11,"大学本科及以上",null,null,"农学、园艺、 种子科学与工程、植物科学与技术、设施农业科学与工程","植物营养学、果树学、蔬菜学、茶学、土壤学、农药学",""]
["168","毕节市七星关区田坎彝族乡综治中心","0139","0857-8982049","全额事业","工作人员","01","管理岗位",2,"综合管理类(A类）",11,"大学本科及以上",null,null,"不限专业","不限专业","定向招聘七星关区户籍（含大方县托管的乡镇街道）考生"]
["169","毕节市七星关区大屯乡财政所","0140","0857-8943000","全额事业","工作人员","01","专业技术岗位",1,"综合管理类(A类）",11,"大学本科及以上","学士及以上学位",null,"工商管理类","工商管理（一级学科）","定向招聘2024年度高校毕业生"]
["170","毕节市七星关区大屯乡规划建设环保站","0141","0857-8943000","全额事业","工作人员","01","管理岗位",1,"综合管理类(A类）",11,"大学本科及以上","学士及以上学位",null,"不限专业","不限专业","定向招聘七星关区户籍（含大方县托管的乡镇街道）考生"]
["171","毕节市七星关区阿市乡乡村振兴服务中心","0142","0857-8943000","全额事业","工作人员","01","专业技术岗位",1,"综合管理类(A类）",11,"大学本科及以上","学士及以上学位",null,"中国语言文学类","中国语言文学（一级学科）","定向招聘七星关区户籍（含大方县托管的乡镇街道）考生"]
["172","毕节市七星关区阿市乡乡村振兴服务中心","0142","0857-8943000","全额事业","工作人员","02","专业技术岗位",2,"综合管理类(A类）",11,"大学专科及以上",null,"不限专业","不限专业","不限专业","定向招聘服务于七星关区（含大方县托管乡镇街道）“三支一扶”、“选聘高校毕业生到村任职计划”（一村一名大学生工程）、“西部计划”人员，生源地或兵源地为七星关区（含大方县托管的乡镇街道）大学生退役士兵，限七星关区户籍（含大方县托管的乡镇街道）考生"]
["173","毕节市七星关区阿市乡安全生产监督管理站","0143","0857-8734003","全额事业","工作人员","01","管理岗位",1,"综合管理类(A类）",11,"大学本科及以上","学士及以上学位",null,"不限专业","不限专业","定向招聘七星关区户籍（含大方县托管的乡镇街道）考生"]
["174","毕节市七星关区阿市乡林业站","0144","0857-8734003","全额事业","工作人员","01","专业技术岗位",1,"综合管理类(A类）",11,"大学本科及以上","学士及以上学位",null,"林学、 森林保护、植物科学与技术、森林消防、森林资源保护、水土保持与荒漠化防治","植物病理学、森林培育、森林保护学、森林经理学、野生动植物保护与利用、水土保持与荒漠化防治","定向招聘七星关区户籍（含大方县托管的乡镇街道）考生"]
["175","毕节市七星关区团结乡乡村振兴服务中心","0145","0857-8734003","全额事业","工作人员","01","专业技术岗位",1,"综合管理类(A类）",11,"大学本科及以上","学士及以上学位",null,"农学、园艺、 种子科学与工程、植物科学与技术、设施农业科学与工程","植物营养学、果树学、蔬菜学、茶学、土壤学、农药学",""]
["176","毕节市七星关区团结乡财政所","0146","0857-8734003","全额事业","工作人员","01","专业技术岗位",1,"综合管理类(A类）",11,"大学本科及以上","学士及以上学位",null,"工商管理类","工商管理（一级学科）","定向招聘七星关区户籍（含大方县托管的乡镇街道）考生"]
["177","毕节市七星关区团结乡退役军人服务站","0147","0857-8734003","全额事业","工作人员","01","管理岗位",1,"综合管理类(A类）",11,"大学本科及以上","学士及以上学位",null,"不限专业","不限专业","定向招聘七星关区户籍（含大方县托管的乡镇街道）考生"]
["178","毕节市七星关区团结乡规划建设环保站","0148","0857-8543001","全额事业","工作人员","01","专业技术岗位",1,"综合管理类(A类）",11,"大学本科及以上","学士及以上学位",null,"城乡规划、资源环境与城乡规划管理、 人文地理与城乡规划、城镇规划与建设","城乡规划、资源环境与城乡规划管理、人文地理与城乡规划","定向招聘七星关区户籍（含大方县托管的乡镇街道）考生"]
["179","毕节市七星关区团结乡林业站","0149","0857-8543001","全额事业","工作人员","01","管理岗位",1,"综合管理类(A类）",11,"大学本科及以上","学士及以上学位",null,"林学类、 植物生产类、自然保护与环境生态类","林学（一级学科）","定向招聘七星关区户籍（含大方县托管的乡镇街道）考生"]
["180","毕节市七星关区野角乡财政所","0150","0857-8347766","全额事业","工作人员","01","管理岗位",1,"综合管理类(A类）",11,"大学本科及以上","学士及以上学位",null,"工商管理类","工商管理（一级学科）",""]
["181","毕节市七星关区野角乡农业服务中心","0151","0857-8347766","全额事业","工作人员","01","专业技术岗位",1,"综合管理类(A类）",11,"大学本科及以上","学士及以上学位",null,"农学、园艺、 种子科学与工程、  植物保护、植物科学与技术、设施农业科学与工程","植物营养学、果树学、蔬菜学、茶学、土壤学、农药学",""]
["182","毕节市七星关区融媒体中心","0152","0857-8347766","全额事业","工作人员","01","专业技术岗位",1,"综合管理类(A类）",11,"大学本科及以上",null,null,"计算机类科学与技术、数字媒体技术、智能科学与技术、空间信息与数字技术、电子与计算机工程、数据科学与大数据技术、网络空间安全、新媒体技术、电影制作、虚拟现实技术、区块链工程、信息工程、广播电视工程、电子信息科学与技术、人工智能、计算机科学与技术、软件工程、网络工程、信息安全","数字媒体技术、智能科学与技术、空间信息与数字技术、电子与计算机工程、数据科学与大数据技术、网络空间安全、新媒体技术、电影制作、虚拟现实技术、区块链工程、信息工程、广播电视工程、电子信息科学与技术、人工智能、计算机科学与技术、软件工程、网络工程、信息安全",""]
["183","毕节市七星关区融媒体中心","0152","0857-8229816","全额事业","工作人员","02","管理岗位",3,"综合管理类(A类）",11,"大学本科及以上",null,null,"新闻传播学类、中国语言文学类","新闻传播学（一级学科）、中国语言文学（一级学科）",""]
["184","毕节市七星关区融媒体中心","0152","0857-8229816","全额事业","工作人员","03","专业技术岗位",3,"综合管理类(A类）",11,"大学本科及以上",null,null,"广播电视学、广告学、传播学、网络与新媒体、时尚传播、动画、影视摄影与制作、影视技术、摄影、视觉传达设计、艺术设计学、数字媒体艺术、新媒体艺术、包装设计","广播电视学、广告学、传播学、网络与新媒体、时尚传播、动画、影视摄影与制作、影视技术、摄影、视觉传达设计、艺术设计学、数字媒体艺术、新媒体艺术、包装设计",""]
["185","毕节市七星关区天网监控服务中心","0153","0857-8229816","全额事业","工作人员","01","管理岗位",1,"综合管理类(A类）",11,"大学本科及以上","学士学位",null,"工商管理类","工商管理（一级学科）",""]
["186","毕节市七星关区天网监控服务中心","0153","0857-8337554","全额事业","工作人员","02","管理岗位",4,"综合管理类(A类）",11,"大学本科及以上","学士学位",null,"计算机类、电子信息类"," 计算机科学与技术（一级学科）、 信息与通信工程（一级学科）",""]
["187","毕节市七星关区天网监控服务中心","0153","0857-8330585","全额事业","工作人员","03","管理岗位",5,"综合管理类(A类）",11,"大学本科及以上","学士学位",null,"计算机类、电子信息类"," 计算机科学与技术（一级学科）、 信息与通信工程（一级学科）","定向招聘七星关区户籍（含大方县托管的乡镇街道）考生"]
["188","毕节市七星关区观音桥街道农业综合服务中心","0154","0857-8245600","全额事业","工作人员","01","专业技术岗位",2,"综合管理类(A类）",11,"大学本科及以上",null,null,"农学、园艺、 种子科学与工程、  植物保护、植物科学与技术、设施农业科学与工程","植物营养学、果树学、蔬菜学、茶学、土壤学、农药学",""]
["189","毕节市七星关区碧阳街道农业综合服务中心","0155","0857-8016090","全额事业","工作人员","01","专业技术岗位",1,"综合管理类(A类）",11,"大学本科及以上",null,null,"农学、园艺、 种子科学与工程、  植物保护、植物科学与技术、设施农业科学与工程","植物营养学、果树学、蔬菜学、茶学、土壤学、农药学",""]
["190","毕节市七星关区三板桥街道农业综合服务中心","0156","0857-8610068","全额事业","工作人员","01","专业技术岗位",2,"综合管理类(A类）",11,"大学本科及以上",null,null,"农学、园艺、 种子科学与工程、  植物保护、植物科学与技术、设施农业科学与工程","植物营养学、果树学、蔬菜学、茶学、土壤学、农药学",""]
["191","毕节市七星关区碧海街道农业综合服务中心","0157","0857-5768168","全额事业","工作人员","01","专业技术岗位",3,"综合管理类(A类）",11,"大学本科及以上",null,null,"农学、园艺、 种子科学与工程、  植物保护、植物科学与技术、设施农业科学与工程","植物营养学、果树学、蔬菜学、茶学、土壤学、农药学",""]
["192","毕节市七星关区青龙街道农业综合服务中心","0158","0857-8734003","全额事业","工作人员","01","专业技术岗位",1,"综合管理类(A类）",11,"大学本科及以上",null,null,"农学、园艺、 种子科学与工程、  植物保护、植物科学与技术、设施农业科学与工程","植物营养学、果树学、蔬菜学、茶学、土壤学、农药学",""]
["193","毕节市七星关区团结乡农业服务中心","0159","0857-8943000","全额事业","工作人员","01","专业技术岗位",1,"综合管理类(A类）",11,"大学本科及以上",null,null,"农学、园艺、 种子科学与工程、  植物保护、植物科学与技术、设施农业科学与工程","植物营养学、果树学、蔬菜学、茶学、土壤学、农药学","定向招聘七星关区户籍（含大方县托管的乡镇街道）考生"]
["194","毕节市七星关区阿市乡农业服务中心","0160","0857-8982049","全额事业","工作人员","01","专业技术岗位",2,"综合管理类(A类）",11,"大学本科及以上",null,null,"农学、园艺、 种子科学与工程、  植物保护、植物科学与技术、设施农业科学与工程","植物营养学、果树学、蔬菜学、茶学、土壤学、农药学","定向招聘七星关区户籍（含大方县托管的乡镇街道）考生"]
["195","毕节市七星关区大屯乡农业服务中心","0161","0857-8733304","全额事业","工作人员","01","专业技术岗位",3,"综合管理类(A类）",11,"大学本科及以上",null,null,"农学、园艺、 种子科学与工程、  植物保护、植物科学与技术、设施农业科学与工程","植物营养学、果树学、蔬菜学、茶学、土壤学、农药学","定向招聘七星关区户籍（含大方县托管的乡镇街道）考生"]
["196","毕节市七星关区生机镇农业服务中心","0162","0857-8703001","全额事业","工作人员","01","专业技术岗位",1,"综合管理类(A类）",11,"大学本科及以上",null,null,"农学、园艺、 种子科学与工程、  植物保护、植物科学与技术、设施农业科学与工程","植物营养学、果树学、蔬菜学、茶学、土壤学、农药学","定向招聘七星关区户籍（含大方县托管的乡镇街道）考生"]
["197","毕节市七星关区田坝桥镇农业服务中心","0163","0857-8613003","全额事业","工作人员","01","专业技术岗位",1,"综合管理类(A类）",11,"大学本科及以上",null,null,"农学、园艺、 种子科学与工程、  植物保护、植物科学与技术、设施农业科学与工程","植物营养学、果树学、蔬菜学、茶学、土壤学、农药学","定向招聘七星关区户籍（含大方县托管的乡镇街道）考生"]
["198","毕节市七星关区层台镇农业服务中心","0164","0857-8683005","全额事业","工作人员","01","专业技术岗位",1,"综合管理类(A类）",11,"大学本科及以上",null,null,"农学、园艺、 种子科学与工程、  植物保护、植物科学与技术、设施农业科学与工程","植物营养学、果树学、蔬菜学、茶学、土壤学、农药学","定向招聘七星关区户籍（含大方县托管的乡镇街道）考生"]
["199","毕节市七星关区林口镇农业服务中心","0165","0857-8732089","全额事业","工作人员","01","专业技术岗位",1,"综合管理类(A类）",11,"大学本科及以上",null,null,"农学、园艺、 种子科学与工程、  植物保护、植物科学与技术、设施农业科学与工程","植物营养学、果树学、蔬菜学、茶学、土壤学、农药学","定向招聘七星关区户籍（含大方县托管的乡镇街道）考生"]
["200","毕节市七星关区长春堡镇农业服务中心","0166","0857-8642002","全额事业","工作人员","01","专业技术岗位",2,"综合管理类(A类）",11,"大学本科及以上",null,null,"农学、园艺、 种子科学与工程、  植物保护、植物科学与技术、设施农业科学与工程","植物营养学、果树学、蔬菜学、茶学、土壤学、农药学",""]
["201","毕节市七星关区清水铺镇农业服务中心","0167","0857-8702029","全额事业","工作人员","01","专业技术岗位",1,"综合管理类(A类）",11,"大学本科及以上",null,null,"农学、园艺、 种子科学与工程、  植物保护、植物科学与技术、设施农业科学与工程","植物营养学、果树学、蔬菜学、茶学、土壤学、农药学","定向招聘七星关区户籍（含大方县托管的乡镇街道）考生"]
["202","毕节市七星关区龙场营镇农业服务中心","0168","0857-8982015","全额事业","工作人员","01","专业技术岗位",1,"综合管理类(A类）",11,"大学本科及以上",null,null,"农学、园艺、 种子科学与工程、  植物保护、植物科学与技术、设施农业科学与工程","植物营养学、果树学、蔬菜学、茶学、土壤学、农药学","定向招聘七星关区户籍（含大方县托管的乡镇街道）考生"]
["203","毕节市七星关区海子街镇农业服务中心","0169","0857-8303180","全额事业","工作人员","01","专业技术岗位",1,"综合管理类(A类）",11,"大学本科及以上",null,null,"农学、园艺、 种子科学与工程、  植物保护、植物科学与技术、设施农业科学与工程","植物营养学、果树学、蔬菜学、茶学、土壤学、农药学",""]
["204","毕节市七星关区八寨镇农业服务中心","0170","0857-8616378","全额事业","工作人员","01","专业技术岗位",1,"综合管理类(A类）",11,"大学本科及以上",null,null,"农学、园艺、 种子科学与工程、  植物保护、植物科学与技术、设施农业科学与工程","植物营养学、果树学、蔬菜学、茶学、土壤学、农药学","定向招聘七星关区户籍（含大方县托管的乡镇街道）考生"]
["205","毕节市七星关区梨树镇农业服务中心","0171","0857-8464008","全额事业","工作人员","01","专业技术岗位",1,"综合管理类(A类）",11,"大学本科及以上",null,null,"农学、园艺、 种子科学与工程、  植物保护、植物科学与技术、设施农业科学与工程","植物营养学、果树学、蔬菜学、茶学、土壤学、农药学",""]
["206","毕节市七星关区党员教育服务中心","0172","0857-8223198","全额事业","工作人员","01","管理岗位",4,"综合管理类(A类）",11,"大学本科及以上","学士学位",null,"不限专业","不限专业","定向招聘中共党员（含预备党员）"]
["207","毕节市七星关区老干部服务中心","0173","0857-8223198","全额事业","工作人员","01","管理岗位",1,"综合管理类(A类）",11,"大学本科及以上","学士学位",null,"不限专业","不限专业","定向招聘中共党员（含预备党员）"]
["208","毕节市七星关区综合考核服务中心","0174","0857-8223198","全额事业","工作人员","01","管理岗位",1,"综合管理类(A类）",11,"大学本科及以上","学士学位",null,"不限专业","不限专业","定向招聘中共党员（含预备党员）"]
["209","大方县归化街道中心校","0175","0857-8221396","全额事业","教师","01","专业技术岗位",1,"中小学教师类（D类）小学教师岗位",41,"大学本科及以上","学士学位及以上",null,"中国语言文学类、新闻传播学类、教育类",{"$f":"VLOOKUP(R214,[1]Sheet3!$A$2:$H$37,8,FALSE)","v":"中国语言文学、新闻传播学、学科教学（一级学科）"},"须具有对应学段、学科及以上教师资格证书，定向招聘2024年度高校毕业生","小学语文"]
["210","毕节八小","0176","0857-8221396","全额事业","教师","01","专业技术岗位",1,"中小学教师类（D类）小学教师岗位",41,"大学本科及以上","学士学位及以上",null,"数学类、教育类",{"$f":"VLOOKUP(R215,[1]Sheet3!$A$2:$H$37,8,FALSE)","v":"数学、学科教学（一级学科）"},"须具有对应学段、学科及以上教师资格证书，定向招聘2024年度高校毕业生","小学数学"]
["211","毕节八小","0176","0857-8221396","全额事业","教师","02","专业技术岗位",1,"中小学教师类（D类）小学教师岗位",41,"大学本科及以上","学士学位及以上",null,"外国语言文学类、教育类",{"$f":"VLOOKUP(R216,[1]Sheet3!$A$2:$H$37,8,FALSE)","v":"外国语言文学、学科教育（一级学科）"},"须具有对应学段、学科及以上教师资格证书，定向招聘七星关区户籍（含大方县托管的乡镇街道）考生","小学英语"]
["212","毕节八中","0177","0857-8221396","全额事业","教师","01","专业技术岗位",1,"中小学教师类（D类）中学教师岗位",42,"大学本科及以上","学士学位及以上",null,"数学类、教育类",{"$f":"VLOOKUP(R217,[1]Sheet3!$A$2:$H$37,8,FALSE)","v":"数学、学科教学（一级学科）"},"须具有对应学段、学科及以上教师资格证书","初中数学"]
["213","毕节八中","0177","0857-8221396","全额事业","教师","02","专业技术岗位",2,"中小学教师类（D类）中学教师岗位",42,"大学本科及以上","学士学位及以上",null,"外国语言文学类、教育类",{"$f":"VLOOKUP(R218,[1]Sheet3!$A$2:$H$37,8,FALSE)","v":"外国语言文学、学科教育（一级学科）"},"须具有对应学段、学科及以上教师资格证书","初中英语"]
["214","毕节八中","0177","0857-8221396","全额事业","教师","03","专业技术岗位",1,"中小学教师类（D类）中学教师岗位",42,"大学本科及以上","学士学位及以上",null,"中国语言文学类、新闻传播学类、教育类",{"$f":"VLOOKUP(R219,[1]Sheet3!$A$2:$H$37,8,FALSE)","v":"中国语言文学、新闻传播学、学科教学（一级学科）"},"须具有对应学段、学科及以上教师资格证书","初中语文"]
["215","毕节八中","0177","0857-8221396","全额事业","教师","04","专业技术岗位",1,"中小学教师类（D类）中学教师岗位",42,"大学本科及以上","学士学位及以上",null,"物理学类、教育类、地球物理学类",{"$f":"VLOOKUP(R220,[1]Sheet3!$A$2:$H$37,8,FALSE)","v":"物理学、力学，学科教学（一级学科）"},"须具有对应学段、学科及以上教师资格证书","初中物理"]
["216","毕节二十小","0178","0857-8221396","全额事业","教师","01","专业技术岗位",5,"中小学教师类（D类）小学教师岗位",41,"大学本科及以上","学士学位及以上",null,"中国语言文学类、新闻传播学类、教育类",{"$f":"VLOOKUP(R221,[1]Sheet3!$A$2:$H$37,8,FALSE)","v":"中国语言文学、新闻传播学、学科教学（一级学科）"},"须具有对应学段、学科及以上教师资格证书，定向招聘七星关区户籍（含大方县托管的乡镇街道）考生","小学语文"]
["217","毕节二十小","0178","0857-8221396","全额事业","教师","02","专业技术岗位",6,"中小学教师类（D类）小学教师岗位",41,"大学本科及以上","学士学位及以上",null,"数学类、教育类",{"$f":"VLOOKUP(R222,[1]Sheet3!$A$2:$H$37,8,FALSE)","v":"数学、学科教学（一级学科）"},"须具有对应学段、学科及以上教师资格证书，定向招聘七星关区户籍（含大方县托管的乡镇街道）考生","小学数学"]
["218","毕节二十小","0178","0857-8221396","全额事业","教师","03","专业技术岗位",1,"中小学教师类（D类）小学教师岗位",41,"大学本科及以上","学士学位及以上",null,"教育学类、音乐与舞蹈学类、 戏剧与影视学类、艺术类、教育类",{"$f":"VLOOKUP(R223,[1]Sheet3!$A$2:$H$37,8,FALSE)","v":"艺术学、学科教育（一级学科）"},"须具有对应学段、学科及以上教师资格证书，定向招聘七星关区户籍（含大方县托管的乡镇街道）考生","小学音乐"]
["219","毕节二十小","0178","0857-8221396","全额事业","教师","04","专业技术岗位",1,"中小学教师类（D类）小学教师岗位",41,"大学本科及以上","学士学位及以上",null,"美术学类、设计学类、教育学类、艺术类、教育类",{"$f":"VLOOKUP(R224,[1]Sheet3!$A$2:$H$37,8,FALSE)","v":"艺术学、学科教育（一级学科）"},"须具有对应学段、学科及以上教师资格证书，定向招聘七星关区户籍（含大方县托管的乡镇街道）考生","小学美术"]
["220","毕节二十小","0178","0857-8221396","全额事业","教师","05","专业技术岗位",1,"中小学教师类（D类）小学教师岗位",41,"大学本科及以上","学士学位及以上",null,"  体育学类、教育类",{"$f":"VLOOKUP(R225,[1]Sheet3!$A$2:$H$37,8,FALSE)","v":"体育学、学科教学（一级学科）"},"须具有对应学段、学科及以上教师资格证书，定向招聘七星关区户籍（含大方县托管的乡镇街道）考生","小学体育"]
["221","毕节二十小","0178","0857-8221396","全额事业","教师","06","专业技术岗位",1,"中小学教师类（D类）小学教师岗位",41,"大学本科及以上","学士学位及以上",null,"外国语言文学类、教育类",{"$f":"VLOOKUP(R226,[1]Sheet3!$A$2:$H$37,8,FALSE)","v":"外国语言文学、学科教育（一级学科）"},"须具有对应学段、学科及以上教师资格证书，定向招聘七星关区户籍（含大方县托管的乡镇街道）考生","小学英语"]
["222","毕节二十小","0178","0857-8221396","全额事业","教师","07","专业技术岗位",1,"中小学教师类（D类）小学教师岗位",41,"大学本科及以上","学士学位及以上",null,"心理学类、教育类",{"$f":"VLOOKUP(R227,[1]Sheet3!$A$2:$H$37,8,FALSE)","v":"心理学（一级学科）"},"须具有对应学段、学科及以上教师资格证书，定向招聘七星关区户籍（含大方县托管的乡镇街道）考生","小学心理健康"]
["223","毕节二十小","0178","0857-8221396","全额事业","教师","08","专业技术岗位",1,"中小学教师类（D类）小学教师岗位",41,"大学本科及以上","学士学位及以上",null,"教育类、生物科学类、生物工程类、物理学类、  化学类",{"$f":"VLOOKUP(R228,[1]Sheet3!$A$2:$H$37,8,FALSE)","v":"物理学、化学、生物学、学科教学（一级学科）"},"须具有小学或初中科学教师资格、初中或高中化学、物理、生物教师资格（小学教育专业须取得科学教师资格或全科教师资格），定向招聘七星关区户籍（含大方县托管的乡镇街道）考生","小学科学"]
["224","毕节二小","0179","0857-8221396","全额事业","教师","01","专业技术岗位",1,"中小学教师类（D类）小学教师岗位",41,"大学本科及以上","学士学位及以上",null,"中国语言文学类、新闻传播学类、教育类",{"$f":"VLOOKUP(R229,[1]Sheet3!$A$2:$H$37,8,FALSE)","v":"中国语言文学、新闻传播学、学科教学（一级学科）"},"须具有对应学段、学科及以上教师资格证书，定向招聘2024年度高校毕业生","小学语文"]
["225","毕节二小","0179","0857-8221396","全额事业","教师","02","专业技术岗位",1,"中小学教师类（D类）小学教师岗位",41,"大学本科及以上","学士学位及以上",null,"数学类、教育类",{"$f":"VLOOKUP(R230,[1]Sheet3!$A$2:$H$37,8,FALSE)","v":"数学、学科教学（一级学科）"},"须具有对应学段、学科及以上教师资格证书，定向招聘2024年度高校毕业生","小学数学"]
["226","毕节二小","0179","0857-8221396","全额事业","教师","03","专业技术岗位",1,"中小学教师类（D类）小学教师岗位",41,"大学本科及以上","学士学位及以上",null,"  体育学类、教育类",{"$f":"VLOOKUP(R231,[1]Sheet3!$A$2:$H$37,8,FALSE)","v":"体育学、学科教学（一级学科）"},"须具有对应学段、学科及以上教师资格证书，定向招聘七星关区户籍（含大方县托管的乡镇街道）考生","小学体育"]
["227","毕节六小","0180","0857-8221396","全额事业","教师","04","专业技术岗位",1,"中小学教师类（D类）小学教师岗位",41,"大学本科及以上","学士学位及以上",null,"数学类、教育类",{"$f":"VLOOKUP(R232,[1]Sheet3!$A$2:$H$37,8,FALSE)","v":"数学、学科教学（一级学科）"},"须具有对应学段、学科及以上教师资格证书，定向招聘七星关区户籍（含大方县托管的乡镇街道）考生","小学数学"]
["228","毕节六小","0180","0857-8221396","全额事业","教师","05","专业技术岗位",1,"中小学教师类（D类）小学教师岗位",41,"大学本科及以上","学士学位及以上",null,"中国语言文学类、新闻传播学类、教育类",{"$f":"VLOOKUP(R233,[1]Sheet3!$A$2:$H$37,8,FALSE)","v":"中国语言文学、新闻传播学、学科教学（一级学科）"},"须具有对应学段、学科及以上教师资格证书，定向招聘七星关区户籍（含大方县托管的乡镇街道）考生","小学语文"]
["229","毕节六小","0180","0857-8221396","全额事业","教师","06","专业技术岗位",2,"中小学教师类（D类）小学教师岗位",41,"大学本科及以上","学士学位及以上",null,"外国语言文学类、教育类",{"$f":"VLOOKUP(R234,[1]Sheet3!$A$2:$H$37,8,FALSE)","v":"外国语言文学、学科教育（一级学科）"},"须具有对应学段、学科及以上教师资格证书，定向招聘七星关区户籍（含大方县托管的乡镇街道）考生","小学英语"]
["230","毕节六小","0180","0857-8221396","全额事业","教师","07","专业技术岗位",1,"中小学教师类（D类）小学教师岗位",41,"大学本科及以上","学士学位及以上",null,"教育学类、音乐与舞蹈学类、 戏剧与影视学类、艺术类、教育类",{"$f":"VLOOKUP(R235,[1]Sheet3!$A$2:$H$37,8,FALSE)","v":"艺术学、学科教育（一级学科）"},"须具有对应学段、学科及以上教师资格证书，定向招聘七星关区户籍（含大方县托管的乡镇街道）考生","小学音乐"]
["231","毕节六小","0180","0857-8221396","全额事业","教师","08","专业技术岗位",1,"中小学教师类（D类）小学教师岗位",41,"大学本科及以上","学士学位及以上",null,"美术学类、设计学类、教育学类、艺术类、教育类",{"$f":"VLOOKUP(R236,[1]Sheet3!$A$2:$H$37,8,FALSE)","v":"艺术学、学科教育（一级学科）"},"须具有对应学段、学科及以上教师资格证书，定向招聘七星关区户籍（含大方县托管的乡镇街道）考生","小学美术"]
["232","毕节六小","0180","0857-8221396","全额事业","教师","09","专业技术岗位",1,"中小学教师类（D类）小学教师岗位",41,"大学本科及以上","学士学位及以上",null,"心理学类、教育类",{"$f":"VLOOKUP(R237,[1]Sheet3!$A$2:$H$37,8,FALSE)","v":"心理学（一级学科）"},"须具有对应学段、学科及以上教师资格证书，定向招聘七星关区户籍（含大方县托管的乡镇街道）考生","小学心理健康"]
["233","毕节六小","0180","0857-8221396","全额事业","教师","10","专业技术岗位",1,"中小学教师类（D类）小学教师岗位",41,"大学本科及以上","学士学位及以上",null,"  体育学类、教育类",{"$f":"VLOOKUP(R238,[1]Sheet3!$A$2:$H$37,8,FALSE)","v":"体育学、学科教学（一级学科）"},"须具有对应学段、学科及以上教师资格证书，定向招聘七星关区户籍（含大方县托管的乡镇街道）考生","小学体育"]
["234","毕节六中","0181","0857-8221396","全额事业","教师","01","专业技术岗位",2,"中小学教师类（D类）中学教师岗位",42,"大学本科及以上","学士学位及以上",null,"中国语言文学类、新闻传播学类、教育类",{"$f":"VLOOKUP(R239,[1]Sheet3!$A$2:$H$37,8,FALSE)","v":"中国语言文学、新闻传播学、学科教学（一级学科）"},"须具有对应学段、学科及以上教师资格证书","高中语文"]
["235","毕节六中","0181","0857-8221396","全额事业","教师","02","专业技术岗位",2,"中小学教师类（D类）中学教师岗位",42,"大学本科及以上","学士学位及以上",null,"数学类、教育类",{"$f":"VLOOKUP(R240,[1]Sheet3!$A$2:$H$37,8,FALSE)","v":"数学、学科教学（一级学科）"},"须具有对应学段、学科及以上教师资格证书","高中数学"]
["236","毕节六中","0181","0857-8221396","全额事业","教师","03","专业技术岗位",1,"中小学教师类（D类）中学教师岗位",42,"大学本科及以上","学士学位及以上",null,"外国语言文学类、教育类",{"$f":"VLOOKUP(R241,[1]Sheet3!$A$2:$H$37,8,FALSE)","v":"外国语言文学、学科教育（一级学科）"},"须具有对应学段、学科及以上教师资格证书","高中英语"]
["237","毕节六中","0181","0857-8221396","全额事业","教师","04","专业技术岗位",1,"中小学教师类（D类）中学教师岗位",42,"大学本科及以上","学士学位及以上",null,"物理学类、教育类、地球物理学类",{"$f":"VLOOKUP(R242,[1]Sheet3!$A$2:$H$37,8,FALSE)","v":"物理学、力学，学科教学（一级学科）"},"须具有对应学段、学科及以上教师资格证书","高中物理"]
["238","毕节六中","0181","0857-8221396","全额事业","教师","05","专业技术岗位",1,"中小学教师类（D类）中学教师岗位",42,"大学本科及以上","学士学位及以上",null,"教育类、化学类",{"$f":"VLOOKUP(R243,[1]Sheet3!$A$2:$H$37,8,FALSE)","v":"化学、学科教学、 化学工程与技术（一级学科）"},"须具有对应学段、学科及以上教师资格证书","高中化学"]
["239","毕节七小","0182","0857-8221396","全额事业","教师","01","专业技术岗位",1,"中小学教师类（D类）小学教师岗位",41,"大学本科及以上","学士学位及以上",null,"中国语言文学类、新闻传播学类、教育类",{"$f":"VLOOKUP(R244,[1]Sheet3!$A$2:$H$37,8,FALSE)","v":"中国语言文学、新闻传播学、学科教学（一级学科）"},"须具有对应学段、学科及以上教师资格证书，定向招聘2024年度高校毕业生","小学语文"]
["240","毕节七小","0182","0857-8221396","全额事业","教师","02","专业技术岗位",1,"中小学教师类（D类）小学教师岗位",41,"大学本科及以上","学士学位及以上",null,"数学类、教育类",{"$f":"VLOOKUP(R245,[1]Sheet3!$A$2:$H$37,8,FALSE)","v":"数学、学科教学（一级学科）"},"须具有对应学段、学科及以上教师资格证书，定向招聘2024年度高校毕业生","小学数学"]
["241","毕节七中","0183","0857-8221396","全额事业","教师","03","专业技术岗位",1,"中小学教师类（D类）中学教师岗位",42,"大学本科及以上","学士学位及以上",null,"物理学类、教育类、地球物理学类",{"$f":"VLOOKUP(R246,[1]Sheet3!$A$2:$H$37,8,FALSE)","v":"物理学、力学，学科教学（一级学科）"},"须具有对应学段、学科及以上教师资格证书","初中物理"]
["242","毕节七中","0183","0857-8221396","全额事业","教师","04","专业技术岗位",1,"中小学教师类（D类）中学教师岗位",42,"大学本科及以上","学士学位及以上",null,"心理学类、教育类",{"$f":"VLOOKUP(R247,[1]Sheet3!$A$2:$H$37,8,FALSE)","v":"心理学（一级学科）"},"须具有对应学段、学科及以上教师资格证书","初中心理健康"]
["243","毕节三小","0184","0857-8221396","全额事业","教师","01","专业技术岗位",1,"中小学教师类（D类）小学教师岗位",41,"大学本科及以上","学士学位及以上",null,"中国语言文学类、新闻传播学类、教育类",{"$f":"VLOOKUP(R248,[1]Sheet3!$A$2:$H$37,8,FALSE)","v":"中国语言文学、新闻传播学、学科教学（一级学科）"},"须具有对应学段、学科及以上教师资格证书，定向招聘2024年度高校毕业生","小学语文"]
["244","毕节三小","0184","0857-8221396","全额事业","教师","02","专业技术岗位",1,"中小学教师类（D类）小学教师岗位",41,"大学本科及以上","学士学位及以上",null,"数学类、教育类",{"$f":"VLOOKUP(R249,[1]Sheet3!$A$2:$H$37,8,FALSE)","v":"数学、学科教学（一级学科）"},"须具有对应学段、学科及以上教师资格证书，定向招聘2024年度高校毕业生","小学数学"]
["245","毕节三中","0185","0857-8221396","全额事业","教师","01","专业技术岗位",1,"中小学教师类（D类）中学教师岗位",42,"大学本科及以上","学士学位及以上",null,"计算机类、电子信息类",{"$f":"VLOOKUP(R250,[1]Sheet3!$A$2:$H$37,8,FALSE)","v":"信息与通信工程、计算机科学与技术、学科教学（一级学科）"},"须具有对应学段、学科及以上教师资格证书","初中信息技术"]
["246","毕节三中","0185","0857-8221396","全额事业","教师","02","专业技术岗位",1,"中小学教师类（D类）中学教师岗位",42,"大学本科及以上","学士学位及以上",null,"数学类、教育类",{"$f":"VLOOKUP(R251,[1]Sheet3!$A$2:$H$37,8,FALSE)","v":"数学、学科教学（一级学科）"},"须具有对应学段、学科及以上教师资格证书","初中数学"]
["247","毕节市七星关区洪山街道办事处毕节十二小","0186","0857-8221396","全额事业","教师","01","专业技术岗位",1,"中小学教师类（D类）小学教师岗位",41,"大学本科及以上","学士学位及以上",null,"中国语言文学类、新闻传播学类、教育类",{"$f":"VLOOKUP(R252,[1]Sheet3!$A$2:$H$37,8,FALSE)","v":"中国语言文学、新闻传播学、学科教学（一级学科）"},"须具有对应学段、学科及以上教师资格证书，定向招聘2024年度高校毕业生","小学语文"]
["248","毕节十二中","0187","0857-8221396","全额事业","教师","01","专业技术岗位",1,"中小学教师类（D类）中学教师岗位",42,"大学本科及以上","学士学位及以上",null,"物理学类、教育类、地球物理学类",{"$f":"VLOOKUP(R253,[1]Sheet3!$A$2:$H$37,8,FALSE)","v":"物理学、力学，学科教学（一级学科）"},"须具有对应学段、学科及以上教师资格证书","初中物理"]
["249","毕节十二中","0187","0857-8221396","全额事业","教师","02","专业技术岗位",1,"中小学教师类（D类）中学教师岗位",42,"大学本科及以上","学士学位及以上",null,"教育类、化学类",{"$f":"VLOOKUP(R254,[1]Sheet3!$A$2:$H$37,8,FALSE)","v":"化学、学科教学、 化学工程与技术（一级学科）"},"须具有对应学段、学科及以上教师资格证书","初中化学"]
["250","毕节十二中","0187","0857-8221396","全额事业","教师","03","专业技术岗位",2,"中小学教师类（D类）中学教师岗位",42,"大学本科及以上","学士学位及以上",null,"外国语言文学类、教育类",{"$f":"VLOOKUP(R255,[1]Sheet3!$A$2:$H$37,8,FALSE)","v":"外国语言文学、学科教育（一级学科）"},"须具有对应学段、学科及以上教师资格证书","初中英语"]
["251","毕节十九小","0188","0857-8221396","全额事业","教师","01","专业技术岗位",1,"中小学教师类（D类）小学教师岗位",41,"大学本科及以上","学士学位及以上",null,"中国语言文学类、新闻传播学类、教育类",{"$f":"VLOOKUP(R256,[1]Sheet3!$A$2:$H$37,8,FALSE)","v":"中国语言文学、新闻传播学、学科教学（一级学科）"},"须具有对应学段、学科及以上教师资格证书，定向招聘2024年度高校毕业生","小学语文"]
["252","毕节十九小","0188","0857-8221396","全额事业","教师","02","专业技术岗位",1,"中小学教师类（D类）小学教师岗位",41,"大学本科及以上","学士学位及以上",null,"外国语言文学类、教育类",{"$f":"VLOOKUP(R257,[1]Sheet3!$A$2:$H$37,8,FALSE)","v":"外国语言文学、学科教育（一级学科）"},"须具有对应学段、学科及以上教师资格证书，定向招聘七星关区户籍（含大方县托管的乡镇街道）考生","小学英语"]
["253","毕节十九小","0188","0857-8221396","全额事业","教师","03","专业技术岗位",1,"中小学教师类（D类）小学教师岗位",41,"大学本科及以上","学士学位及以上",null,"  体育学类、教育类",{"$f":"VLOOKUP(R258,[1]Sheet3!$A$2:$H$37,8,FALSE)","v":"体育学、学科教学（一级学科）"},"须具有对应学段、学科及以上教师资格证书，定向招聘七星关区户籍（含大方县托管的乡镇街道）考生","小学体育"]
["254","毕节十小","0189","0857-8221396","全额事业","教师","01","专业技术岗位",2,"中小学教师类（D类）小学教师岗位",41,"大学本科及以上","学士学位及以上",null,"中国语言文学类、新闻传播学类、教育类",{"$f":"VLOOKUP(R259,[1]Sheet3!$A$2:$H$37,8,FALSE)","v":"中国语言文学、新闻传播学、学科教学（一级学科）"},"须具有对应学段、学科及以上教师资格证书，定向招聘2024年度高校毕业生","小学语文"]
["255","毕节十小","0189","0857-8221396","全额事业","教师","02","专业技术岗位",1,"中小学教师类（D类）小学教师岗位",41,"大学本科及以上","学士学位及以上",null,"数学类、教育类",{"$f":"VLOOKUP(R260,[1]Sheet3!$A$2:$H$37,8,FALSE)","v":"数学、学科教学（一级学科）"},"须具有对应学段、学科及以上教师资格证书，定向招聘2024年度高校毕业生","小学数学"]
["256","毕节十小","0189","0857-8221396","全额事业","教师","03","专业技术岗位",1,"中小学教师类（D类）小学教师岗位",41,"大学本科及以上","学士学位及以上",null,"外国语言文学类、教育类",{"$f":"VLOOKUP(R261,[1]Sheet3!$A$2:$H$37,8,FALSE)","v":"外国语言文学、学科教育（一级学科）"},"须具有对应学段、学科及以上教师资格证书，定向招聘七星关区户籍（含大方县托管的乡镇街道）考生","小学英语"]
["257","毕节十小","0189","0857-8221396","全额事业","教师","04","专业技术岗位",1,"中小学教师类（D类）小学教师岗位",41,"大学本科及以上","学士学位及以上",null,"  体育学类、教育类",{"$f":"VLOOKUP(R262,[1]Sheet3!$A$2:$H$37,8,FALSE)","v":"体育学、学科教学（一级学科）"},"须具有对应学段、学科及以上教师资格证书，定向招聘七星关区户籍（含大方县托管的乡镇街道）考生","小学体育"]
["258","毕节十一小","0190","0857-8221396","全额事业","教师","01","专业技术岗位",5,"中小学教师类（D类）小学教师岗位",41,"大学本科及以上","学士学位及以上",null,"中国语言文学类、新闻传播学类、教育类",{"$f":"VLOOKUP(R263,[1]Sheet3!$A$2:$H$37,8,FALSE)","v":"中国语言文学、新闻传播学、学科教学（一级学科）"},"须具有对应学段、学科及以上教师资格证书，定向招聘2024年度高校毕业生","小学语文"]
["259","毕节十一小","0190","0857-8221396","全额事业","教师","02","专业技术岗位",4,"中小学教师类（D类）小学教师岗位",41,"大学本科及以上","学士学位及以上",null,"数学类、教育类",{"$f":"VLOOKUP(R264,[1]Sheet3!$A$2:$H$37,8,FALSE)","v":"数学、学科教学（一级学科）"},"须具有对应学段、学科及以上教师资格证书，定向招聘2024年度高校毕业生","小学数学"]
["260","毕节十一小","0190","0857-8221396","全额事业","教师","03","专业技术岗位",1,"中小学教师类（D类）小学教师岗位",41,"大学本科及以上","学士学位及以上",null,"  体育学类、教育类",{"$f":"VLOOKUP(R265,[1]Sheet3!$A$2:$H$37,8,FALSE)","v":"体育学、学科教学（一级学科）"},"须具有对应学段、学科及以上教师资格证书，定向招聘七星关区户籍（含大方县托管的乡镇街道）考生","小学体育"]
["261","毕节十一小","0190","0857-8221396","全额事业","教师","04","专业技术岗位",1,"中小学教师类（D类）小学教师岗位",41,"大学本科及以上","学士学位及以上",null,"教育学类、音乐与舞蹈学类、 戏剧与影视学类、艺术类、教育类",{"$f":"VLOOKUP(R266,[1]Sheet3!$A$2:$H$37,8,FALSE)","v":"艺术学、学科教育（一级学科）"},"须具有对应学段、学科及以上教师资格证书，定向招聘七星关区户籍（含大方县托管的乡镇街道）考生","小学音乐"]
["262","毕节十一小","0190","0857-8221396","全额事业","教师","05","专业技术岗位",1,"中小学教师类（D类）小学教师岗位",41,"大学本科及以上","学士学位及以上",null,"美术学类、设计学类、教育学类、艺术类、教育类",{"$f":"VLOOKUP(R267,[1]Sheet3!$A$2:$H$37,8,FALSE)","v":"艺术学、学科教育（一级学科）"},"须具有对应学段、学科及以上教师资格证书，定向招聘七星关区户籍（含大方县托管的乡镇街道）考生","小学美术"]
["263","毕节十一小","0190","0857-8221396","全额事业","教师","06","专业技术岗位",1,"中小学教师类（D类）小学教师岗位",41,"大学本科及以上","学士学位及以上",null,"教育学类、计算机类、电子信息类",{"$f":"VLOOKUP(R268,[1]Sheet3!$A$2:$H$37,8,FALSE)","v":"信息与通信工程、计算机科学与技术、学科教学（一级学科）"},"须具有对应学段、学科及以上教师资格证书，定向招聘七星关区户籍（含大方县托管的乡镇街道）考生","小学信息技术"]
["264","毕节十一小","0190","0857-8221396","全额事业","教师","07","专业技术岗位",2,"中小学教师类（D类）小学教师岗位",41,"大学本科及以上","学士学位及以上",null," 政治学类、 马克思主义理论类、教育类",{"$f":"VLOOKUP(R269,[1]Sheet3!$A$2:$H$37,8,FALSE)","v":"政治学、马克思主义理论、学科教学（一级学科）"},"须具有对应学段、学科及以上教师资格证书，定向招聘七星关区户籍（含大方县托管的乡镇街道）考生","小学道德与法治"]
["265","毕节十中","0191","0857-8221396","全额事业","教师","01","专业技术岗位",1,"中小学教师类（D类）中学教师岗位",42,"大学本科及以上","学士学位及以上",null,"中国语言文学类、新闻传播学类、教育类",{"$f":"VLOOKUP(R270,[1]Sheet3!$A$2:$H$37,8,FALSE)","v":"中国语言文学、新闻传播学、学科教学（一级学科）"},"须具有对应学段、学科及以上教师资格证书","初中语文"]
["266","毕节市七星关区第二实验学校","0192","0857-8221396","全额事业","教师","01","专业技术岗位",10,"中小学教师类（D类）小学教师岗位",41,"大学本科及以上","学士学位及以上",null,"中国语言文学类、新闻传播学类、教育类",{"$f":"VLOOKUP(R271,[1]Sheet3!$A$2:$H$37,8,FALSE)","v":"中国语言文学、新闻传播学、学科教学（一级学科）"},"须具有对应学段、学科及以上教师资格证书，定向招聘七星关区户籍（含大方县托管的乡镇街道）考生","小学语文"]
["267","毕节市七星关区第二实验学校","0192","0857-8221396","全额事业","教师","02","专业技术岗位",7,"中小学教师类（D类）小学教师岗位",41,"大学本科及以上","学士学位及以上",null,"数学类、教育类",{"$f":"VLOOKUP(R272,[1]Sheet3!$A$2:$H$37,8,FALSE)","v":"数学、学科教学（一级学科）"},"须具有对应学段、学科及以上教师资格证书，定向招聘七星关区户籍（含大方县托管的乡镇街道）考生","小学数学"]
["268","毕节市七星关区第二实验学校","0192","0857-8221396","全额事业","教师","03","专业技术岗位",1,"中小学教师类（D类）小学教师岗位",41,"大学本科及以上","学士学位及以上",null,"  体育学类、教育类",{"$f":"VLOOKUP(R273,[1]Sheet3!$A$2:$H$37,8,FALSE)","v":"体育学、学科教学（一级学科）"},"须具有对应学段、学科及以上教师资格证书，定向招聘七星关区户籍（含大方县托管的乡镇街道）考生","小学体育"]
["269","毕节市七星关区第二实验学校","0192","0857-8221396","全额事业","教师","04","专业技术岗位",1,"中小学教师类（D类）小学教师岗位",41,"大学本科及以上","学士学位及以上",null,"美术学类、设计学类、教育学类、艺术类、教育类",{"$f":"VLOOKUP(R274,[1]Sheet3!$A$2:$H$37,8,FALSE)","v":"艺术学、学科教育（一级学科）"},"须具有对应学段、学科及以上教师资格证书，定向招聘七星关区户籍（含大方县托管的乡镇街道）考生","小学美术"]
["270","毕节市七星关区第二实验学校","0192","0857-8221396","全额事业","教师","05","专业技术岗位",2,"中小学教师类（D类）小学教师岗位",41,"大学本科及以上","学士学位及以上",null,"教育学类、音乐与舞蹈学类、 戏剧与影视学类、艺术类、教育类",{"$f":"VLOOKUP(R275,[1]Sheet3!$A$2:$H$37,8,FALSE)","v":"艺术学、学科教育（一级学科）"},"须具有对应学段、学科及以上教师资格证书，定向招聘七星关区户籍（含大方县托管的乡镇街道）考生","小学音乐"]
["271","毕节市七星关区第二实验学校","0192","0857-8221396","全额事业","教师","06","专业技术岗位",1,"中小学教师类（D类）小学教师岗位",41,"大学本科及以上","学士学位及以上",null,"教育类、生物科学类、生物工程类、物理学类、  化学类",{"$f":"VLOOKUP(R276,[1]Sheet3!$A$2:$H$37,8,FALSE)","v":"物理学、化学、生物学、学科教学（一级学科）"},"须具有小学或初中科学教师资格、初中或高中化学、物理、生物教师资格（小学教育专业须取得科学教师资格或全科教师资格），定向招聘七星关区户籍（含大方县托管的乡镇街道）考生","小学科学"]
["272","毕节市七星关区第二实验学校","0192","0857-8221396","全额事业","教师","07","专业技术岗位",1,"中小学教师类（D类）小学教师岗位",41,"大学本科及以上","学士学位及以上",null,"心理学类、教育类",{"$f":"VLOOKUP(R277,[1]Sheet3!$A$2:$H$37,8,FALSE)","v":"心理学（一级学科）"},"须具有对应学段、学科及以上教师资格证书，定向招聘七星关区户籍（含大方县托管的乡镇街道）考生","小学心理健康"]
["273","毕节市七星关区第二实验学校","0192","0857-8221396","全额事业","教师","08","专业技术岗位",2,"中小学教师类（D类）小学教师岗位",41,"大学本科及以上","学士学位及以上",null,"教育学类、计算机类、电子信息类",{"$f":"VLOOKUP(R278,[1]Sheet3!$A$2:$H$37,8,FALSE)","v":"信息与通信工程、计算机科学与技术、学科教学（一级学科）"},"须具有对应学段、学科及以上教师资格证书，定向招聘七星关区户籍（含大方县托管的乡镇街道）考生","小学信息技术"]
["274","毕节市七星关区第二实验学校","0192","0857-8221396","全额事业","教师","09","专业技术岗位",1,"中小学教师类（D类）中学教师岗位",42,"大学本科及以上","学士学位及以上",null,"美术学类、设计学类、教育学类、艺术类、教育类",{"$f":"VLOOKUP(R279,[1]Sheet3!$A$2:$H$37,8,FALSE)","v":"艺术学、学科教育（一级学科）"},"须具有对应学段、学科及以上教师资格证书","初中美术"]
["275","毕节市七星关区第二实验学校","0192","0857-8221396","全额事业","教师","10","专业技术岗位",1,"中小学教师类（D类）中学教师岗位",42,"大学本科及以上","学士学位及以上",null,"音乐与舞蹈学类、 戏剧与影视学类、艺术类、教育类",{"$f":"VLOOKUP(R280,[1]Sheet3!$A$2:$H$37,8,FALSE)","v":"艺术学、学科教育（一级学科）"},"须具有对应学段、学科及以上教师资格证书","初中音乐"]
["276","毕节市七星关区第九实验学校","0193","0857-8221396","全额事业","教师","01","专业技术岗位",2,"中小学教师类（D类）小学教师岗位",41,"大学本科及以上","学士学位及以上",null,"外国语言文学类、教育类",{"$f":"VLOOKUP(R281,[1]Sheet3!$A$2:$H$37,8,FALSE)","v":"外国语言文学、学科教育（一级学科）"},"须具有对应学段、学科及以上教师资格证书，定向招聘七星关区户籍（含大方县托管的乡镇街道）考生","小学英语"]
["277","毕节市七星关区第九实验学校","0193","0857-8221396","全额事业","教师","02","专业技术岗位",2,"中小学教师类（D类）小学教师岗位",41,"大学本科及以上","学士学位及以上",null,"美术学类、设计学类、教育学类、艺术类、教育类",{"$f":"VLOOKUP(R282,[1]Sheet3!$A$2:$H$37,8,FALSE)","v":"艺术学、学科教育（一级学科）"},"须具有对应学段、学科及以上教师资格证书，定向招聘七星关区户籍（含大方县托管的乡镇街道）考生","小学美术"]
["278","毕节市七星关区第九实验学校","0193","0857-8221396","全额事业","教师","03","专业技术岗位",3,"中小学教师类（D类）小学教师岗位",41,"大学本科及以上","学士学位及以上",null,"  体育学类、教育类",{"$f":"VLOOKUP(R283,[1]Sheet3!$A$2:$H$37,8,FALSE)","v":"体育学、学科教学（一级学科）"},"须具有对应学段、学科及以上教师资格证书，定向招聘七星关区户籍（含大方县托管的乡镇街道）考生","小学体育"]
["279","毕节市七星关区第九实验学校","0193","0857-8221396","全额事业","教师","04","专业技术岗位",2,"中小学教师类（D类）小学教师岗位",41,"大学本科及以上","学士学位及以上",null,"教育学类、音乐与舞蹈学类、 戏剧与影视学类、艺术类、教育类",{"$f":"VLOOKUP(R284,[1]Sheet3!$A$2:$H$37,8,FALSE)","v":"艺术学、学科教育（一级学科）"},"须具有对应学段、学科及以上教师资格证书，定向招聘七星关区户籍（含大方县托管的乡镇街道）考生","小学音乐"]
["280","毕节市七星关区第九实验学校","0193","0857-8221396","全额事业","教师","05","专业技术岗位",4,"中小学教师类（D类）小学教师岗位",41,"大学本科及以上","学士学位及以上",null,"中国语言文学类、新闻传播学类、教育类",{"$f":"VLOOKUP(R285,[1]Sheet3!$A$2:$H$37,8,FALSE)","v":"中国语言文学、新闻传播学、学科教学（一级学科）"},"须具有对应学段、学科及以上教师资格证书，定向招聘2024年度高校毕业生","小学语文"]
["281","毕节市七星关区第九实验学校","0193","0857-8221396","全额事业","教师","06","专业技术岗位",4,"中小学教师类（D类）小学教师岗位",41,"大学本科及以上","学士学位及以上",null,"数学类、教育类",{"$f":"VLOOKUP(R286,[1]Sheet3!$A$2:$H$37,8,FALSE)","v":"数学、学科教学（一级学科）"},"须具有对应学段、学科及以上教师资格证书，定向招聘2024年度高校毕业生","小学数学"]
["282","毕节市七星关区第九实验学校","0193","0857-8221396","全额事业","教师","07","专业技术岗位",2,"中小学教师类（D类）小学教师岗位",41,"大学本科及以上","学士学位及以上",null,"教育学类、计算机类、电子信息类",{"$f":"VLOOKUP(R287,[1]Sheet3!$A$2:$H$37,8,FALSE)","v":"信息与通信工程、计算机科学与技术、学科教学（一级学科）"},"须具有对应学段、学科及以上教师资格证书，定向招聘七星关区户籍（含大方县托管的乡镇街道）考生","小学信息技术"]
["283","毕节市七星关区第三实验学校","0194","0857-8221396","全额事业","教师","01","专业技术岗位",4,"中小学教师类（D类）中学教师岗位",42,"大学本科及以上","学士学位及以上",null,"外国语言文学类、教育类",{"$f":"VLOOKUP(R288,[1]Sheet3!$A$2:$H$37,8,FALSE)","v":"外国语言文学、学科教育（一级学科）"},"须具有对应学段、学科及以上教师资格证书","初中英语"]
["284","毕节市七星关区第三实验学校","0194","0857-8221396","全额事业","教师","02","专业技术岗位",1,"中小学教师类（D类）中学教师岗位",42,"大学本科及以上","学士学位及以上",null,"物理学类、教育类、地球物理学类",{"$f":"VLOOKUP(R289,[1]Sheet3!$A$2:$H$37,8,FALSE)","v":"物理学、力学，学科教学（一级学科）"},"须具有对应学段、学科及以上教师资格证书","初中物理"]
["285","毕节市七星关区第三实验学校","0194","0857-8221396","全额事业","教师","03","专业技术岗位",3,"中小学教师类（D类）中学教师岗位",42,"大学本科及以上","学士学位及以上",null,"数学类、教育类",{"$f":"VLOOKUP(R290,[1]Sheet3!$A$2:$H$37,8,FALSE)","v":"数学、学科教学（一级学科）"},"须具有对应学段、学科及以上教师资格证书","初中数学"]
["286","毕节市七星关区第三实验学校","0194","0857-8221396","全额事业","教师","04","专业技术岗位",3,"中小学教师类（D类）中学教师岗位",42,"大学本科及以上","学士学位及以上",null,"中国语言文学类、新闻传播学类、教育类",{"$f":"VLOOKUP(R291,[1]Sheet3!$A$2:$H$37,8,FALSE)","v":"中国语言文学、新闻传播学、学科教学（一级学科）"},"须具有对应学段、学科及以上教师资格证书","初中语文"]
["287","毕节市七星关区第三实验学校","0194","0857-8221396","全额事业","教师","05","专业技术岗位",2,"中小学教师类（D类）中学教师岗位",42,"大学本科及以上","学士学位及以上",null,"  体育学类、教育类",{"$f":"VLOOKUP(R292,[1]Sheet3!$A$2:$H$37,8,FALSE)","v":"体育学、学科教学（一级学科）"},"须具有对应学段、学科及以上教师资格证书","初中体育"]
["288","毕节市七星关区第三实验学校","0194","0857-8221396","全额事业","教师","06","专业技术岗位",1,"中小学教师类（D类）中学教师岗位",42,"大学本科及以上","学士学位及以上",null,"美术学类、设计学类、教育学类、艺术类、教育类",{"$f":"VLOOKUP(R293,[1]Sheet3!$A$2:$H$37,8,FALSE)","v":"艺术学、学科教育（一级学科）"},"须具有对应学段、学科及以上教师资格证书","初中美术"]
["289","毕节市七星关区第三实验学校","0194","0857-8221396","全额事业","教师","07","专业技术岗位",1,"中小学教师类（D类）中学教师岗位",42,"大学本科及以上","学士学位及以上",null,"教育类、生物科学类、生物工程类",{"$f":"VLOOKUP(R294,[1]Sheet3!$A$2:$H$37,8,FALSE)","v":"生物学、学科教学（一级学科）"},"须具有对应学段、学科及以上教师资格证书","初中生物"]
["290","毕节市七星关区第三实验学校","0194","0857-8221396","全额事业","教师","08","专业技术岗位",1,"中小学教师类（D类）中学教师岗位",42,"大学本科及以上","学士学位及以上",null,"地理科学类、大气科学类、海洋科学类、地质学类、教育类",{"$f":"VLOOKUP(R295,[1]Sheet3!$A$2:$H$37,8,FALSE)","v":"天文学、地理学、大气科学、海洋科学、地球物理学、地质学（一级学科）"},"须具有对应学段、学科及以上教师资格证书","初中地理"]
["291","毕节市七星关区第三实验学校","0194","0857-8221396","全额事业","教师","09","专业技术岗位",1,"中小学教师类（D类）中学教师岗位",42,"大学本科及以上","学士学位及以上",null,"音乐与舞蹈学类、 戏剧与影视学类、艺术类、教育类",{"$f":"VLOOKUP(R296,[1]Sheet3!$A$2:$H$37,8,FALSE)","v":"艺术学、学科教育（一级学科）"},"须具有对应学段、学科及以上教师资格证书","初中音乐"]
["292","毕节市七星关区第三实验学校","0194","0857-8221396","全额事业","教师","10","专业技术岗位",3,"中小学教师类（D类）小学教师岗位",41,"大学本科及以上","学士学位及以上",null,"中国语言文学类、新闻传播学类、教育类",{"$f":"VLOOKUP(R297,[1]Sheet3!$A$2:$H$37,8,FALSE)","v":"中国语言文学、新闻传播学、学科教学（一级学科）"},"须具有对应学段、学科及以上教师资格证书，定向招聘2024年度高校毕业生","小学语文"]
["293","毕节市七星关区第三实验学校","0194","0857-8221396","全额事业","教师","11","专业技术岗位",3,"中小学教师类（D类）小学教师岗位",41,"大学本科及以上","学士学位及以上",null,"数学类、教育类",{"$f":"VLOOKUP(R298,[1]Sheet3!$A$2:$H$37,8,FALSE)","v":"数学、学科教学（一级学科）"},"须具有对应学段、学科及以上教师资格证书，定向招聘2024年度高校毕业生","小学数学"]
["294","毕节市七星关区第三实验学校","0194","0857-8221396","全额事业","教师","12","专业技术岗位",1,"中小学教师类（D类）小学教师岗位",41,"大学本科及以上","学士学位及以上",null,"外国语言文学类、教育类",{"$f":"VLOOKUP(R299,[1]Sheet3!$A$2:$H$37,8,FALSE)","v":"外国语言文学、学科教育（一级学科）"},"须具有对应学段、学科及以上教师资格证书，定向招聘七星关区户籍（含大方县托管的乡镇街道）考生","小学英语"]
["295","毕节市七星关区第十实验学校","0195","0857-8221396","全额事业","教师","01","专业技术岗位",1,"中小学教师类（D类）中学教师岗位",42,"大学本科及以上","学士学位及以上",null,"中国语言文学类、新闻传播学类、教育类",{"$f":"VLOOKUP(R300,[1]Sheet3!$A$2:$H$37,8,FALSE)","v":"中国语言文学、新闻传播学、学科教学（一级学科）"},"须具有对应学段、学科及以上教师资格证书","初中语文"]
["296","毕节市七星关区第十实验学校","0195","0857-8221396","全额事业","教师","02","专业技术岗位",2,"中小学教师类（D类）小学教师岗位",41,"大学本科及以上","学士学位及以上",null,"数学类、教育类",{"$f":"VLOOKUP(R301,[1]Sheet3!$A$2:$H$37,8,FALSE)","v":"数学、学科教学（一级学科）"},"须具有对应学段、学科及以上教师资格证书，定向招聘2024年度高校毕业生","小学数学"]
["297","毕节市七星关区第十实验学校","0195","0857-8221396","全额事业","教师","03","专业技术岗位",3,"中小学教师类（D类）小学教师岗位",41,"大学本科及以上","学士学位及以上",null,"  体育学类、教育类",{"$f":"VLOOKUP(R302,[1]Sheet3!$A$2:$H$37,8,FALSE)","v":"体育学、学科教学（一级学科）"},"须具有对应学段、学科及以上教师资格证书，定向招聘七星关区户籍（含大方县托管的乡镇街道）考生","小学体育"]
["298","毕节市七星关区第十实验学校","0195","0857-8221396","全额事业","教师","04","专业技术岗位",2,"中小学教师类（D类）小学教师岗位",41,"大学本科及以上","学士学位及以上",null,"中国语言文学类、新闻传播学类、教育类",{"$f":"VLOOKUP(R303,[1]Sheet3!$A$2:$H$37,8,FALSE)","v":"中国语言文学、新闻传播学、学科教学（一级学科）"},"须具有对应学段、学科及以上教师资格证书，定向招聘2024年度高校毕业生","小学语文"]
["299","毕节市七星关区第十实验学校","0195","0857-8221396","全额事业","教师","05","专业技术岗位",1,"中小学教师类（D类）小学教师岗位",41,"大学本科及以上","学士学位及以上",null,"美术学类、设计学类、教育学类、艺术类、教育类",{"$f":"VLOOKUP(R304,[1]Sheet3!$A$2:$H$37,8,FALSE)","v":"艺术学、学科教育（一级学科）"},"须具有对应学段、学科及以上教师资格证书，定向招聘七星关区户籍（含大方县托管的乡镇街道）考生","小学美术"]
["300","毕节市七星关区第十实验学校","0195","0857-8221396","全额事业","教师","06","专业技术岗位",1,"中小学教师类（D类）中学教师岗位",42,"大学本科及以上","学士学位及以上",null,"物理学类、教育类、地球物理学类",{"$f":"VLOOKUP(R305,[1]Sheet3!$A$2:$H$37,8,FALSE)","v":"物理学、力学，学科教学（一级学科）"},"须具有对应学段、学科及以上教师资格证书","初中物理"]
["301","毕节市七星关区第四实验学校","0196","0857-8221396","全额事业","教师","01","专业技术岗位",10,"中小学教师类（D类）小学教师岗位",41,"大学本科及以上","学士学位及以上",null,"中国语言文学类、新闻传播学类、教育类",{"$f":"VLOOKUP(R306,[1]Sheet3!$A$2:$H$37,8,FALSE)","v":"中国语言文学、新闻传播学、学科教学（一级学科）"},"须具有对应学段、学科及以上教师资格证书，定向招聘七星关区户籍（含大方县托管的乡镇街道）考生","小学语文"]
["302","毕节市七星关区第四实验学校","0196","0857-8221396","全额事业","教师","02","专业技术岗位",5,"中小学教师类（D类）小学教师岗位",41,"大学本科及以上","学士学位及以上",null,"数学类、教育类",{"$f":"VLOOKUP(R307,[1]Sheet3!$A$2:$H$37,8,FALSE)","v":"数学、学科教学（一级学科）"},"须具有对应学段、学科及以上教师资格证书，定向招聘七星关区户籍（含大方县托管的乡镇街道）考生","小学数学"]
["303","毕节市七星关区第四实验学校","0196","0857-8221396","全额事业","教师","03","专业技术岗位",2,"中小学教师类（D类）小学教师岗位",41,"大学本科及以上","学士学位及以上",null,"  体育学类、教育类",{"$f":"VLOOKUP(R308,[1]Sheet3!$A$2:$H$37,8,FALSE)","v":"体育学、学科教学（一级学科）"},"须具有对应学段、学科及以上教师资格证书，定向招聘七星关区户籍（含大方县托管的乡镇街道）考生","小学体育"]
["304","毕节市七星关区第四实验学校","0196","0857-8221396","全额事业","教师","04","专业技术岗位",1,"中小学教师类（D类）小学教师岗位",41,"大学本科及以上","学士学位及以上",null,"外国语言文学类、教育类",{"$f":"VLOOKUP(R309,[1]Sheet3!$A$2:$H$37,8,FALSE)","v":"外国语言文学、学科教育（一级学科）"},"须具有对应学段、学科及以上教师资格证书，定向招聘七星关区户籍（含大方县托管的乡镇街道）考生","小学英语"]
["305","毕节市七星关区第四实验学校","0196","0857-8221396","全额事业","教师","05","专业技术岗位",2,"中小学教师类（D类）小学教师岗位",41,"大学本科及以上","学士学位及以上",null,"美术学类、设计学类、教育学类、艺术类、教育类",{"$f":"VLOOKUP(R310,[1]Sheet3!$A$2:$H$37,8,FALSE)","v":"艺术学、学科教育（一级学科）"},"须具有对应学段、学科及以上教师资格证书，定向招聘七星关区户籍（含大方县托管的乡镇街道）考生","小学美术"]
["306","毕节市七星关区第四实验学校","0196","0857-8221396","全额事业","教师","06","专业技术岗位",2,"中小学教师类（D类）小学教师岗位",41,"大学本科及以上","学士学位及以上",null,"教育学类、音乐与舞蹈学类、 戏剧与影视学类、艺术类、教育类",{"$f":"VLOOKUP(R311,[1]Sheet3!$A$2:$H$37,8,FALSE)","v":"艺术学、学科教育（一级学科）"},"须具有对应学段、学科及以上教师资格证书，定向招聘七星关区户籍（含大方县托管的乡镇街道）考生","小学音乐"]
["307","毕节市七星关区第一实验学校","0197","0857-8221396","全额事业","教师","01","专业技术岗位",4,"中小学教师类（D类）小学教师岗位",41,"大学本科及以上","学士学位及以上",null,"中国语言文学类、新闻传播学类、教育类",{"$f":"VLOOKUP(R312,[1]Sheet3!$A$2:$H$37,8,FALSE)","v":"中国语言文学、新闻传播学、学科教学（一级学科）"},"须具有对应学段、学科及以上教师资格证书，定向招聘七星关区户籍（含大方县托管的乡镇街道）考生","小学语文"]
["308","毕节市七星关区第一实验学校","0197","0857-8221396","全额事业","教师","02","专业技术岗位",5,"中小学教师类（D类）小学教师岗位",41,"大学本科及以上","学士学位及以上",null,"数学类、教育类",{"$f":"VLOOKUP(R313,[1]Sheet3!$A$2:$H$37,8,FALSE)","v":"数学、学科教学（一级学科）"},"须具有对应学段、学科及以上教师资格证书，定向招聘七星关区户籍（含大方县托管的乡镇街道）考生","小学数学"]
["309","毕节市七星关区第一实验学校","0197","0857-8221396","全额事业","教师","03","专业技术岗位",1,"中小学教师类（D类）小学教师岗位",41,"大学本科及以上","学士学位及以上",null,"  体育学类、教育类",{"$f":"VLOOKUP(R314,[1]Sheet3!$A$2:$H$37,8,FALSE)","v":"体育学、学科教学（一级学科）"},"须具有对应学段、学科及以上教师资格证书，定向招聘七星关区户籍（含大方县托管的乡镇街道）考生","小学体育"]
["310","毕节市七星关区第一实验学校","0197","0857-8221396","全额事业","教师","04","专业技术岗位",1,"中小学教师类（D类）小学教师岗位",41,"大学本科及以上","学士学位及以上",null,"教育学类、计算机类、电子信息类",{"$f":"VLOOKUP(R315,[1]Sheet3!$A$2:$H$37,8,FALSE)","v":"信息与通信工程、计算机科学与技术、学科教学（一级学科）"},"须具有对应学段、学科及以上教师资格证书，定向招聘七星关区户籍（含大方县托管的乡镇街道）考生","小学信息技术"]
["311","毕节市七星关区第一实验学校","0197","0857-8221396","全额事业","教师","05","专业技术岗位",1,"中小学教师类（D类）小学教师岗位",41,"大学本科及以上","学士学位及以上",null,"教育学类、音乐与舞蹈学类、 戏剧与影视学类、艺术类、教育类",{"$f":"VLOOKUP(R316,[1]Sheet3!$A$2:$H$37,8,FALSE)","v":"艺术学、学科教育（一级学科）"},"须具有对应学段、学科及以上教师资格证书，定向招聘七星关区户籍（含大方县托管的乡镇街道）考生","小学音乐"]
["312","毕节市七星关区第一实验学校","0197","0857-8221396","全额事业","教师","06","专业技术岗位",1,"中小学教师类（D类）小学教师岗位",41,"大学本科及以上","学士学位及以上",null,"教育类、生物科学类、生物工程类、物理学类、  化学类",{"$f":"VLOOKUP(R317,[1]Sheet3!$A$2:$H$37,8,FALSE)","v":"物理学、化学、生物学、学科教学（一级学科）"},"须具有小学或初中科学教师资格、初中或高中化学、物理、生物教师资格（小学教育专业须取得科学教师资格或全科教师资格），定向招聘七星关区户籍（含大方县托管的乡镇街道）考生","小学科学"]
["313","毕节市七星关区观音桥街道中心校","0198","0857-8221396","全额事业","教师","01","专业技术岗位",1,"中小学教师类（D类）小学教师岗位",41,"大学本科及以上","学士学位及以上",null,"数学类、教育类",{"$f":"VLOOKUP(R318,[1]Sheet3!$A$2:$H$37,8,FALSE)","v":"数学、学科教学（一级学科）"},"须具有对应学段、学科及以上教师资格证书，定向招聘2024年度高校毕业生","小学数学"]
["314","毕节市七星关区观音桥街道中心校","0198","0857-8221396","全额事业","教师","02","专业技术岗位",1,"中小学教师类（D类）小学教师岗位",41,"大学本科及以上","学士学位及以上",null,"外国语言文学类、教育类",{"$f":"VLOOKUP(R319,[1]Sheet3!$A$2:$H$37,8,FALSE)","v":"外国语言文学、学科教育（一级学科）"},"须具有对应学段、学科及以上教师资格证书，定向招聘七星关区户籍（含大方县托管的乡镇街道）考生","小学英语"]
["315","毕节市七星关区海子街中学","0199","0857-8221396","全额事业","教师","01","专业技术岗位",1,"中小学教师类（D类）中学教师岗位",42,"大学本科及以上","学士学位及以上",null,"中国语言文学类、新闻传播学类、教育类",{"$f":"VLOOKUP(R320,[1]Sheet3!$A$2:$H$37,8,FALSE)","v":"中国语言文学、新闻传播学、学科教学（一级学科）"},"须具有对应学段、学科及以上教师资格证书","高中语文"]
["316","毕节市七星关区海子街中学","0199","0857-8221396","全额事业","教师","02","专业技术岗位",2,"中小学教师类（D类）中学教师岗位",42,"大学本科及以上","学士学位及以上",null,"数学类、教育类",{"$f":"VLOOKUP(R321,[1]Sheet3!$A$2:$H$37,8,FALSE)","v":"数学、学科教学（一级学科）"},"须具有对应学段、学科及以上教师资格证书","高中数学"]
["317","毕节市七星关区海子街中学","0199","0857-8221396","全额事业","教师","03","专业技术岗位",1,"中小学教师类（D类）中学教师岗位",42,"大学本科及以上","学士学位及以上",null,"教育类、化学类",{"$f":"VLOOKUP(R322,[1]Sheet3!$A$2:$H$37,8,FALSE)","v":"化学、学科教学、 化学工程与技术（一级学科）"},"须具有对应学段、学科及以上教师资格证书","高中化学"]
["318","毕节市七星关区海子街中学","0199","0857-8221396","全额事业","教师","04","专业技术岗位",1,"中小学教师类（D类）中学教师岗位",42,"大学本科及以上","学士学位及以上",null," 政治学类、 马克思主义理论类、教育类",{"$f":"VLOOKUP(R323,[1]Sheet3!$A$2:$H$37,8,FALSE)","v":"政治学、马克思主义理论、学科教学（一级学科）"},"须具有对应学段、学科及以上教师资格证书","高中政治"]
["319","毕节市七星关区海子街中学","0199","0857-8221396","全额事业","教师","05","专业技术岗位",1,"中小学教师类（D类）中学教师岗位",42,"大学本科及以上","学士学位及以上",null,"心理学类、教育类",{"$f":"VLOOKUP(R324,[1]Sheet3!$A$2:$H$37,8,FALSE)","v":"心理学（一级学科）"},"须具有对应学段、学科及以上教师资格证书","高中心理健康"]
["320","毕节市七星关区海子街中学","0199","0857-8221396","全额事业","教师","06","专业技术岗位",1,"中小学教师类（D类）中学教师岗位",42,"大学本科及以上","学士学位及以上",null,"音乐与舞蹈学类、 戏剧与影视学类、艺术类",{"$f":"VLOOKUP(R325,[1]Sheet3!$A$2:$H$37,8,FALSE)","v":"艺术学、学科教育（一级学科）"},"须具有对应学段、学科及以上教师资格证书","高中舞蹈"]
["321","毕节市七星关区民族中学","0200","0857-8221396","全额事业","教师","01","专业技术岗位",1,"中小学教师类（D类）中学教师岗位",42,"大学本科及以上","学士学位及以上",null,"数学类、教育类",{"$f":"VLOOKUP(R326,[1]Sheet3!$A$2:$H$37,8,FALSE)","v":"数学、学科教学（一级学科）"},"须具有对应学段、学科及以上教师资格证书","初中数学"]
["322","毕节市七星关区民族中学","0200","0857-8221396","全额事业","教师","02","专业技术岗位",1,"中小学教师类（D类）中学教师岗位",42,"大学本科及以上","学士学位及以上",null,"中国语言文学类、新闻传播学类、教育类",{"$f":"VLOOKUP(R327,[1]Sheet3!$A$2:$H$37,8,FALSE)","v":"中国语言文学、新闻传播学、学科教学（一级学科）"},"须具有对应学段、学科及以上教师资格证书","初中语文"]
["323","毕节市七星关区民族中学","0200","0857-8221396","全额事业","教师","03","专业技术岗位",1,"中小学教师类（D类）中学教师岗位",42,"大学本科及以上","学士学位及以上",null,"外国语言文学类、教育类",{"$f":"VLOOKUP(R328,[1]Sheet3!$A$2:$H$37,8,FALSE)","v":"外国语言文学、学科教育（一级学科）"},"须具有对应学段、学科及以上教师资格证书","初中英语"]
["324","毕节市七星关区实验中学","0201","0857-8221396","全额事业","教师","01","专业技术岗位",1,"中小学教师类（D类）中学教师岗位",42,"大学本科及以上","学士学位及以上",null,"数学类、教育类",{"$f":"VLOOKUP(R329,[1]Sheet3!$A$2:$H$37,8,FALSE)","v":"数学、学科教学（一级学科）"},"须具有对应学段、学科及以上教师资格证书","初中数学"]
["325","毕节市七星关区实验中学","0201","0857-8221396","全额事业","教师","02","专业技术岗位",1,"中小学教师类（D类）中学教师岗位",42,"大学本科及以上","学士学位及以上",null,"  体育学类、教育类",{"$f":"VLOOKUP(R330,[1]Sheet3!$A$2:$H$37,8,FALSE)","v":"体育学、学科教学（一级学科）"},"须具有对应学段、学科及以上教师资格证书","初中体育"]
["326","毕节市七星关区实验中学","0201","0857-8221396","全额事业","教师","03","专业技术岗位",1,"中小学教师类（D类）中学教师岗位",42,"大学本科及以上","学士学位及以上",null,"外国语言文学类、教育类",{"$f":"VLOOKUP(R331,[1]Sheet3!$A$2:$H$37,8,FALSE)","v":"外国语言文学、学科教育（一级学科）"},"须具有对应学段、学科及以上教师资格证书","初中英语"]
["327","毕节市七星关区实验中学","0201","0857-8221396","全额事业","教师","04","专业技术岗位",1,"中小学教师类（D类）中学教师岗位",42,"大学本科及以上","学士学位及以上",null,"中国语言文学类、新闻传播学类、教育类",{"$f":"VLOOKUP(R332,[1]Sheet3!$A$2:$H$37,8,FALSE)","v":"中国语言文学、新闻传播学、学科教学（一级学科）"},"须具有对应学段、学科及以上教师资格证书","初中语文"]
["328","毕节市七星关区实验中学","0201","0857-8221396","全额事业","教师","05","专业技术岗位",1,"中小学教师类（D类）中学教师岗位",42,"大学本科及以上","学士学位及以上",null," 政治学类、 马克思主义理论类、教育类",{"$f":"VLOOKUP(R333,[1]Sheet3!$A$2:$H$37,8,FALSE)","v":"政治学、马克思主义理论、学科教学（一级学科）"},"须具有对应学段、学科及以上教师资格证书","初中政治"]
["329","毕节市七星关区实验中学","0201","0857-8221396","全额事业","教师","06","专业技术岗位",2,"中小学教师类（D类）中学教师岗位",42,"大学本科及以上","学士学位及以上",null,"文史类、历史学类、教育类",{"$f":"VLOOKUP(R334,[1]Sheet3!$A$2:$H$37,8,FALSE)","v":"历史学、学科教学（一级学科）"},"须具有对应学段、学科及以上教师资格证书","初中历史"]
["330","毕节市七星关区实验中学","0201","0857-8221396","全额事业","教师","07","专业技术岗位",1,"中小学教师类（D类）中学教师岗位",42,"大学本科及以上","学士学位及以上",null,"物理学类、教育类、地球物理学类",{"$f":"VLOOKUP(R335,[1]Sheet3!$A$2:$H$37,8,FALSE)","v":"物理学、力学，学科教学（一级学科）"},"须具有对应学段、学科及以上教师资格证书","初中物理"]
["331","毕节市七星关区实验中学","0201","0857-8221396","全额事业","教师","08","专业技术岗位",1,"中小学教师类（D类）中学教师岗位",42,"大学本科及以上","学士学位及以上",null,"教育类、生物科学类、生物工程类",{"$f":"VLOOKUP(R336,[1]Sheet3!$A$2:$H$37,8,FALSE)","v":"生物学、学科教学（一级学科）"},"须具有对应学段、学科及以上教师资格证书","初中生物"]
["332","毕节市七星关区实验中学","0201","0857-8221396","全额事业","教师","09","专业技术岗位",1,"中小学教师类（D类）中学教师岗位",42,"大学本科及以上","学士学位及以上",null,"地理科学类、大气科学类、海洋科学类、地质学类、教育类",{"$f":"VLOOKUP(R337,[1]Sheet3!$A$2:$H$37,8,FALSE)","v":"天文学、地理学、大气科学、海洋科学、地球物理学、地质学（一级学科）"},"须具有对应学段、学科及以上教师资格证书","初中地理"]
["333","毕节市七星关区思源实验学校","0202","0857-8221396","全额事业","教师","01","专业技术岗位",2,"中小学教师类（D类）中学教师岗位",42,"大学本科及以上","学士学位及以上",null,"外国语言文学类、教育类",{"$f":"VLOOKUP(R338,[1]Sheet3!$A$2:$H$37,8,FALSE)","v":"外国语言文学、学科教育（一级学科）"},"须具有对应学段、学科及以上教师资格证书","初中英语"]
["334","毕节市七星关区思源实验学校","0202","0857-8221396","全额事业","教师","02","专业技术岗位",1,"中小学教师类（D类）中学教师岗位",42,"大学本科及以上","学士学位及以上",null," 政治学类、 马克思主义理论类、教育类",{"$f":"VLOOKUP(R339,[1]Sheet3!$A$2:$H$37,8,FALSE)","v":"政治学、马克思主义理论、学科教学（一级学科）"},"须具有对应学段、学科及以上教师资格证书","初中政治"]
["335","毕节市七星关区思源实验学校","0202","0857-8221396","全额事业","教师","03","专业技术岗位",1,"中小学教师类（D类）中学教师岗位",42,"大学本科及以上","学士学位及以上",null,"数学类、教育类",{"$f":"VLOOKUP(R340,[1]Sheet3!$A$2:$H$37,8,FALSE)","v":"数学、学科教学（一级学科）"},"须具有对应学段、学科及以上教师资格证书","初中数学"]
["336","毕节市七星关区思源实验学校","0202","0857-8221396","全额事业","教师","04","专业技术岗位",1,"中小学教师类（D类）中学教师岗位",42,"大学本科及以上","学士学位及以上",null,"中国语言文学类、新闻传播学类、教育类",{"$f":"VLOOKUP(R341,[1]Sheet3!$A$2:$H$37,8,FALSE)","v":"中国语言文学、新闻传播学、学科教学（一级学科）"},"须具有对应学段、学科及以上教师资格证书","初中语文"]
["337","毕节市七星关区思源实验学校","0202","0857-8221396","全额事业","教师","05","专业技术岗位",1,"中小学教师类（D类）中学教师岗位",42,"大学本科及以上","学士学位及以上",null,"物理学类、教育类、地球物理学类",{"$f":"VLOOKUP(R342,[1]Sheet3!$A$2:$H$37,8,FALSE)","v":"物理学、力学，学科教学（一级学科）"},"须具有对应学段、学科及以上教师资格证书","初中物理"]
["338","毕节市七星关区思源实验学校","0202","0857-8221396","全额事业","教师","06","专业技术岗位",1,"中小学教师类（D类）中学教师岗位",42,"大学本科及以上","学士学位及以上",null,"教育类、生物科学类、生物工程类",{"$f":"VLOOKUP(R343,[1]Sheet3!$A$2:$H$37,8,FALSE)","v":"生物学、学科教学（一级学科）"},"须具有对应学段、学科及以上教师资格证书","初中生物"]
["339","毕节四中","0203","0857-8221396","全额事业","教师","01","专业技术岗位",1,"中小学教师类（D类）中学教师岗位",42,"大学本科及以上","学士学位及以上",null,"外国语言文学类、教育类",{"$f":"VLOOKUP(R344,[1]Sheet3!$A$2:$H$37,8,FALSE)","v":"外国语言文学、学科教育（一级学科）"},"须具有对应学段、学科及以上教师资格证书","高中英语"]
["340","毕节四中","0203","0857-8221396","全额事业","教师","02","专业技术岗位",1,"中小学教师类（D类）中学教师岗位",42,"大学本科及以上","学士学位及以上",null," 政治学类、 马克思主义理论类、教育类",{"$f":"VLOOKUP(R345,[1]Sheet3!$A$2:$H$37,8,FALSE)","v":"政治学、马克思主义理论、学科教学（一级学科）"},"须具有对应学段、学科及以上教师资格证书","高中政治"]
["341","毕节四中","0203","0857-8221396","全额事业","教师","03","专业技术岗位",1,"中小学教师类（D类）中学教师岗位",42,"大学本科及以上","学士学位及以上",null,"数学类、教育类",{"$f":"VLOOKUP(R346,[1]Sheet3!$A$2:$H$37,8,FALSE)","v":"数学、学科教学（一级学科）"},"须具有对应学段、学科及以上教师资格证书","高中数学"]
["342","毕节四中","0203","0857-8221396","全额事业","教师","04","专业技术岗位",2,"中小学教师类（D类）中学教师岗位",42,"大学本科及以上","学士学位及以上",null,"体育学类、教育类",{"$f":"VLOOKUP(R347,[1]Sheet3!$A$2:$H$37,8,FALSE)","v":"体育学、学科教学（一级学科）"},"须具有对应学段、学科及以上教师资格证书","高中体育"]
["343","毕节四中","0203","0857-8221396","全额事业","教师","05","专业技术岗位",1,"中小学教师类（D类）中学教师岗位",42,"大学本科及以上","学士学位及以上",null,"教育类、化学类",{"$f":"VLOOKUP(R348,[1]Sheet3!$A$2:$H$37,8,FALSE)","v":"化学、学科教学、 化学工程与技术（一级学科）"},"须具有对应学段、学科及以上教师资格证书","高中化学"]
["344","毕节四中","0203","0857-8221396","全额事业","教师","06","专业技术岗位",1,"中小学教师类（D类）中学教师岗位",42,"大学本科及以上","学士学位及以上",null,"物理学类、教育类、地球物理学类",{"$f":"VLOOKUP(R349,[1]Sheet3!$A$2:$H$37,8,FALSE)","v":"物理学、力学，学科教学（一级学科）"},"须具有对应学段、学科及以上教师资格证书","高中物理"]
["345","毕节市七星关区甘河街道廖家小学","0204","0857-8221396","全额事业","教师","01","专业技术岗位",1,"中小学教师类（D类）小学教师岗位",41,"大学本科及以上","学士学位及以上",null,"数学类、教育类",{"$f":"VLOOKUP(R350,[1]Sheet3!$A$2:$H$37,8,FALSE)","v":"数学、学科教学（一级学科）"},"须具有对应学段、学科及以上教师资格证书，定向招聘2024年度高校毕业生","小学数学"]
["346","毕节市七星关区柏杨林街道中心校","0205","0857-8221396","全额事业","教师","01","专业技术岗位",2,"中小学教师类（D类）小学教师岗位",41,"大学本科及以上","学士学位及以上",null,"教育学类、教育类",{"$f":"VLOOKUP(R351,[1]Sheet3!$A$2:$H$37,8,FALSE)","v":"教育学（一级学科）"},"须具有特殊教育教师资格证书；","特殊教育"]
["347","毕节市七星关区碧阳街道中心校","0206","0857-8221396","全额事业","教师","01","专业技术岗位",1,"中小学教师类（D类）小学教师岗位",41,"大学本科及以上","学士学位及以上",null,"教育学类、音乐与舞蹈学类、 戏剧与影视学类、艺术类、教育类",{"$f":"VLOOKUP(R352,[1]Sheet3!$A$2:$H$37,8,FALSE)","v":"艺术学、学科教育（一级学科）"},"须具有对应学段、学科及以上教师资格证书，定向招聘七星关区户籍（含大方县托管的乡镇街道）考生","小学音乐"]
["348","毕节市七星关区碧阳街道中心校","0206","0857-8221396","全额事业","教师","02","专业技术岗位",1,"中小学教师类（D类）小学教师岗位",41,"大学本科及以上","学士学位及以上",null,"美术学类、设计学类、教育学类、艺术类、教育类",{"$f":"VLOOKUP(R353,[1]Sheet3!$A$2:$H$37,8,FALSE)","v":"艺术学、学科教育（一级学科）"},"须具有对应学段、学科及以上教师资格证书，定向招聘七星关区户籍（含大方县托管的乡镇街道）考生","小学美术"]
["349","毕节市七星关区碧阳街道中心校","0206","0857-8221396","全额事业","教师","03","专业技术岗位",1,"中小学教师类（D类）小学教师岗位",41,"大学本科及以上","学士学位及以上",null,"外国语言文学类、教育类",{"$f":"VLOOKUP(R354,[1]Sheet3!$A$2:$H$37,8,FALSE)","v":"外国语言文学、学科教育（一级学科）"},"须具有对应学段、学科及以上教师资格证书，定向招聘七星关区户籍（含大方县托管的乡镇街道）考生","小学英语"]
["350","毕节市七星关区碧阳街道中心校","0206","0857-8221396","全额事业","教师","04","专业技术岗位",1,"中小学教师类（D类）小学教师岗位",41,"大学本科及以上","学士学位及以上",null,"数学类、教育类",{"$f":"VLOOKUP(R355,[1]Sheet3!$A$2:$H$37,8,FALSE)","v":"数学、学科教学（一级学科）"},"须具有对应学段、学科及以上教师资格证书，定向招聘2024年度高校毕业生","小学数学"]
["351","毕节市七星关区碧阳街道中心校","0206","0857-8221396","全额事业","教师","05","专业技术岗位",1,"中小学教师类（D类）小学教师岗位",41,"大学本科及以上","学士学位及以上",null,"中国语言文学类、新闻传播学类、教育类",{"$f":"VLOOKUP(R356,[1]Sheet3!$A$2:$H$37,8,FALSE)","v":"中国语言文学、新闻传播学、学科教学（一级学科）"},"须具有对应学段、学科及以上教师资格证书，定向招聘2024年度高校毕业生","小学语文"]
["352","毕节市七星关区碧阳街道中心校","0206","0857-8221396","全额事业","教师","06","专业技术岗位",1,"中小学教师类（D类）小学教师岗位",41,"大学本科及以上","学士学位及以上",null,"  体育学类、教育类",{"$f":"VLOOKUP(R357,[1]Sheet3!$A$2:$H$37,8,FALSE)","v":"体育学、学科教学（一级学科）"},"须具有对应学段、学科及以上教师资格证书，定向招聘七星关区户籍（含大方县托管的乡镇街道）考生","小学体育"]
["353","毕节市七星关区甘河街道中心校","0207","0857-8221396","全额事业","教师","01","专业技术岗位",1,"中小学教师类（D类）小学教师岗位",41,"大学本科及以上","学士学位及以上",null,"数学类、教育类",{"$f":"VLOOKUP(R358,[1]Sheet3!$A$2:$H$37,8,FALSE)","v":"数学、学科教学（一级学科）"},"须具有对应学段、学科及以上教师资格证书，定向招聘2024年度高校毕业生","小学数学"]
["354","毕节市七星关区甘河街道中心校","0207","0857-8221396","全额事业","教师","02","专业技术岗位",1,"中小学教师类（D类）小学教师岗位",41,"大学本科及以上","学士学位及以上",null,"中国语言文学类、新闻传播学类、教育类",{"$f":"VLOOKUP(R359,[1]Sheet3!$A$2:$H$37,8,FALSE)","v":"中国语言文学、新闻传播学、学科教学（一级学科）"},"须具有对应学段、学科及以上教师资格证书，定向招聘2024年度高校毕业生","小学语文"]
["355","毕节市七星关区甘河街道中心校","0207","0857-8221396","全额事业","教师","03","专业技术岗位",1,"中小学教师类（D类）小学教师岗位",41,"大学本科及以上","学士学位及以上",null,"教育类、生物科学类、生物工程类、物理学类、  化学类",{"$f":"VLOOKUP(R360,[1]Sheet3!$A$2:$H$37,8,FALSE)","v":"物理学、化学、生物学、学科教学（一级学科）"},"须具有小学或初中科学教师资格、初中或高中化学、物理、生物教师资格（小学教育专业须取得科学教师资格或全科教师资格），定向招聘七星关区户籍（含大方县托管的乡镇街道）考生","小学科学"]
["356","毕节市七星关区甘河街道中心校","0207","0857-8221396","全额事业","教师","04","专业技术岗位",1,"中小学教师类（D类）中学教师岗位",42,"大学本科及以上","学士学位及以上",null,"数学类、教育类",{"$f":"VLOOKUP(R361,[1]Sheet3!$A$2:$H$37,8,FALSE)","v":"数学、学科教学（一级学科）"},"须具有对应学段、学科及以上教师资格证书","初中数学"]
["357","毕节市七星关区洪山街道中心校","0208","0857-8221396","全额事业","教师","01","专业技术岗位",2,"中小学教师类（D类）小学教师岗位",41,"大学本科及以上","学士学位及以上",null,"中国语言文学类、新闻传播学类、教育类",{"$f":"VLOOKUP(R362,[1]Sheet3!$A$2:$H$37,8,FALSE)","v":"中国语言文学、新闻传播学、学科教学（一级学科）"},"须具有对应学段、学科及以上教师资格证书，定向招聘2024年度高校毕业生","小学语文"]
["358","毕节市七星关区洪山街道中心校","0208","0857-8221396","全额事业","教师","02","专业技术岗位",2,"中小学教师类（D类）小学教师岗位",41,"大学本科及以上","学士学位及以上",null,"数学类、教育类",{"$f":"VLOOKUP(R363,[1]Sheet3!$A$2:$H$37,8,FALSE)","v":"数学、学科教学（一级学科）"},"须具有对应学段、学科及以上教师资格证书，定向招聘2024年度高校毕业生","小学数学"]
["359","毕节市七星关区洪山街道中心校","0208","0857-8221396","全额事业","教师","03","专业技术岗位",1,"中小学教师类（D类）小学教师岗位",41,"大学本科及以上","学士学位及以上",null,"教育学类、音乐与舞蹈学类、 戏剧与影视学类、艺术类、教育类",{"$f":"VLOOKUP(R364,[1]Sheet3!$A$2:$H$37,8,FALSE)","v":"艺术学、学科教育（一级学科）"},"须具有对应学段、学科及以上教师资格证书，定向招聘七星关区户籍（含大方县托管的乡镇街道）考生","小学音乐"]
["360","毕节市七星关区洪山街道中心校","0208","0857-8221396","全额事业","教师","04","专业技术岗位",1,"中小学教师类（D类）小学教师岗位",41,"大学本科及以上","学士学位及以上",null,"  体育学类、教育类",{"$f":"VLOOKUP(R365,[1]Sheet3!$A$2:$H$37,8,FALSE)","v":"体育学、学科教学（一级学科）"},"须具有对应学段、学科及以上教师资格证书，定向招聘七星关区户籍（含大方县托管的乡镇街道）考生","小学体育"]
["361","毕节市七星关区麻园街道中心校","0209","0857-8221396","全额事业","教师","01","专业技术岗位",1,"中小学教师类（D类）小学教师岗位",41,"大学本科及以上","学士学位及以上",null,"数学类、教育类",{"$f":"VLOOKUP(R366,[1]Sheet3!$A$2:$H$37,8,FALSE)","v":"数学、学科教学（一级学科）"},"须具有对应学段、学科及以上教师资格证书，定向招聘2024年度高校毕业生","小学数学"]
["362","毕节市七星关区麻园街道中心校","0209","0857-8221396","全额事业","教师","02","专业技术岗位",1,"中小学教师类（D类）小学教师岗位",41,"大学本科及以上","学士学位及以上",null,"  体育学类、教育类",{"$f":"VLOOKUP(R367,[1]Sheet3!$A$2:$H$37,8,FALSE)","v":"体育学、学科教学（一级学科）"},"须具有对应学段、学科及以上教师资格证书，定向招聘七星关区户籍（含大方县托管的乡镇街道）考生","小学体育"]
["363","毕节市七星关区麻园街道中心校","0209","0857-8221396","全额事业","教师","03","专业技术岗位",1,"中小学教师类（D类）小学教师岗位",41,"大学本科及以上","学士学位及以上",null,"教育类、生物科学类、生物工程类、物理学类、  化学类",{"$f":"VLOOKUP(R368,[1]Sheet3!$A$2:$H$37,8,FALSE)","v":"物理学、化学、生物学、学科教学（一级学科）"},"须具有小学或初中科学教师资格、初中或高中化学、物理、生物教师资格（小学教育专业须取得科学教师资格或全科教师资格），定向招聘七星关区户籍（含大方县托管的乡镇街道）考生","小学科学"]
["364","毕节市七星关区麻园街道中心校","0209","0857-8221396","全额事业","教师","04","专业技术岗位",1,"中小学教师类（D类）小学教师岗位",41,"大学本科及以上","学士学位及以上",null,"心理学类、教育类",{"$f":"VLOOKUP(R369,[1]Sheet3!$A$2:$H$37,8,FALSE)","v":"心理学（一级学科）"},"须具有对应学段、学科及以上教师资格证书，定向招聘七星关区户籍（含大方县托管的乡镇街道）考生","小学心理健康"]
["365","毕节市七星关区青龙街道汉屯小学","0210","0857-8221396","全额事业","教师","01","专业技术岗位",1,"中小学教师类（D类）中学教师岗位",42,"大学本科及以上","学士学位及以上",null,"数学类、教育类",{"$f":"VLOOKUP(R370,[1]Sheet3!$A$2:$H$37,8,FALSE)","v":"数学、学科教学（一级学科）"},"须具有对应学段、学科及以上教师资格证书","初中数学"]
["366","毕节市七星关区青龙街道中心校","0211","0857-8221396","全额事业","教师","01","专业技术岗位",3,"中小学教师类（D类）小学教师岗位",41,"大学本科及以上","学士学位及以上",null,"中国语言文学类、新闻传播学类、教育类",{"$f":"VLOOKUP(R371,[1]Sheet3!$A$2:$H$37,8,FALSE)","v":"中国语言文学、新闻传播学、学科教学（一级学科）"},"须具有对应学段、学科及以上教师资格证书，定向招聘2024年度高校毕业生","小学语文"]
["367","毕节市七星关区市东街道中心校","0212","0857-8221396","全额事业","教师","01","专业技术岗位",1,"中小学教师类（D类）小学教师岗位",41,"大学本科及以上","学士学位及以上",null,"中国语言文学类、新闻传播学类、教育类",{"$f":"VLOOKUP(R372,[1]Sheet3!$A$2:$H$37,8,FALSE)","v":"中国语言文学、新闻传播学、学科教学（一级学科）"},"须具有对应学段、学科及以上教师资格证书，定向招聘2024年度高校毕业生","小学语文"]
["368","毕节市七星关区市东街道中心校","0212","0857-8221396","全额事业","教师","02","专业技术岗位",1,"中小学教师类（D类）小学教师岗位",41,"大学本科及以上","学士学位及以上",null,"外国语言文学类、教育类",{"$f":"VLOOKUP(R373,[1]Sheet3!$A$2:$H$37,8,FALSE)","v":"外国语言文学、学科教育（一级学科）"},"须具有对应学段、学科及以上教师资格证书，定向招聘七星关区户籍（含大方县托管的乡镇街道）考生","小学英语"]
["369","毕节市七星关区市东街道中心校","0212","0857-8221396","全额事业","教师","03","专业技术岗位",1,"中小学教师类（D类）小学教师岗位",41,"大学本科及以上","学士学位及以上",null,"  体育学类、教育类",{"$f":"VLOOKUP(R374,[1]Sheet3!$A$2:$H$37,8,FALSE)","v":"体育学、学科教学（一级学科）"},"须具有对应学段、学科及以上教师资格证书，定向招聘七星关区户籍（含大方县托管的乡镇街道）考生","小学体育"]
["370","毕节市七星关区市东街道中心校","0212","0857-8221396","全额事业","教师","04","专业技术岗位",1,"中小学教师类（D类）小学教师岗位",41,"大学本科及以上","学士学位及以上",null,"教育学类、音乐与舞蹈学类、 戏剧与影视学类、艺术类、教育类",{"$f":"VLOOKUP(R375,[1]Sheet3!$A$2:$H$37,8,FALSE)","v":"艺术学、学科教育（一级学科）"},"须具有对应学段、学科及以上教师资格证书，定向招聘七星关区户籍（含大方县托管的乡镇街道）考生","小学音乐"]
["371","毕节市七星关区市西街道中心校","0213","0857-8221396","全额事业","教师","01","专业技术岗位",4,"中小学教师类（D类）小学教师岗位",41,"大学本科及以上","学士学位及以上",null,"中国语言文学类、新闻传播学类、教育类",{"$f":"VLOOKUP(R376,[1]Sheet3!$A$2:$H$37,8,FALSE)","v":"中国语言文学、新闻传播学、学科教学（一级学科）"},"须具有对应学段、学科及以上教师资格证书，定向招聘2024年度高校毕业生","小学语文"]
["372","毕节市七星关区市西街道中心校","0213","0857-8221396","全额事业","教师","02","专业技术岗位",2,"中小学教师类（D类）小学教师岗位",41,"大学本科及以上","学士学位及以上",null,"数学类、教育类",{"$f":"VLOOKUP(R377,[1]Sheet3!$A$2:$H$37,8,FALSE)","v":"数学、学科教学（一级学科）"},"须具有对应学段、学科及以上教师资格证书，定向招聘2024年度高校毕业生","小学数学"]
["373","毕节市七星关区市西街道中心校","0213","0857-8221396","全额事业","教师","03","专业技术岗位",2,"中小学教师类（D类）小学教师岗位",41,"大学本科及以上","学士学位及以上",null,"  体育学类、教育类",{"$f":"VLOOKUP(R378,[1]Sheet3!$A$2:$H$37,8,FALSE)","v":"体育学、学科教学（一级学科）"},"须具有对应学段、学科及以上教师资格证书，定向招聘七星关区户籍（含大方县托管的乡镇街道）考生","小学体育"]
["374","毕节市七星关区八寨中学","0214","0857-8221396","全额事业","教师","01","专业技术岗位",1,"中小学教师类（D类）中学教师岗位",42,"大学本科及以上","学士学位及以上",null,"中国语言文学类、新闻传播学类、教育类",{"$f":"VLOOKUP(R379,[1]Sheet3!$A$2:$H$37,8,FALSE)","v":"中国语言文学、新闻传播学、学科教学（一级学科）"},"须具有对应学段、学科及以上教师资格证书","初中语文"]
["375","毕节市七星关区层台中学","0215","0857-8221396","全额事业","教师","01","专业技术岗位",1,"中小学教师类（D类）中学教师岗位",42,"大学本科及以上","学士学位及以上",null,"中国语言文学类、新闻传播学类、教育类",{"$f":"VLOOKUP(R380,[1]Sheet3!$A$2:$H$37,8,FALSE)","v":"中国语言文学、新闻传播学、学科教学（一级学科）"},"须具有对应学段、学科及以上教师资格证书","初中语文"]
["376","毕节市七星关区层台中学","0215","0857-8221396","全额事业","教师","02","专业技术岗位",1,"中小学教师类（D类）中学教师岗位",42,"大学本科及以上","学士学位及以上",null,"数学类、教育类",{"$f":"VLOOKUP(R381,[1]Sheet3!$A$2:$H$37,8,FALSE)","v":"数学、学科教学（一级学科）"},"须具有对应学段、学科及以上教师资格证书","初中数学"]
["377","毕节市七星关区层台中学","0215","0857-8221396","全额事业","教师","03","专业技术岗位",1,"中小学教师类（D类）中学教师岗位",42,"大学本科及以上","学士学位及以上",null,"  体育学类、教育类",{"$f":"VLOOKUP(R382,[1]Sheet3!$A$2:$H$37,8,FALSE)","v":"体育学、学科教学（一级学科）"},"须具有对应学段、学科及以上教师资格证书","初中体育"]
["378","毕节市七星关区岔河镇戈乐小学","0216","0857-8221396","全额事业","教师","01","专业技术岗位",1,"中小学教师类（D类）小学教师岗位",41,"大学本科及以上","学士学位及以上",null,"数学类、教育类",{"$f":"VLOOKUP(R383,[1]Sheet3!$A$2:$H$37,8,FALSE)","v":"数学、学科教学（一级学科）"},"须具有对应学段、学科及以上教师资格证书，定向招聘2024年度高校毕业生","小学数学"]
["379","毕节市七星关区大河乡鸡姑小学","0217","0857-8221396","全额事业","教师","01","专业技术岗位",1,"中小学教师类（D类）小学教师岗位",41,"大学本科及以上","学士学位及以上",null,"中国语言文学类、新闻传播学类、教育类",{"$f":"VLOOKUP(R384,[1]Sheet3!$A$2:$H$37,8,FALSE)","v":"中国语言文学、新闻传播学、学科教学（一级学科）"},"须具有对应学段、学科及以上教师资格证书，定向招聘2024年度高校毕业生","小学语文"]
["380","毕节市七星关区大河乡鸡姑小学","0217","0857-8221396","全额事业","教师","02","专业技术岗位",1,"中小学教师类（D类）中学教师岗位",42,"大学本科及以上","学士学位及以上",null,"中国语言文学类、新闻传播学类、教育类",{"$f":"VLOOKUP(R385,[1]Sheet3!$A$2:$H$37,8,FALSE)","v":"中国语言文学、新闻传播学、学科教学（一级学科）"},"须具有对应学段、学科及以上教师资格证书","初中语文"]
["381","毕节市七星关区大河乡柯乐小学","0218","0857-8221396","全额事业","教师","01","专业技术岗位",1,"中小学教师类（D类）小学教师岗位",41,"大学本科及以上","学士学位及以上",null,"中国语言文学类、新闻传播学类、教育类",{"$f":"VLOOKUP(R386,[1]Sheet3!$A$2:$H$37,8,FALSE)","v":"中国语言文学、新闻传播学、学科教学（一级学科）"},"须具有对应学段、学科及以上教师资格证书，定向招聘2024年度高校毕业生","小学语文"]
["382","毕节市七星关区大屯乡三官小学","0219","0857-8221396","全额事业","教师","01","专业技术岗位",1,"中小学教师类（D类）小学教师岗位",41,"大学本科及以上","学士学位及以上",null,"数学类、教育类",{"$f":"VLOOKUP(R387,[1]Sheet3!$A$2:$H$37,8,FALSE)","v":"数学、学科教学（一级学科）"},"须具有对应学段、学科及以上教师资格证书，定向招聘2024年度高校毕业生","小学数学"]
["383","毕节市七星关区大屯中学","0220","0857-8221396","全额事业","教师","01","专业技术岗位",1,"中小学教师类（D类）中学教师岗位",42,"大学本科及以上","学士学位及以上",null,"  体育学类、教育类",{"$f":"VLOOKUP(R388,[1]Sheet3!$A$2:$H$37,8,FALSE)","v":"体育学、学科教学（一级学科）"},"须具有对应学段、学科及以上教师资格证书","初中体育"]
["384","毕节市七星关区大银镇石营小学","0221","0857-8221396","全额事业","教师","01","专业技术岗位",1,"中小学教师类（D类）小学教师岗位",41,"大学本科及以上","学士学位及以上",null,"数学类、教育类",{"$f":"VLOOKUP(R389,[1]Sheet3!$A$2:$H$37,8,FALSE)","v":"数学、学科教学（一级学科）"},"须具有对应学段、学科及以上教师资格证书，定向招聘2024年度高校毕业生","小学数学"]
["385","毕节市七星关区大银中学","0222","0857-8221396","全额事业","教师","01","专业技术岗位",1,"中小学教师类（D类）中学教师岗位",42,"大学本科及以上","学士学位及以上",null,"中国语言文学类、新闻传播学类、教育类",{"$f":"VLOOKUP(R390,[1]Sheet3!$A$2:$H$37,8,FALSE)","v":"中国语言文学、新闻传播学、学科教学（一级学科）"},"须具有对应学段、学科及以上教师资格证书","初中语文"]
["386","毕节市七星关区大银中学","0222","0857-8221396","全额事业","教师","02","专业技术岗位",1,"中小学教师类（D类）中学教师岗位",42,"大学本科及以上","学士学位及以上",null,"外国语言文学类、教育类",{"$f":"VLOOKUP(R391,[1]Sheet3!$A$2:$H$37,8,FALSE)","v":"外国语言文学、学科教育（一级学科）"},"须具有对应学段、学科及以上教师资格证书","初中英语"]
["387","毕节市七星关区对坡镇建华小学","0223","0857-8221396","全额事业","教师","01","专业技术岗位",1,"中小学教师类（D类）小学教师岗位",41,"大学本科及以上","学士学位及以上",null,"数学类、教育类",{"$f":"VLOOKUP(R392,[1]Sheet3!$A$2:$H$37,8,FALSE)","v":"数学、学科教学（一级学科）"},"须具有对应学段、学科及以上教师资格证书，定向招聘2024年度高校毕业生","小学数学"]
["388","毕节市七星关区海子街镇中心校","0224","0857-8221396","全额事业","教师","01","专业技术岗位",1,"中小学教师类（D类）小学教师岗位",41,"大学本科及以上","学士学位及以上",null,"数学类、教育类",{"$f":"VLOOKUP(R393,[1]Sheet3!$A$2:$H$37,8,FALSE)","v":"数学、学科教学（一级学科）"},"须具有对应学段、学科及以上教师资格证书，定向招聘2024年度高校毕业生","小学数学"]
["389","毕节市七星关区海子街镇中心校","0224","0857-8221396","全额事业","教师","02","专业技术岗位",1,"中小学教师类（D类）小学教师岗位",41,"大学本科及以上","学士学位及以上",null,"教育学类、音乐与舞蹈学类、 戏剧与影视学类、艺术类、教育类",{"$f":"VLOOKUP(R394,[1]Sheet3!$A$2:$H$37,8,FALSE)","v":"艺术学、学科教育（一级学科）"},"须具有对应学段、学科及以上教师资格证书，定向招聘七星关区户籍（含大方县托管的乡镇街道）考生","小学音乐"]
["390","毕节市七星关区海子街镇中心校","0224","0857-8221396","全额事业","教师","03","专业技术岗位",1,"中小学教师类（D类）小学教师岗位",41,"大学本科及以上","学士学位及以上",null,"  体育学类、教育类",{"$f":"VLOOKUP(R395,[1]Sheet3!$A$2:$H$37,8,FALSE)","v":"体育学、学科教学（一级学科）"},"须具有对应学段、学科及以上教师资格证书，定向招聘七星关区户籍（含大方县托管的乡镇街道）考生","小学体育"]
["391","毕节市七星关区何官屯镇柳家小学","0225","0857-8221396","全额事业","教师","01","专业技术岗位",1,"中小学教师类（D类）小学教师岗位",41,"大学本科及以上","学士学位及以上",null,"外国语言文学类、教育类",{"$f":"VLOOKUP(R396,[1]Sheet3!$A$2:$H$37,8,FALSE)","v":"外国语言文学、学科教育（一级学科）"},"须具有对应学段、学科及以上教师资格证书，定向招聘七星关区户籍（含大方县托管的乡镇街道）考生","小学英语"]
["392","毕节市七星关区梨树镇二堡小学","0226","0857-8221396","全额事业","教师","01","专业技术岗位",1,"中小学教师类（D类）小学教师岗位",41,"大学本科及以上","学士学位及以上",null,"数学类、教育类",{"$f":"VLOOKUP(R397,[1]Sheet3!$A$2:$H$37,8,FALSE)","v":"数学、学科教学（一级学科）"},"须具有对应学段、学科及以上教师资格证书，定向招聘2024年度高校毕业生","小学数学"]
["393","毕节市七星关区梨树镇联合小学","0227","0857-8221396","全额事业","教师","01","专业技术岗位",1,"中小学教师类（D类）小学教师岗位",41,"大学本科及以上","学士学位及以上",null,"中国语言文学类、新闻传播学类、教育类",{"$f":"VLOOKUP(R398,[1]Sheet3!$A$2:$H$37,8,FALSE)","v":"中国语言文学、新闻传播学、学科教学（一级学科）"},"须具有对应学段、学科及以上教师资格证书，定向招聘2024年度高校毕业生","小学语文"]
["394","毕节市七星关区亮岩中学","0228","0857-8221396","全额事业","教师","01","专业技术岗位",1,"中小学教师类（D类）中学教师岗位",42,"大学本科及以上","学士学位及以上",null,"外国语言文学类、教育类",{"$f":"VLOOKUP(R399,[1]Sheet3!$A$2:$H$37,8,FALSE)","v":"外国语言文学、学科教育（一级学科）"},"须具有对应学段、学科及以上教师资格证书","初中英语"]
["395","毕节市七星关区亮岩中学","0228","0857-8221396","全额事业","教师","02","专业技术岗位",1,"中小学教师类（D类）中学教师岗位",42,"大学本科及以上","学士学位及以上",null,"数学类、教育类",{"$f":"VLOOKUP(R400,[1]Sheet3!$A$2:$H$37,8,FALSE)","v":"数学、学科教学（一级学科）"},"须具有对应学段、学科及以上教师资格证书","初中数学"]
["396","毕节市七星关区亮岩中学","0228","0857-8221396","全额事业","教师","03","专业技术岗位",1,"中小学教师类（D类）中学教师岗位",42,"大学本科及以上","学士学位及以上",null,"中国语言文学类、新闻传播学类、教育类",{"$f":"VLOOKUP(R401,[1]Sheet3!$A$2:$H$37,8,FALSE)","v":"中国语言文学、新闻传播学、学科教学（一级学科）"},"须具有对应学段、学科及以上教师资格证书","初中语文"]
["397","毕节市七星关区林口镇坪坝小学","0229","0857-8221396","全额事业","教师","01","专业技术岗位",1,"中小学教师类（D类）小学教师岗位",41,"大学本科及以上","学士学位及以上",null,"中国语言文学类、新闻传播学类、教育类",{"$f":"VLOOKUP(R402,[1]Sheet3!$A$2:$H$37,8,FALSE)","v":"中国语言文学、新闻传播学、学科教学（一级学科）"},"须具有对应学段、学科及以上教师资格证书，定向招聘2024年度高校毕业生","小学语文"]
["398","毕节市七星关区林口中学","0230","0857-8221396","全额事业","教师","01","专业技术岗位",1,"中小学教师类（D类）中学教师岗位",42,"大学本科及以上","学士学位及以上",null,"中国语言文学类、新闻传播学类、教育类",{"$f":"VLOOKUP(R403,[1]Sheet3!$A$2:$H$37,8,FALSE)","v":"中国语言文学、新闻传播学、学科教学（一级学科）"},"须具有对应学段、学科及以上教师资格证书","初中语文"]
["399","毕节市七星关区林口中学","0230","0857-8221396","全额事业","教师","02","专业技术岗位",1,"中小学教师类（D类）中学教师岗位",42,"大学本科及以上","学士学位及以上",null,"数学类、教育类",{"$f":"VLOOKUP(R404,[1]Sheet3!$A$2:$H$37,8,FALSE)","v":"数学、学科教学（一级学科）"},"须具有对应学段、学科及以上教师资格证书","初中数学"]
["400","毕节市七星关区林口中学","0230","0857-8221396","全额事业","教师","03","专业技术岗位",1,"中小学教师类（D类）中学教师岗位",42,"大学本科及以上","学士学位及以上",null," 政治学类、 马克思主义理论类、教育类",{"$f":"VLOOKUP(R405,[1]Sheet3!$A$2:$H$37,8,FALSE)","v":"政治学、马克思主义理论、学科教学（一级学科）"},"须具有对应学段、学科及以上教师资格证书","初中政治"]
["401","毕节市七星关区龙场营镇黄金小学","0231","0857-8221396","全额事业","教师","01","专业技术岗位",1,"中小学教师类（D类）小学教师岗位",41,"大学本科及以上","学士学位及以上",null,"数学类、教育类",{"$f":"VLOOKUP(R406,[1]Sheet3!$A$2:$H$37,8,FALSE)","v":"数学、学科教学（一级学科）"},"须具有对应学段、学科及以上教师资格证书，定向招聘2024年度高校毕业生","小学数学"]
["402","毕节市七星关区龙场营中学","0232","0857-8221396","全额事业","教师","01","专业技术岗位",1,"中小学教师类（D类）中学教师岗位",42,"大学本科及以上","学士学位及以上",null,"数学类、教育类",{"$f":"VLOOKUP(R407,[1]Sheet3!$A$2:$H$37,8,FALSE)","v":"数学、学科教学（一级学科）"},"须具有对应学段、学科及以上教师资格证书","高中数学"]
["403","毕节市七星关区龙场营中学","0232","0857-8221396","全额事业","教师","02","专业技术岗位",1,"中小学教师类（D类）中学教师岗位",42,"大学本科及以上","学士学位及以上",null,"体育学类、教育类",{"$f":"VLOOKUP(R408,[1]Sheet3!$A$2:$H$37,8,FALSE)","v":"体育学、学科教学（一级学科）"},"须具有对应学段、学科及以上教师资格证书","高中体育"]
["404","毕节市七星关区普宜镇中心校","0233","0857-8221396","全额事业","教师","01","专业技术岗位",2,"中小学教师类（D类）小学教师岗位",41,"大学本科及以上","学士学位及以上",null,"教育学类、音乐与舞蹈学类、 戏剧与影视学类、艺术类、教育类",{"$f":"VLOOKUP(R409,[1]Sheet3!$A$2:$H$37,8,FALSE)","v":"艺术学、学科教育（一级学科）"},"须具有对应学段、学科及以上教师资格证书，定向招聘七星关区户籍（含大方县托管的乡镇街道）考生","小学音乐"]
["405","毕节市七星关区普宜中学","0234","0857-8221396","全额事业","教师","01","专业技术岗位",1,"中小学教师类（D类）中学教师岗位",42,"大学本科及以上","学士学位及以上",null,"中国语言文学类、新闻传播学类、教育类",{"$f":"VLOOKUP(R410,[1]Sheet3!$A$2:$H$37,8,FALSE)","v":"中国语言文学、新闻传播学、学科教学（一级学科）"},"须具有对应学段、学科及以上教师资格证书","初中语文"]
["406","毕节市七星关区普宜中学","0234","0857-8221396","全额事业","教师","02","专业技术岗位",1,"中小学教师类（D类）中学教师岗位",42,"大学本科及以上","学士学位及以上",null,"外国语言文学类、教育类",{"$f":"VLOOKUP(R411,[1]Sheet3!$A$2:$H$37,8,FALSE)","v":"外国语言文学、学科教育（一级学科）"},"须具有对应学段、学科及以上教师资格证书","初中英语"]
["407","毕节市七星关区普宜中学","0234","0857-8221396","全额事业","教师","03","专业技术岗位",1,"中小学教师类（D类）中学教师岗位",42,"大学本科及以上","学士学位及以上",null,"物理学类、教育类、地球物理学类",{"$f":"VLOOKUP(R412,[1]Sheet3!$A$2:$H$37,8,FALSE)","v":"物理学、力学，学科教学（一级学科）"},"须具有对应学段、学科及以上教师资格证书","初中物理"]
["408","毕节市七星关区普宜中学","0234","0857-8221396","全额事业","教师","04","专业技术岗位",1,"中小学教师类（D类）中学教师岗位",42,"大学本科及以上","学士学位及以上",null," 政治学类、 马克思主义理论类、教育类",{"$f":"VLOOKUP(R413,[1]Sheet3!$A$2:$H$37,8,FALSE)","v":"政治学、马克思主义理论、学科教学（一级学科）"},"须具有对应学段、学科及以上教师资格证书","高中政治"]
["409","毕节市七星关区普宜中学","0234","0857-8221396","全额事业","教师","05","专业技术岗位",1,"中小学教师类（D类）中学教师岗位",42,"大学本科及以上","学士学位及以上",null,"外国语言文学类、教育类",{"$f":"VLOOKUP(R414,[1]Sheet3!$A$2:$H$37,8,FALSE)","v":"外国语言文学、学科教育（一级学科）"},"须具有对应学段、学科及以上教师资格证书","高中英语"]
["410","毕节市七星关区青场镇中心校","0235","0857-8221396","全额事业","教师","01","专业技术岗位",1,"中小学教师类（D类）小学教师岗位",41,"大学本科及以上","学士学位及以上",null,"数学类、教育类",{"$f":"VLOOKUP(R415,[1]Sheet3!$A$2:$H$37,8,FALSE)","v":"数学、学科教学（一级学科）"},"须具有对应学段、学科及以上教师资格证书，定向招聘2024年度高校毕业生","小学数学"]
["411","毕节市七星关区青场中学","0236","0857-8221396","全额事业","教师","01","专业技术岗位",1,"中小学教师类（D类）中学教师岗位",42,"大学本科及以上","学士学位及以上",null,"中国语言文学类、新闻传播学类、教育类",{"$f":"VLOOKUP(R416,[1]Sheet3!$A$2:$H$37,8,FALSE)","v":"中国语言文学、新闻传播学、学科教学（一级学科）"},"须具有对应学段、学科及以上教师资格证书","初中语文"]
["412","毕节市七星关区青场中学","0236","0857-8221396","全额事业","教师","02","专业技术岗位",1,"中小学教师类（D类）中学教师岗位",42,"大学本科及以上","学士学位及以上",null,"数学类、教育类",{"$f":"VLOOKUP(R417,[1]Sheet3!$A$2:$H$37,8,FALSE)","v":"数学、学科教学（一级学科）"},"须具有对应学段、学科及以上教师资格证书","初中数学"]
["413","毕节市七星关区撒拉溪镇戈座小学","0237","0857-8221396","全额事业","教师","01","专业技术岗位",1,"中小学教师类（D类）小学教师岗位",41,"大学本科及以上","学士学位及以上",null,"中国语言文学类、新闻传播学类、教育类",{"$f":"VLOOKUP(R418,[1]Sheet3!$A$2:$H$37,8,FALSE)","v":"中国语言文学、新闻传播学、学科教学（一级学科）"},"须具有对应学段、学科及以上教师资格证书，定向招聘2024年度高校毕业生","小学语文"]
["414","毕节市七星关区撒拉溪镇杨柳小学","0238","0857-8221396","全额事业","教师","01","专业技术岗位",1,"中小学教师类（D类）小学教师岗位",41,"大学本科及以上","学士学位及以上",null,"外国语言文学类、教育类",{"$f":"VLOOKUP(R419,[1]Sheet3!$A$2:$H$37,8,FALSE)","v":"外国语言文学、学科教育（一级学科）"},"须具有对应学段、学科及以上教师资格证书，定向招聘七星关区户籍（含大方县托管的乡镇街道）考生","小学英语"]
["415","毕节市七星关区生机镇中心校","0239","0857-8221396","全额事业","教师","01","专业技术岗位",1,"中小学教师类（D类）小学教师岗位",41,"大学本科及以上","学士学位及以上",null,"中国语言文学类、新闻传播学类、教育类",{"$f":"VLOOKUP(R420,[1]Sheet3!$A$2:$H$37,8,FALSE)","v":"中国语言文学、新闻传播学、学科教学（一级学科）"},"须具有对应学段、学科及以上教师资格证书，定向招聘2024年度高校毕业生","小学语文"]
["416","毕节市七星关区生机镇中心校","0239","0857-8221396","全额事业","教师","02","专业技术岗位",1,"中小学教师类（D类）小学教师岗位",41,"大学本科及以上","学士学位及以上",null,"外国语言文学类、教育类",{"$f":"VLOOKUP(R421,[1]Sheet3!$A$2:$H$37,8,FALSE)","v":"外国语言文学、学科教育（一级学科）"},"须具有对应学段、学科及以上教师资格证书，定向招聘七星关区户籍（含大方县托管的乡镇街道）考生","小学英语"]
["417","毕节市七星关区生机镇高流小学","0240","0857-8221396","全额事业","教师","01","专业技术岗位",1,"中小学教师类（D类）小学教师岗位",41,"大学本科及以上","学士学位及以上",null,"中国语言文学类、新闻传播学类、教育类",{"$f":"VLOOKUP(R422,[1]Sheet3!$A$2:$H$37,8,FALSE)","v":"中国语言文学、新闻传播学、学科教学（一级学科）"},"须具有对应学段、学科及以上教师资格证书，定向招聘2024年度高校毕业生","小学语文"]
["418","毕节市七星关区生机镇天桥小学","0241","0857-8221396","全额事业","教师","01","专业技术岗位",1,"中小学教师类（D类）小学教师岗位",41,"大学本科及以上","学士学位及以上",null,"数学类、教育类",{"$f":"VLOOKUP(R423,[1]Sheet3!$A$2:$H$37,8,FALSE)","v":"数学、学科教学（一级学科）"},"须具有对应学段、学科及以上教师资格证书，定向招聘2024年度高校毕业生","小学数学"]
["419","毕节市七星关区生机镇谢家小学","0242","0857-8221396","全额事业","教师","01","专业技术岗位",1,"中小学教师类（D类）小学教师岗位",41,"大学本科及以上","学士学位及以上",null,"中国语言文学类、新闻传播学类、教育类",{"$f":"VLOOKUP(R424,[1]Sheet3!$A$2:$H$37,8,FALSE)","v":"中国语言文学、新闻传播学、学科教学（一级学科）"},"须具有对应学段、学科及以上教师资格证书，定向招聘2024年度高校毕业生","小学语文"]
["420","毕节市七星关区生机镇谢家小学","0242","0857-8221396","全额事业","教师","02","专业技术岗位",1,"中小学教师类（D类）小学教师岗位",41,"大学本科及以上","学士学位及以上",null,"数学类、教育类",{"$f":"VLOOKUP(R425,[1]Sheet3!$A$2:$H$37,8,FALSE)","v":"数学、学科教学（一级学科）"},"须具有对应学段、学科及以上教师资格证书，定向招聘2024年度高校毕业生","小学数学"]
["421","毕节市七星关区生机中学","0243","0857-8221396","全额事业","教师","01","专业技术岗位",2,"中小学教师类（D类）中学教师岗位",42,"大学本科及以上","学士学位及以上",null,"外国语言文学类、教育类",{"$f":"VLOOKUP(R426,[1]Sheet3!$A$2:$H$37,8,FALSE)","v":"外国语言文学、学科教育（一级学科）"},"须具有对应学段、学科及以上教师资格证书","初中英语"]
["422","毕节市七星关区生机中学","0243","0857-8221396","全额事业","教师","02","专业技术岗位",1,"中小学教师类（D类）中学教师岗位",42,"大学本科及以上","学士学位及以上",null,"中国语言文学类、新闻传播学类、教育类",{"$f":"VLOOKUP(R427,[1]Sheet3!$A$2:$H$37,8,FALSE)","v":"中国语言文学、新闻传播学、学科教学（一级学科）"},"须具有对应学段、学科及以上教师资格证书","初中语文"]
["423","毕节市七星关区生机中学","0243","0857-8221396","全额事业","教师","03","专业技术岗位",1,"中小学教师类（D类）中学教师岗位",42,"大学本科及以上","学士学位及以上",null,"物理学类、教育类、地球物理学类",{"$f":"VLOOKUP(R428,[1]Sheet3!$A$2:$H$37,8,FALSE)","v":"物理学、力学，学科教学（一级学科）"},"须具有对应学段、学科及以上教师资格证书","初中物理"]
["424"," 大方县双山中学","0244","0857-8221396","全额事业","教师","01","专业技术岗位",1,"中小学教师类（D类）中学教师岗位",42,"大学本科及以上","学士学位及以上",null,"中国语言文学类、新闻传播学类、教育类",{"$f":"VLOOKUP(R429,[1]Sheet3!$A$2:$H$37,8,FALSE)","v":"中国语言文学、新闻传播学、学科教学（一级学科）"},"须具有对应学段、学科及以上教师资格证书","初中语文"]
["425","毕节市七星关区水箐镇马鞍小学","0245","0857-8221396","全额事业","教师","01","专业技术岗位",1,"中小学教师类（D类）小学教师岗位",41,"大学本科及以上","学士学位及以上",null,"中国语言文学类、新闻传播学类、教育类",{"$f":"VLOOKUP(R430,[1]Sheet3!$A$2:$H$37,8,FALSE)","v":"中国语言文学、新闻传播学、学科教学（一级学科）"},"须具有对应学段、学科及以上教师资格证书，定向招聘2024年度高校毕业生","小学语文"]
["426","毕节市七星关区田坝中学","0246","0857-8221396","全额事业","教师","01","专业技术岗位",1,"中小学教师类（D类）中学教师岗位",42,"大学本科及以上","学士学位及以上",null,"中国语言文学类、新闻传播学类、教育类",{"$f":"VLOOKUP(R431,[1]Sheet3!$A$2:$H$37,8,FALSE)","v":"中国语言文学、新闻传播学、学科教学（一级学科）"},"须具有对应学段、学科及以上教师资格证书","初中语文"]
["427","毕节市七星关区田坝中学","0246","0857-8221396","全额事业","教师","02","专业技术岗位",1,"中小学教师类（D类）中学教师岗位",42,"大学本科及以上","学士学位及以上",null,"数学类、教育类",{"$f":"VLOOKUP(R432,[1]Sheet3!$A$2:$H$37,8,FALSE)","v":"数学、学科教学（一级学科）"},"须具有对应学段、学科及以上教师资格证书","初中数学"]
["428","毕节市七星关区田坎乡白沙河小学","0247","0857-8221396","全额事业","教师","01","专业技术岗位",1,"中小学教师类（D类）小学教师岗位",41,"大学本科及以上","学士学位及以上",null,"数学类、教育类",{"$f":"VLOOKUP(R433,[1]Sheet3!$A$2:$H$37,8,FALSE)","v":"数学、学科教学（一级学科）"},"须具有对应学段、学科及以上教师资格证书，定向招聘2024年度高校毕业生","小学数学"]
["429"," 大方县文阁乡中心校","0248","0857-8221396","全额事业","教师","01","专业技术岗位",1,"中小学教师类（D类）小学教师岗位",41,"大学本科及以上","学士学位及以上",null,"中国语言文学类、新闻传播学类、教育类",{"$f":"VLOOKUP(R434,[1]Sheet3!$A$2:$H$37,8,FALSE)","v":"中国语言文学、新闻传播学、学科教学（一级学科）"},"须具有对应学段、学科及以上教师资格证书，定向招聘2024年度高校毕业生","小学语文"]
["430"," 大方县文阁乡中心校","0248","0857-8221396","全额事业","教师","02","专业技术岗位",1,"中小学教师类（D类）小学教师岗位",41,"大学本科及以上","学士学位及以上",null,"外国语言文学类、教育类",{"$f":"VLOOKUP(R435,[1]Sheet3!$A$2:$H$37,8,FALSE)","v":"外国语言文学、学科教育（一级学科）"},"须具有对应学段、学科及以上教师资格证书，定向招聘七星关区户籍（含大方县托管的乡镇街道）考生","小学英语"]
["431"," 大方县文阁乡以麦小学","0249","0857-8221396","全额事业","教师","01","专业技术岗位",1,"中小学教师类（D类）小学教师岗位",41,"大学本科及以上","学士学位及以上",null,"外国语言文学类、教育类",{"$f":"VLOOKUP(R436,[1]Sheet3!$A$2:$H$37,8,FALSE)","v":"外国语言文学、学科教育（一级学科）"},"须具有对应学段、学科及以上教师资格证书，定向招聘七星关区户籍（含大方县托管的乡镇街道）考生","小学英语"]
["432"," 大方县文阁中学","0250","0857-8221396","全额事业","教师","01","专业技术岗位",2,"中小学教师类（D类）中学教师岗位",42,"大学本科及以上","学士学位及以上",null,"数学类、教育类",{"$f":"VLOOKUP(R437,[1]Sheet3!$A$2:$H$37,8,FALSE)","v":"数学、学科教学（一级学科）"},"须具有对应学段、学科及以上教师资格证书","初中数学"]
["433"," 大方县文阁中学","0250","0857-8221396","全额事业","教师","02","专业技术岗位",1,"中小学教师类（D类）中学教师岗位",42,"大学本科及以上","学士学位及以上",null,"物理学类、教育类、地球物理学类",{"$f":"VLOOKUP(R438,[1]Sheet3!$A$2:$H$37,8,FALSE)","v":"物理学、力学，学科教学（一级学科）"},"须具有对应学段、学科及以上教师资格证书","初中物理"]
["434"," 大方县响水中学","0251","0857-8221396","全额事业","教师","01","专业技术岗位",1,"中小学教师类（D类）中学教师岗位",42,"大学本科及以上","学士学位及以上",null,"教育类、生物科学类、生物工程类",{"$f":"VLOOKUP(R439,[1]Sheet3!$A$2:$H$37,8,FALSE)","v":"生物学、学科教学（一级学科）"},"须具有对应学段、学科及以上教师资格证书","高中生物"]
["435"," 大方县响水中学","0251","0857-8221396","全额事业","教师","02","专业技术岗位",1,"中小学教师类（D类）中学教师岗位",42,"大学本科及以上","学士学位及以上",null," 政治学类、 马克思主义理论类、教育类",{"$f":"VLOOKUP(R440,[1]Sheet3!$A$2:$H$37,8,FALSE)","v":"政治学、马克思主义理论、学科教学（一级学科）"},"须具有对应学段、学科及以上教师资格证书","初中政治"]
["436","毕节市七星关区小坝中学","0252","0857-8221396","全额事业","教师","01","专业技术岗位",2,"中小学教师类（D类）中学教师岗位",42,"大学本科及以上","学士学位及以上",null,"数学类、教育类",{"$f":"VLOOKUP(R441,[1]Sheet3!$A$2:$H$37,8,FALSE)","v":"数学、学科教学（一级学科）"},"须具有对应学段、学科及以上教师资格证书","初中数学"]
["437","毕节市七星关区小坝中学","0252","0857-8221396","全额事业","教师","02","专业技术岗位",1,"中小学教师类（D类）中学教师岗位",42,"大学本科及以上","学士学位及以上",null,"中国语言文学类、新闻传播学类、教育类",{"$f":"VLOOKUP(R442,[1]Sheet3!$A$2:$H$37,8,FALSE)","v":"中国语言文学、新闻传播学、学科教学（一级学科）"},"须具有对应学段、学科及以上教师资格证书","初中语文"]
["438","毕节市七星关区小坝中学","0252","0857-8221396","全额事业","教师","03","专业技术岗位",1,"中小学教师类（D类）中学教师岗位",42,"大学本科及以上","学士学位及以上",null,"教育类、生物科学类、生物工程类",{"$f":"VLOOKUP(R443,[1]Sheet3!$A$2:$H$37,8,FALSE)","v":"生物学、学科教学（一级学科）"},"须具有对应学段、学科及以上教师资格证书","初中生物"]
["439","毕节市七星关区小坝中学","0252","0857-8221396","全额事业","教师","04","专业技术岗位",1,"中小学教师类（D类）中学教师岗位",42,"大学本科及以上","学士学位及以上",null,"文史类、历史学类、教育类",{"$f":"VLOOKUP(R444,[1]Sheet3!$A$2:$H$37,8,FALSE)","v":"历史学、学科教学（一级学科）"},"须具有对应学段、学科及以上教师资格证书","初中历史"]
["440","毕节市七星关区小吉场中学","0253","0857-8221396","全额事业","教师","01","专业技术岗位",1,"中小学教师类（D类）中学教师岗位",42,"大学本科及以上","学士学位及以上",null,"数学类、教育类",{"$f":"VLOOKUP(R445,[1]Sheet3!$A$2:$H$37,8,FALSE)","v":"数学、学科教学（一级学科）"},"须具有对应学段、学科及以上教师资格证书","初中数学"]
["441","毕节市七星关区小吉场中学","0253","0857-8221396","全额事业","教师","02","专业技术岗位",1,"中小学教师类（D类）中学教师岗位",42,"大学本科及以上","学士学位及以上",null,"外国语言文学类、教育类",{"$f":"VLOOKUP(R446,[1]Sheet3!$A$2:$H$37,8,FALSE)","v":"外国语言文学、学科教育（一级学科）"},"须具有对应学段、学科及以上教师资格证书","初中英语"]
["442","毕节市七星关区小吉场中学","0253","0857-8221396","全额事业","教师","03","专业技术岗位",1,"中小学教师类（D类）中学教师岗位",42,"大学本科及以上","学士学位及以上",null,"外国语言文学类、教育类",{"$f":"VLOOKUP(R447,[1]Sheet3!$A$2:$H$37,8,FALSE)","v":"外国语言文学、学科教育（一级学科）"},"须具有对应学段、学科及以上教师资格证书","高中英语"]
["443","毕节市七星关区小吉场中学","0253","0857-8221396","全额事业","教师","04","专业技术岗位",1,"中小学教师类（D类）中学教师岗位",42,"大学本科及以上","学士学位及以上",null,"数学类、教育类",{"$f":"VLOOKUP(R448,[1]Sheet3!$A$2:$H$37,8,FALSE)","v":"数学、学科教学（一级学科）"},"须具有对应学段、学科及以上教师资格证书","高中数学"]
["444","毕节市七星关区小吉场中学","0253","0857-8221396","全额事业","教师","05","专业技术岗位",1,"中小学教师类（D类）中学教师岗位",42,"大学本科及以上","学士学位及以上",null,"文史类、历史学类、教育类",{"$f":"VLOOKUP(R449,[1]Sheet3!$A$2:$H$37,8,FALSE)","v":"历史学、学科教学（一级学科）"},"须具有对应学段、学科及以上教师资格证书","高中历史"]
["445","毕节市七星关区小吉场中学","0253","0857-8221396","全额事业","教师","06","专业技术岗位",1,"中小学教师类（D类）中学教师岗位",42,"大学本科及以上","学士学位及以上",null," 政治学类、 马克思主义理论类、教育类",{"$f":"VLOOKUP(R450,[1]Sheet3!$A$2:$H$37,8,FALSE)","v":"政治学、马克思主义理论、学科教学（一级学科）"},"须具有对应学段、学科及以上教师资格证书","高中政治"]
["446","毕节市七星关区鸭池镇南箐小学","0254","0857-8221396","全额事业","教师","01","专业技术岗位",1,"中小学教师类（D类）中学教师岗位",42,"大学本科及以上","学士学位及以上",null,"中国语言文学类、新闻传播学类、教育类",{"$f":"VLOOKUP(R451,[1]Sheet3!$A$2:$H$37,8,FALSE)","v":"中国语言文学、新闻传播学、学科教学（一级学科）"},"须具有对应学段、学科及以上教师资格证书，定向招聘七星关区户籍（含大方县托管的乡镇街道）考生","初中语文"]
["447","毕节市七星关区鸭池镇南箐小学","0254","0857-8221396","全额事业","教师","02","专业技术岗位",1,"中小学教师类（D类）中学教师岗位",42,"大学本科及以上","学士学位及以上",null,"数学类、教育类",{"$f":"VLOOKUP(R452,[1]Sheet3!$A$2:$H$37,8,FALSE)","v":"数学、学科教学（一级学科）"},"须具有对应学段、学科及以上教师资格证书","初中数学"]
["448","毕节市七星关区鸭池中学","0255","0857-8221396","全额事业","教师","01","专业技术岗位",1,"中小学教师类（D类）中学教师岗位",42,"大学本科及以上","学士学位及以上",null,"中国语言文学类、新闻传播学类、教育类",{"$f":"VLOOKUP(R453,[1]Sheet3!$A$2:$H$37,8,FALSE)","v":"中国语言文学、新闻传播学、学科教学（一级学科）"},"须具有对应学段、学科及以上教师资格证书，定向招聘七星关区户籍（含大方县托管的乡镇街道）考生","初中语文"]
["449","毕节市七星关区燕子口镇大南山小学","0256","0857-8221396","全额事业","教师","01","专业技术岗位",1,"中小学教师类（D类）小学教师岗位",41,"大学本科及以上","学士学位及以上",null,"数学类、教育类",{"$f":"VLOOKUP(R454,[1]Sheet3!$A$2:$H$37,8,FALSE)","v":"数学、学科教学（一级学科）"},"须具有对应学段、学科及以上教师资格证书，定向招聘2024年度高校毕业生","小学数学"]
["450","毕节市七星关区燕子口镇黄泥小学","0257","0857-8221396","全额事业","教师","01","专业技术岗位",1,"中小学教师类（D类）小学教师岗位",41,"大学本科及以上","学士学位及以上",null,"中国语言文学类、新闻传播学类、教育类",{"$f":"VLOOKUP(R455,[1]Sheet3!$A$2:$H$37,8,FALSE)","v":"中国语言文学、新闻传播学、学科教学（一级学科）"},"须具有对应学段、学科及以上教师资格证书，定向招聘2024年度高校毕业生","小学语文"]
["451","毕节市七星关区燕子口镇龙洞小学","0258","0857-8221396","全额事业","教师","01","专业技术岗位",1,"中小学教师类（D类）小学教师岗位",41,"大学本科及以上","学士学位及以上",null,"外国语言文学类、教育类",{"$f":"VLOOKUP(R456,[1]Sheet3!$A$2:$H$37,8,FALSE)","v":"外国语言文学、学科教育（一级学科）"},"须具有对应学段、学科及以上教师资格证书，定向招聘七星关区户籍（含大方县托管的乡镇街道）考生","小学英语"]
["452","毕节市七星关区燕子口镇龙洞小学","0258","0857-8221396","全额事业","教师","02","专业技术岗位",1,"中小学教师类（D类）中学教师岗位",42,"大学本科及以上","学士学位及以上",null,"物理学类、教育类、地球物理学类",{"$f":"VLOOKUP(R457,[1]Sheet3!$A$2:$H$37,8,FALSE)","v":"物理学、力学，学科教学（一级学科）"},"须具有对应学段、学科及以上教师资格证书","初中物理"]
["453","毕节市七星关区燕子口镇雄丰小学","0259","0857-8221396","全额事业","教师","01","专业技术岗位",1,"中小学教师类（D类）小学教师岗位",41,"大学本科及以上","学士学位及以上",null,"数学类、教育类",{"$f":"VLOOKUP(R458,[1]Sheet3!$A$2:$H$37,8,FALSE)","v":"数学、学科教学（一级学科）"},"须具有对应学段、学科及以上教师资格证书，定向招聘七星关区户籍（含大方县托管的乡镇街道）考生","小学数学"]
["454","毕节市七星关区燕子口镇阳光小学","0260","0857-8221396","全额事业","教师","01","专业技术岗位",1,"中小学教师类（D类）小学教师岗位",41,"大学本科及以上","学士学位及以上",null,"中国语言文学类、新闻传播学类、教育类",{"$f":"VLOOKUP(R459,[1]Sheet3!$A$2:$H$37,8,FALSE)","v":"中国语言文学、新闻传播学、学科教学（一级学科）"},"须具有对应学段、学科及以上教师资格证书，定向招聘七星关区户籍（含大方县托管的乡镇街道）考生","小学语文"]
["455","毕节市七星关区燕子口中学","0261","0857-8221396","全额事业","教师","01","专业技术岗位",2,"中小学教师类（D类）中学教师岗位",42,"大学本科及以上","学士学位及以上",null,"中国语言文学类、新闻传播学类、教育类",{"$f":"VLOOKUP(R460,[1]Sheet3!$A$2:$H$37,8,FALSE)","v":"中国语言文学、新闻传播学、学科教学（一级学科）"},"须具有对应学段、学科及以上教师资格证书","高中语文"]
["456","毕节市七星关区燕子口中学","0261","0857-8221396","全额事业","教师","02","专业技术岗位",2,"中小学教师类（D类）中学教师岗位",42,"大学本科及以上","学士学位及以上",null,"数学类、教育类",{"$f":"VLOOKUP(R461,[1]Sheet3!$A$2:$H$37,8,FALSE)","v":"数学、学科教学（一级学科）"},"须具有对应学段、学科及以上教师资格证书","高中数学"]
["457","毕节市七星关区燕子口中学","0261","0857-8221396","全额事业","教师","03","专业技术岗位",2,"中小学教师类（D类）中学教师岗位",42,"大学本科及以上","学士学位及以上",null,"外国语言文学类、教育类",{"$f":"VLOOKUP(R462,[1]Sheet3!$A$2:$H$37,8,FALSE)","v":"外国语言文学、学科教育（一级学科）"},"须具有对应学段、学科及以上教师资格证书","高中英语"]
["458","毕节市七星关区燕子口中学","0261","0857-8221396","全额事业","教师","04","专业技术岗位",1,"中小学教师类（D类）中学教师岗位",42,"大学本科及以上","学士学位及以上",null," 政治学类、 马克思主义理论类、教育类",{"$f":"VLOOKUP(R463,[1]Sheet3!$A$2:$H$37,8,FALSE)","v":"政治学、马克思主义理论、学科教学（一级学科）"},"须具有对应学段、学科及以上教师资格证书","高中政治"]
["459","毕节市七星关区燕子口中学","0261","0857-8221396","全额事业","教师","05","专业技术岗位",1,"中小学教师类（D类）中学教师岗位",42,"大学本科及以上","学士学位及以上",null,"外国语言文学类、教育类",{"$f":"VLOOKUP(R464,[1]Sheet3!$A$2:$H$37,8,FALSE)","v":"外国语言文学、学科教育（一级学科）"},"须具有对应学段、学科及以上教师资格证书","初中英语"]
["460","毕节市七星关区杨家湾二中","0262","0857-8221396","全额事业","教师","01","专业技术岗位",1,"中小学教师类（D类）中学教师岗位",42,"大学本科及以上","学士学位及以上",null,"外国语言文学类、教育类",{"$f":"VLOOKUP(R465,[1]Sheet3!$A$2:$H$37,8,FALSE)","v":"外国语言文学、学科教育（一级学科）"},"须具有对应学段、学科及以上教师资格证书","初中英语"]
["461","毕节市七星关区杨家湾镇开林小学","0263","0857-8221396","全额事业","教师","01","专业技术岗位",1,"中小学教师类（D类）小学教师岗位",41,"大学本科及以上","学士学位及以上",null,"数学类、教育类",{"$f":"VLOOKUP(R466,[1]Sheet3!$A$2:$H$37,8,FALSE)","v":"数学、学科教学（一级学科）"},"须具有对应学段、学科及以上教师资格证书，定向招聘七星关区户籍（含大方县托管的乡镇街道）考生","小学数学"]
["462","毕节市七星关区杨家湾镇七星小学","0264","0857-8221396","全额事业","教师","01","专业技术岗位",1,"中小学教师类（D类）小学教师岗位",41,"大学本科及以上","学士学位及以上",null,"中国语言文学类、新闻传播学类、教育类",{"$f":"VLOOKUP(R467,[1]Sheet3!$A$2:$H$37,8,FALSE)","v":"中国语言文学、新闻传播学、学科教学（一级学科）"},"须具有对应学段、学科及以上教师资格证书，定向招聘七星关区户籍（含大方县托管的乡镇街道）考生","小学语文"]
["463","毕节市七星关区杨家湾镇站坡小学","0265","0857-8221396","全额事业","教师","01","专业技术岗位",1,"中小学教师类（D类）小学教师岗位",41,"大学本科及以上","学士学位及以上",null,"中国语言文学类、新闻传播学类、教育类",{"$f":"VLOOKUP(R468,[1]Sheet3!$A$2:$H$37,8,FALSE)","v":"中国语言文学、新闻传播学、学科教学（一级学科）"},"须具有对应学段、学科及以上教师资格证书，定向招聘七星关区户籍（含大方县托管的乡镇街道）考生","小学语文"]
["464","毕节市七星关区杨家湾中学","0266","0857-8221396","全额事业","教师","01","专业技术岗位",1,"中小学教师类（D类）中学教师岗位",42,"大学本科及以上","学士学位及以上",null,"中国语言文学类、新闻传播学类、教育类",{"$f":"VLOOKUP(R469,[1]Sheet3!$A$2:$H$37,8,FALSE)","v":"中国语言文学、新闻传播学、学科教学（一级学科）"},"须具有对应学段、学科及以上教师资格证书，定向招聘七星关区户籍（含大方县托管的乡镇街道）考生","初中语文"]
["465","毕节市七星关区杨家湾中学","0266","0857-8221396","全额事业","教师","02","专业技术岗位",3,"中小学教师类（D类）中学教师岗位",42,"大学本科及以上","学士学位及以上",null,"中国语言文学类、新闻传播学类、教育类",{"$f":"VLOOKUP(R470,[1]Sheet3!$A$2:$H$37,8,FALSE)","v":"中国语言文学、新闻传播学、学科教学（一级学科）"},"须具有对应学段、学科及以上教师资格证书","高中语文"]
["466","毕节市七星关区杨家湾中学","0266","0857-8221396","全额事业","教师","03","专业技术岗位",2,"中小学教师类（D类）中学教师岗位",42,"大学本科及以上","学士学位及以上",null,"外国语言文学类、教育类",{"$f":"VLOOKUP(R471,[1]Sheet3!$A$2:$H$37,8,FALSE)","v":"外国语言文学、学科教育（一级学科）"},"须具有对应学段、学科及以上教师资格证书","高中英语"]
["467","毕节市七星关区杨家湾中学","0266","0857-8221396","全额事业","教师","04","专业技术岗位",1,"中小学教师类（D类）中学教师岗位",42,"大学本科及以上","学士学位及以上",null,"物理学类、教育类、地球物理学类",{"$f":"VLOOKUP(R472,[1]Sheet3!$A$2:$H$37,8,FALSE)","v":"物理学、力学，学科教学（一级学科）"},"须具有对应学段、学科及以上教师资格证书","高中物理"]
["468","毕节市七星关区野角乡白龙小学","0267","0857-8221396","全额事业","教师","01","专业技术岗位",1,"中小学教师类（D类）小学教师岗位",41,"大学本科及以上","学士学位及以上",null,"中国语言文学类、新闻传播学类、教育类",{"$f":"VLOOKUP(R473,[1]Sheet3!$A$2:$H$37,8,FALSE)","v":"中国语言文学、新闻传播学、学科教学（一级学科）"},"须具有对应学段、学科及以上教师资格证书，定向招聘七星关区户籍（含大方县托管的乡镇街道）考生","小学语文"]
["469","毕节市七星关区野角乡半边街小学","0268","0857-8221396","全额事业","教师","01","专业技术岗位",1,"中小学教师类（D类）小学教师岗位",41,"大学本科及以上","学士学位及以上",null,"中国语言文学类、新闻传播学类、教育类",{"$f":"VLOOKUP(R474,[1]Sheet3!$A$2:$H$37,8,FALSE)","v":"中国语言文学、新闻传播学、学科教学（一级学科）"},"须具有对应学段、学科及以上教师资格证书，定向招聘七星关区户籍（含大方县托管的乡镇街道）考生","小学语文"]
["470","毕节市七星关区野角乡沙拉槽小学","0269","0857-8221396","全额事业","教师","01","专业技术岗位",1,"中小学教师类（D类）小学教师岗位",41,"大学本科及以上","学士学位及以上",null,"数学类、教育类",{"$f":"VLOOKUP(R475,[1]Sheet3!$A$2:$H$37,8,FALSE)","v":"数学、学科教学（一级学科）"},"须具有对应学段、学科及以上教师资格证书，定向招聘七星关区户籍（含大方县托管的乡镇街道）考生","小学数学"]
["471","毕节市七星关区阴底乡对河小学","0270","0857-8221396","全额事业","教师","01","专业技术岗位",1,"中小学教师类（D类）小学教师岗位",41,"大学本科及以上","学士学位及以上",null,"中国语言文学类、新闻传播学类、教育类",{"$f":"VLOOKUP(R476,[1]Sheet3!$A$2:$H$37,8,FALSE)","v":"中国语言文学、新闻传播学、学科教学（一级学科）"},"须具有对应学段、学科及以上教师资格证书，定向招聘七星关区户籍（含大方县托管的乡镇街道）考生","小学语文"]
["472","毕节市七星关区阴底乡高潮小学","0271","0857-8221396","全额事业","教师","01","专业技术岗位",1,"中小学教师类（D类）小学教师岗位",41,"大学本科及以上","学士学位及以上",null,"数学类、教育类",{"$f":"VLOOKUP(R477,[1]Sheet3!$A$2:$H$37,8,FALSE)","v":"数学、学科教学（一级学科）"},"须具有对应学段、学科及以上教师资格证书，定向招聘七星关区户籍（含大方县托管的乡镇街道）考生","小学数学"]
["473","毕节市七星关区阴底中学","0272","0857-8221396","全额事业","教师","01","专业技术岗位",1,"中小学教师类（D类）中学教师岗位",42,"大学本科及以上","学士学位及以上",null,"数学类、教育类",{"$f":"VLOOKUP(R478,[1]Sheet3!$A$2:$H$37,8,FALSE)","v":"数学、学科教学（一级学科）"},"须具有对应学段、学科及以上教师资格证书","初中数学"]
["474","毕节市七星关区长春堡镇王丰小学","0273","0857-8221396","全额事业","教师","01","专业技术岗位",1,"中小学教师类（D类）中学教师岗位",42,"大学本科及以上","学士学位及以上",null,"中国语言文学类、新闻传播学类、教育类",{"$f":"VLOOKUP(R479,[1]Sheet3!$A$2:$H$37,8,FALSE)","v":"中国语言文学、新闻传播学、学科教学（一级学科）"},"须具有对应学段、学科及以上教师资格证书，定向招聘七星关区户籍（含大方县托管的乡镇街道）考生","初中语文"]
["475","毕节市七星关区长春堡中学","0274","0857-8221396","全额事业","教师","01","专业技术岗位",1,"中小学教师类（D类）中学教师岗位",42,"大学本科及以上","学士学位及以上",null,"中国语言文学类、新闻传播学类、教育类",{"$f":"VLOOKUP(R480,[1]Sheet3!$A$2:$H$37,8,FALSE)","v":"中国语言文学、新闻传播学、学科教学（一级学科）"},"须具有对应学段、学科及以上教师资格证书，定向招聘七星关区户籍（含大方县托管的乡镇街道）考生","初中语文"]
["476","毕节市七星关区长春堡中学","0274","0857-8221396","全额事业","教师","02","专业技术岗位",1,"中小学教师类（D类）中学教师岗位",42,"大学本科及以上","学士学位及以上",null,"外国语言文学类、教育类",{"$f":"VLOOKUP(R481,[1]Sheet3!$A$2:$H$37,8,FALSE)","v":"外国语言文学、学科教育（一级学科）"},"须具有对应学段、学科及以上教师资格证书","初中英语"]
["477","毕节市七星关区长春堡中学","0274","0857-8221396","全额事业","教师","03","专业技术岗位",1,"中小学教师类（D类）中学教师岗位",42,"大学本科及以上","学士学位及以上",null,"物理学类、教育类、地球物理学类",{"$f":"VLOOKUP(R482,[1]Sheet3!$A$2:$H$37,8,FALSE)","v":"物理学、力学，学科教学（一级学科）"},"须具有对应学段、学科及以上教师资格证书","初中物理"]
["478","大方县双山镇中路中学","0275","0857-8221396","全额事业","教师","01","专业技术岗位",1,"中小学教师类（D类）中学教师岗位",42,"大学本科及以上","学士学位及以上",null,"外国语言文学类、教育类",{"$f":"VLOOKUP(R483,[1]Sheet3!$A$2:$H$37,8,FALSE)","v":"外国语言文学、学科教育（一级学科）"},"须具有对应学段、学科及以上教师资格证书","初中英语"]
["479","大方县双山镇中路中学","0275","0857-8221396","全额事业","教师","02","专业技术岗位",1,"中小学教师类（D类）中学教师岗位",42,"大学本科及以上","学士学位及以上",null," 政治学类、 马克思主义理论类、教育类",{"$f":"VLOOKUP(R484,[1]Sheet3!$A$2:$H$37,8,FALSE)","v":"政治学、马克思主义理论、学科教学（一级学科）"},"须具有对应学段、学科及以上教师资格证书","初中政治"]
["480","大方县双山镇中路中学","0275","0857-8221396","全额事业","教师","03","专业技术岗位",1,"中小学教师类（D类）中学教师岗位",42,"大学本科及以上","学士学位及以上",null,"文史类、历史学类、教育类",{"$f":"VLOOKUP(R485,[1]Sheet3!$A$2:$H$37,8,FALSE)","v":"历史学、学科教学（一级学科）"},"须具有对应学段、学科及以上教师资格证书","初中历史"]
["481","毕节市七星关区朱昌二中","0276","0857-8221396","全额事业","教师","01","专业技术岗位",3,"中小学教师类（D类）中学教师岗位",42,"大学本科及以上","学士学位及以上",null,"数学类、教育类",{"$f":"VLOOKUP(R486,[1]Sheet3!$A$2:$H$37,8,FALSE)","v":"数学、学科教学（一级学科）"},"须具有对应学段、学科及以上教师资格证书","初中数学"]
["482","毕节市七星关区朱昌二中","0276","0857-8221396","全额事业","教师","02","专业技术岗位",1,"中小学教师类（D类）中学教师岗位",42,"大学本科及以上","学士学位及以上",null,"  体育学类、教育类",{"$f":"VLOOKUP(R487,[1]Sheet3!$A$2:$H$37,8,FALSE)","v":"体育学、学科教学（一级学科）"},"须具有对应学段、学科及以上教师资格证书","初中体育"]
["483","毕节市七星关区朱昌镇中心校","0277","0857-8221396","全额事业","教师","01","专业技术岗位",1,"中小学教师类（D类）小学教师岗位",41,"大学本科及以上","学士学位及以上",null,"外国语言文学类、教育类",{"$f":"VLOOKUP(R488,[1]Sheet3!$A$2:$H$37,8,FALSE)","v":"外国语言文学、学科教育（一级学科）"},"须具有对应学段、学科及以上教师资格证书，定向招聘七星关区户籍（含大方县托管的乡镇街道）考生","小学英语"]
["484","毕节市七星关区朱昌镇花厂小学","0278","0857-8221396","全额事业","教师","01","专业技术岗位",2,"中小学教师类（D类）小学教师岗位",41,"大学本科及以上","学士学位及以上",null,"外国语言文学类、教育类",{"$f":"VLOOKUP(R489,[1]Sheet3!$A$2:$H$37,8,FALSE)","v":"外国语言文学、学科教育（一级学科）"},"须具有对应学段、学科及以上教师资格证书，定向招聘七星关区户籍（含大方县托管的乡镇街道）考生","小学英语"]
["485","毕节市七星关区朱昌镇螺蛳小学","0279","0857-8221396","全额事业","教师","01","专业技术岗位",1,"中小学教师类（D类）小学教师岗位",41,"大学本科及以上","学士学位及以上",null,"数学类、教育类",{"$f":"VLOOKUP(R490,[1]Sheet3!$A$2:$H$37,8,FALSE)","v":"数学、学科教学（一级学科）"},"须具有对应学段、学科及以上教师资格证书，定向招聘七星关区户籍（含大方县托管的乡镇街道）考生","小学数学"]
["486","毕节市七星关区朱昌中学","0280","0857-8221396","全额事业","教师","01","专业技术岗位",1,"中小学教师类（D类）中学教师岗位",42,"大学本科及以上","学士学位及以上",null,"数学类、教育类",{"$f":"VLOOKUP(R491,[1]Sheet3!$A$2:$H$37,8,FALSE)","v":"数学、学科教学（一级学科）"},"须具有对应学段、学科及以上教师资格证书","初中数学"]
["487","大方县竹园乡羊场小学","0281","0857-8221396","全额事业","教师","01","专业技术岗位",1,"中小学教师类（D类）小学教师岗位",41,"大学本科及以上","学士学位及以上",null,"外国语言文学类、教育类",{"$f":"VLOOKUP(R492,[1]Sheet3!$A$2:$H$37,8,FALSE)","v":"外国语言文学、学科教育（一级学科）"},"须具有对应学段、学科及以上教师资格证书，定向招聘七星关区户籍（含大方县托管的乡镇街道）考生","小学英语"]
["488","大方县竹园乡中心校","0282","0857-8221396","全额事业","教师","01","专业技术岗位",1,"中小学教师类（D类）小学教师岗位",41,"大学本科及以上","学士学位及以上",null,"中国语言文学类、新闻传播学类、教育类",{"$f":"VLOOKUP(R493,[1]Sheet3!$A$2:$H$37,8,FALSE)","v":"中国语言文学、新闻传播学、学科教学（一级学科）"},"须具有对应学段、学科及以上教师资格证书，定向招聘七星关区户籍（含大方县托管的乡镇街道）考生","小学语文"]
["489","大方县竹园中学","0283","0857-8221396","全额事业","教师","01","专业技术岗位",1,"中小学教师类（D类）中学教师岗位",42,"大学本科及以上","学士学位及以上",null,"物理学类、教育类、地球物理学类",{"$f":"VLOOKUP(R494,[1]Sheet3!$A$2:$H$37,8,FALSE)","v":"物理学、力学，学科教学（一级学科）"},"须具有对应学段、学科及以上教师资格证书","初中物理"]
["490","大方县竹园中学","0283","0857-8221396","全额事业","教师","02","专业技术岗位",1,"中小学教师类（D类）中学教师岗位",42,"大学本科及以上","学士学位及以上",null,"中国语言文学类、新闻传播学类、教育类",{"$f":"VLOOKUP(R495,[1]Sheet3!$A$2:$H$37,8,FALSE)","v":"中国语言文学、新闻传播学、学科教学（一级学科）"},"须具有对应学段、学科及以上教师资格证书，定向招聘七星关区户籍（含大方县托管的乡镇街道）考生","初中语文"]

{"sheet":"Sheet2","index":1,"n_rows":0,"n_cols":0,"rows_kept":0}

{"sheet":"Sheet3","index":2,"n_rows":0,"n_cols":0,"rows_kept":0}